Workbook

Sheet AER CF (hidden)
B1: AER CONDITIONAL FORMATTING
B3: CELLS FLAGED "Y" and greyed out will be greyed out in the worksheets.
B4: CONDITIONAL FORMATTING MAP
F5: =INDEX(dms_CF_3.6.1, MATCH(dms_TradingName,dms_CF_TradingName))="Y" | G5: =INDEX(dms_CF_3.6.5, MATCH(dms_TradingName,dms_CF_TradingName))="Y" | H5: =INDEX(dms_CF_3.6.6.1, MATCH(dms_TradingName,dms_CF_TradingName))="Y" | I5: =INDEX(dms_CF_3.6.6.2, MATCH(dms_TradingName,dms_CF_TradingName))="Y" | J5: =INDEX(dms_CF_3.6.6.3, MATCH(dms_TradingName,dms_CF_TradingName))="Y" | K5: =INDEX(dms_CF_3.6.7.1, MATCH(dms_TradingName,dms_CF_TradingName))="Y" | L5: =INDEX(dms_CF_3.6.7.2, MATCH(dms_TradingName,dms_CF_TradingName))="Y" | M5: =INDEX(dms_CF_3.6.7.3, MATCH(dms_TradingName,dms_CF_TradingName))="Y" | N5: =INDEX(dms_CF_3.6.7.4, MATCH(dms_TradingName,dms_CF_TradingName))="Y" | O5: =INDEX(dms_CF_3.6.8, MATCH(dms_TradingName,dms_CF_TradingName))="Y" | P5: =INDEX(dms_CF_4.1, MATCH(dms_TradingName,dms_CF_TradingName))="Y" | Q5: =INDEX(dms_CF_6.8, MATCH(dms_TradingName,dms_CF_TradingName))="Y" | R5: =INDEX(dms_CF_7.12, MATCH(dms_TradingName,dms_CF_TradingName))="Y" | S5: =INDEX(dms_CF_8.1_A, MATCH(dms_TradingName,dms_CF_TradingName))="Y" | T5: =INDEX(dms_CF_8.1_B, MATCH(dms_TradingName,dms_CF_TradingName))="Y" | U5: =INDEX(dms_CF_8.1_Neg, MATCH(dms_TradingName,dms_CF_TradingName))="Y" -> FALSE | V5: =INDEX(dms_CF_4.4.1_Neg, MATCH(dms_TradingName,dms_CF_TradingName))="Y" | Y5: =INDEX(dms_CF_F10, MATCH(dms_TradingName,dms_CF_TradingName))="Y"
B6: dms_CF_TradingName | C6: JurisdictionList | D6: Sector | E6: Segment | F6: dms_CF_3.6.1 | G6: dms_CF_3.6.5 | H6: dms_CF_3.6.6.1 | I6: dms_CF_3.6.6.2 | J6: dms_CF_3.6.6.3 | K6: dms_CF_3.6.7.1 | L6: dms_CF_3.6.7.2 | M6: dms_CF_3.6.7.3 | N6: dms_CF_3.6.7.4 | O6: dms_CF_3.6.8 | P6: dms_CF_4.1 | Q6: dms_CF_6.8 (set from dms_MAIFI_flag) | R6: dms_CF_7.12 | S6: dms_CF_8.1_A (and 8.4) | T6: dms_CF_8.1_B (and 8.4) | U6: dms_CF_8.1_Neg (and 8.4) | V6: dms_CF_4.4.1 | W6: dms_CF_MAIFI_flag (set from dms_MAIFI_flag) | X6: 9.5 TUOS (set from Jurisdiction) | Y6: dms_CF_F10
B7: Amadeus | C7: NT | D7: Gas | E7: Transmission | F7: - | G7: - | H7: - | I7: - | J7: - | K7: - | L7: - | M7: - | N7: - | O7: - | P7: - | Q7: - | R7: - | S7: - | T7: - | U7: - | V7: - | W7: - | X7: - | Y7: -
B8: APA GasNet | C8: Vic | D8: Gas | E8: Transmission | F8: - | G8: - | H8: - | I8: - | J8: - | K8: - | L8: - | M8: - | N8: - | O8: - | P8: - | Q8: - | R8: - | S8: - | T8: - | U8: - | V8: - | W8: - | X8: - | Y8: -
B9: Ausgrid | C9: NSW | D9: Electricity | E9: Distribution | G9: Y | H9: N | I9: N | J9: N | K9: N | L9: N | M9: N | N9: Y | O9: N | P9: N | Q9: =IFERROR(IF(dms_MAIFI_flag="Yes","N","Y"),"Y") -> Y | R9: Y | S9: N | T9: Y | U9: Y | V9: N | W9: =IFERROR(LEFT(dms_MAIFI_flag),"N") -> N | X9: =IF('AER CF'!$C7="Vic","Y","N") -> N
B10: Ausgrid (Tx Assets) | C10: NSW | D10: Electricity | E10: Distribution | G10: Y | H10: N | I10: N | J10: N | K10: N | L10: N | M10: N | N10: Y | O10: N | P10: N | Q10: =IFERROR(IF(dms_MAIFI_flag="Yes","N","Y"),"Y") -> Y | R10: Y | S10: N | T10: Y | U10: Y | V10: N | W10: =IFERROR(LEFT(dms_MAIFI_flag),"N") -> N | X10: =IF('AER CF'!$C8="Vic","Y","N") -> Y
B11: AusNet (D) | C11: Vic | D11: Electricity | E11: Distribution | G11: N | H11: N | K11: N | L11: N | M11: N | N11: N | O11: N | P11: N | Q11: =IFERROR(IF(dms_MAIFI_flag="Yes","N","Y"),"Y") -> Y | R11: N | S11: N | T11: N | U11: Y | V11: N | W11: =IFERROR(LEFT(dms_MAIFI_flag),"N") -> N | X11: =IF('AER CF'!$C9="Vic","Y","N") -> N
B12: AusNet (T) | C12: Vic | D12: Electricity | E12: Transmission | G12: N | K12: N | L12: N | M12: N | N12: N | O12: N | P12: Y | Q12: =IFERROR(IF(dms_MAIFI_flag="Yes","N","Y"),"Y") -> Y | R12: N | S12: N | T12: N | U12: Y | V12: N | W12: =IFERROR(LEFT(dms_MAIFI_flag),"N") -> N | X12: =IF('AER CF'!$C10="Vic","Y","N") -> N
B13: Australian Distribution Co. | C13: NSW | D13: Electricity | E13: Distribution | F13: N | G13: N | H13: N | I13: N | K13: N | L13: N | M13: N | N13: N | O13: N | P13: N | Q13: =IFERROR(IF(dms_MAIFI_flag="Yes","N","Y"),"Y") -> Y | R13: N | S13: N | T13: N | U13: N | V13: N | W13: =IFERROR(LEFT(dms_MAIFI_flag),"N") -> N | X13: =IF('AER CF'!$C13="Vic","Y","N") -> N
B14: Australian Distribution Co. (Vic) | C14: Vic | D14: Electricity | E14: Distribution | F14: N | G14: N | H14: N | I14: N | K14: N | L14: N | M14: N | N14: N | O14: N | P14: N | Q14: =IFERROR(IF(dms_MAIFI_flag="Yes","N","Y"),"Y") -> Y | R14: N | S14: N | T14: N | U14: N | V14: N | W14: =IFERROR(LEFT(dms_MAIFI_flag),"N") -> N | X14: =IF('AER CF'!$C14="Vic","Y","N") -> Y
B15: CitiPower | C15: Vic | D15: Electricity | E15: Distribution | G15: N | H15: N | K15: N | L15: N | M15: N | N15: N | O15: N | P15: N | Q15: =IFERROR(IF(dms_MAIFI_flag="Yes","N","Y"),"Y") -> Y | R15: N | S15: N | T15: N | U15: Y | V15: N | W15: =IFERROR(LEFT(dms_MAIFI_flag),"N") -> N | X15: =IF('AER CF'!$C15="Vic","Y","N") -> Y
B16: Directlink | C16: Qld | D16: Electricity | E16: Transmission | G16: N | K16: N | L16: N | M16: N | N16: N | O16: N | P16: - | Q16: =IFERROR(IF(dms_MAIFI_flag="Yes","N","Y"),"Y") -> Y | R16: N | S16: N | T16: Y | U16: Y | V16: N | W16: =IFERROR(LEFT(dms_MAIFI_flag),"N") -> N | X16: =IF('AER CF'!$C16="Vic","Y","N") -> N
B17: ElectraNet | C17: SA | D17: Electricity | E17: Transmission | G17: N | K17: N | L17: N | M17: N | N17: N | O17: N | P17: - | Q17: =IFERROR(IF(dms_MAIFI_flag="Yes","N","Y"),"Y") -> Y | R17: N | S17: N | T17: Y | U17: Y | V17: N | W17: =IFERROR(LEFT(dms_MAIFI_flag),"N") -> N | X17: =IF('AER CF'!$C17="Vic","Y","N") -> N
B18: Endeavour Energy | C18: NSW | D18: Electricity | E18: Distribution | G18: Y | H18: N | I18: Y | J18: Y | K18: N | L18: N | M18: N | N18: Y | O18: N | P18: N | Q18: =IFERROR(IF(dms_MAIFI_flag="Yes","N","Y"),"Y") -> Y | R18: Y | S18: N | T18: Y | U18: Y | V18: Y | W18: =IFERROR(LEFT(dms_MAIFI_flag),"N") -> N | X18: =IF('AER CF'!$C18="Vic","Y","N") -> N
B19: Energex | C19: Qld | D19: Electricity | E19: Distribution | G19: Y | H19: N | K19: N | L19: N | M19: N | N19: N | O19: N | P19: N | Q19: =IFERROR(IF(dms_MAIFI_flag="Yes","N","Y"),"Y") -> Y | R19: Y | S19: N | T19: Y | U19: Y | V19: Y | W19: =IFERROR(LEFT(dms_MAIFI_flag),"N") -> N | X19: =IF('AER CF'!$C19="Vic","Y","N") -> N
B20: Ergon Energy | C20: Qld | D20: Electricity | E20: Distribution | G20: Y | H20: N | I20: Y | J20: Y | K20: N | L20: N | M20: N | N20: N | O20: N | P20: N | Q20: =IFERROR(IF(dms_MAIFI_flag="Yes","N","Y"),"Y") -> Y | R20: Y | S20: N | T20: Y | U20: Y | V20: N | W20: =IFERROR(LEFT(dms_MAIFI_flag),"N") -> N | X20: =IF('AER CF'!$C20="Vic","Y","N") -> N
B21: Essential Energy | C21: NSW | D21: Electricity | E21: Distribution | G21: Y | H21: N | I21: Y | J21: Y | K21: N | L21: N | M21: N | N21: Y | O21: N | P21: N | Q21: =IFERROR(IF(dms_MAIFI_flag="Yes","N","Y"),"Y") -> Y | R21: Y | S21: N | T21: Y | U21: Y | V21: N | W21: =IFERROR(LEFT(dms_MAIFI_flag),"N") -> N | X21: =IF('AER CF'!$C21="Vic","Y","N") -> N
B22: Evoenergy Distribution | C22: ACT | D22: Electricity | E22: Distribution | G22: Y | H22: N | I22: Y | J22: Y | K22: Y | L22: Y | M22: N | N22: Y | O22: N | P22: Y | Q22: =IFERROR(IF(dms_MAIFI_flag="Yes","N","Y"),"Y") -> Y | R22: Y | S22: N | T22: Y | U22: Y | V22: N | W22: =IFERROR(LEFT(dms_MAIFI_flag),"N") -> N | X22: =IF('AER CF'!$C22="Vic","Y","N") -> N
B23: Evoenergy Distribution (Tx Assets) | C23: ACT | D23: Electricity | E23: Distribution | G23: Y | H23: N | I23: Y | J23: Y | K23: Y | L23: Y | M23: N | N23: Y | O23: N | P23: Y | Q23: =IFERROR(IF(dms_MAIFI_flag="Yes","N","Y"),"Y") -> Y | R23: Y | S23: N | T23: Y | U23: Y | V23: N | W23: =IFERROR(LEFT(dms_MAIFI_flag),"N") -> N | X23: =IF('AER CF'!$C23="Vic","Y","N") -> N
B24: Jemena Electricity | C24: Vic | D24: Electricity | E24: Distribution | G24: N | H24: N | K24: N | L24: N | M24: N | N24: N | O24: N | P24: N | Q24: =IFERROR(IF(dms_MAIFI_flag="Yes","N","Y"),"Y") -> Y | R24: N | S24: N | T24: N | U24: Y | V24: N | W24: =IFERROR(LEFT(dms_MAIFI_flag),"N") -> N | X24: =IF('AER CF'!$C25="Vic","Y","N") -> Y
B25: JGN | C25: Vic | D25: Gas | E25: Distribution | F25: - | G25: - | H25: - | I25: - | J25: - | K25: - | L25: - | M25: - | N25: - | O25: - | P25: - | Q25: - | R25: - | S25: - | T25: - | U25: - | V25: - | W25: - | X25: - | Y25: -
B26: Murraylink | C26: SA | D26: Electricity | E26: Transmission | G26: N | K26: N | L26: N | M26: N | N26: N | O26: N | P26: - | Q26: =IFERROR(IF(dms_MAIFI_flag="Yes","N","Y"),"Y") -> Y | R26: N | S26: N | T26: Y | U26: Y | V26: N | W26: =IFERROR(LEFT(dms_MAIFI_flag),"N") -> N | X26: =IF('AER CF'!$C26="Vic","Y","N") -> N
B27: Power and Water | C27: NT | D27: Electricity | E27: Distribution | G27: N | H27: N | K27: N | L27: Y | M27: N | N27: N | O27: N | P27: Y | Q27: =IFERROR(IF(dms_MAIFI_flag="Yes","N","Y"),"Y") -> Y | R27: Y | S27: Y | T27: Y | U27: Y | V27: N | W27: =IFERROR(LEFT(dms_MAIFI_flag),"N") -> N | X27: =IF('AER CF'!$C27="Vic","Y","N") -> N
B28: Powercor Australia | C28: Vic | D28: Electricity | E28: Distribution | G28: N | H28: N | K28: N | L28: N | M28: N | N28: N | O28: N | P28: N | Q28: =IFERROR(IF(dms_MAIFI_flag="Yes","N","Y"),"Y") -> Y | R28: N | S28: N | T28: N | U28: Y | V28: N | W28: =IFERROR(LEFT(dms_MAIFI_flag),"N") -> N | X28: =IF('AER CF'!$C28="Vic","Y","N") -> Y
B29: Powerlink | C29: Qld | D29: Electricity | E29: Transmission | G29: N | K29: N | L29: N | M29: N | N29: N | O29: N | P29: - | Q29: =IFERROR(IF(dms_MAIFI_flag="Yes","N","Y"),"Y") -> Y | R29: N | S29: N | T29: Y | U29: Y | V29: N | W29: =IFERROR(LEFT(dms_MAIFI_flag),"N") -> N | X29: =IF('AER CF'!$C29="Vic","Y","N") -> N
B30: Roma to Brisbane Pipeline | C30: Qld | D30: Gas | E30: Transmission | F30: - | G30: - | H30: - | I30: - | J30: - | K30: - | L30: - | M30: - | N30: - | O30: - | P30: - | Q30: - | R30: - | S30: - | T30: - | U30: - | V30: - | W30: - | X30: - | Y30: -
B31: SA Power Networks | C31: SA | D31: Electricity | E31: Distribution | G31: Y | H31: N | K31: N | L31: N | M31: N | N31: N | O31: N | P31: N | Q31: =IFERROR(IF(dms_MAIFI_flag="Yes","N","Y"),"Y") -> Y | R31: Y | S31: N | T31: Y | U31: N | V31: N | W31: =IFERROR(LEFT(dms_MAIFI_flag),"N") -> N | X31: =IF('AER CF'!$C31="Vic","Y","N") -> N
B32: TasNetworks (D) | C32: Tas | D32: Electricity | E32: Distribution | G32: Y | H32: N | K32: N | L32: N | M32: N | N32: N | O32: N | P32: N | Q32: =IFERROR(IF(dms_MAIFI_flag="Yes","N","Y"),"Y") -> Y | R32: Y | S32: N | T32: Y | U32: Y | V32: N | W32: =IFERROR(LEFT(dms_MAIFI_flag),"N") -> N | X32: =IF('AER CF'!$C32="Vic","Y","N") -> N
B33: TasNetworks (T) | C33: Tas | D33: Electricity | E33: Transmission | G33: N | K33: N | L33: N | M33: N | N33: N | O33: N | P33: - | Q33: =IFERROR(IF(dms_MAIFI_flag="Yes","N","Y"),"Y") -> Y | R33: N | S33: N | T33: Y | U33: Y | V33: N | W33: =IFERROR(LEFT(dms_MAIFI_flag),"N") -> N | X33: =IF('AER CF'!$C33="Vic","Y","N") -> N
B34: TransGrid | C34: NSW | D34: Electricity | E34: Transmission | G34: N | K34: N | L34: N | M34: N | N34: N | O34: N | P34: - | Q34: =IFERROR(IF(dms_MAIFI_flag="Yes","N","Y"),"Y") -> Y | R34: N | S34: N | T34: Y | U34: Y | V34: N | W34: =IFERROR(LEFT(dms_MAIFI_flag),"N") -> N | X34: =IF('AER CF'!$C34="Vic","Y","N") -> N
B35: United Energy | C35: Vic | D35: Electricity | E35: Distribution | G35: N | H35: N | K35: N | L35: N | M35: N | N35: N | O35: N | P35: N | Q35: =IFERROR(IF(dms_MAIFI_flag="Yes","N","Y"),"Y") -> Y | R35: N | S35: N | T35: N | U35: Y | V35: N | W35: =IFERROR(LEFT(dms_MAIFI_flag),"N") -> N | X35: =IF('AER CF'!$C35="Vic","Y","N") -> Y
B38: Confidential
B39: Amended
B41: Worksheet 6.2 STPIS reliability
B42: Formula | F42: Applied to:
B44: =INDEX(dms_CBD_flag,MATCH(dms_TradingName,dms_TradingName_List))="NO" | F44: $D$11,$D$17,$D$23,$D$33,$D$39,$D$45,$D$55,$D$61,$D$67,$D$77,$D$83,$D$89
B45: =INDEX(dms_Urban_flag,MATCH(dms_TradingName,dms_TradingName_List))="NO" | F45: $D$12,$D$18,$D$24,$D$56,$D$62,$D$78,$D$68,$D$84
B46: =INDEX(dms_ShortRural_flag,MATCH(dms_TradingName,dms_TradingName_List))="NO" | F46: $D$13,$D$19,$D$25,$D$57,$D$63,$D$69,$D$79,$D$85
B47: =INDEX(dms_LongRural_flag,MATCH(dms_TradingName,dms_TradingName_List))="NO" | F47: $D$14,$D$20,$D$26,$D$58,$D$64,$D$65,$D$70,$D$71,$D$80,$D$86
B48: =INDEX(dms_FeederType_5_flag,MATCH(dms_TradingName,dms_TradingName_List))="NO" | F48: $D$87,$D$81,$D$71,$D$65,$D$59,$D$49,$D$43,$D$37,$D$21,$D$15
B49: =dms_MAIFI_Flag="No" | F49: $D$55:$D$72
B52: Business & other details
B53: =(INDEX(dms_Model_Span,MATCH(dms_Model,dms_Model_List))>1)
B54: =(INDEX(dms_Model_Span,MATCH(dms_Model,dms_Model_List))=1)
B57: STYLES IN USE
B58: HEADING ONE | C58: dms_1
B59: HEADING TWO | C59: dms_2
B60: HEADING THREE | C60: dms_3
B61: HEADING FOUR | C61: dms_4
B62: HEADING FIVE | C62: dms_5
B63: 5.111 | C63: dms_NUM
B64: 0.0545 | C64: dms_NUM%
B65: 5.5555 | C65: dms_NUM3d
B66: Text description | C66: dms_Row_Locked
B67: Text description | C67: dms_Row1
B68: Text description | C68: dms_Row2
B69: Total | C69: dms_T1
B70: Total | C70: dms_T2
B71: EXPENSES | C71: dms_BH
B72: 2019 | C72: dms_BY1
B73: 2019 | C73: dms_BY2
B74: VOLUMES | C74: dms_GH
B75: 2019 | C75: dms_GY1
B76: 2019 | C76: dms_GY2

Sheet AER NRs (hidden)
B1: AER NAMED RANGES
B3: DROP DOWN SELECTORS USED IN WORKBOOKS
B5: COVER SHEET | C5: dms_DataQuality_List | D5: dms_Confid_status_List
C6: -- select -- | D6: -- select --
C7: Actual | D7: Public
C8: Estimate | D8: Confidential
C9: Consolidated
C12: For all files either AER or business needs to be able to specify the type of submission | D12: For PTRM & RFM templates we must provide a choice in case they change their form of control - otherwise it is drawn from the business specific lookup table above.
C13: dms_SourceList | D13: dms_FormControl_Choices
C14: -- select -- | D14: Revenue cap
C15: After appeal | D15: Revenue yield
C16: Draft decision | D16: Tariff cap
C17: Final decision | D17: Weighted average price cap
C18: PTRM update 1
C19: PTRM update 2
C20: PTRM update 3
C21: PTRM update 4
C22: PTRM update 5
C23: PTRM update 6
C24: PTRM update 7
C25: Reallocated
C26: Recast
C27: Regulatory proposal
C28: Reporting
C29: Revised regulatory proposal
K32: This is used to create an image to insert on 6.3 STPIS sheet - not for dropdown lists. | N32: GAS
B33: CA & RESET RINS DNSP | C33: dms_DNSP_020301_SubstationType | D33: dms_DNSP_020301_ProjectType | E33: dms_DNSP_020301_ProjectTrigger | F33: dms_DNSP_020302_ProjectType | G33: dms_DNSP_020302_ProjectTrigger | H33: dms_STPIS_Exclusion_List | I33: dms_Reason_Interruption | J33: dms_Reason_Interruption_Detailed | K33: Reason for interruption | N33: dms_N0205_AssetType
C34: Subtransmission substation | D34: New substation establishment | E34: Demand growth | F34: New line on new route - single circuit | G34: Demand growth | H34: Weather | I34: Animal | J34: Animal impact | K34: Animal | L34: Animal impact | N34: Cast Iron
C35: Zone substation | D35: Substation upgrade - capacity | E35: Voltage issues | F35: New line on new route - dual circuit | G35: Voltage issues | H35: Equipment failure | I35: Asset failure | J35: Animal nesting/burrowing, etc and other | L35: Animal nesting/burrowing, etc and other | N35: PVC
C36: Switching station | D36: Substation upgrade - voltage | E36: Reactive power issue | F36: New line on new route - other | G36: Reactive power issue | H36: Operational error | I36: Other | J36: Other | L36: Other | N36: Polyamide
C37: Other | D37: Other | E37: Fault level issues | F37: Line rebuild over existing route - single circuit | G37: Fault level issues | H37: Vegetation | I37: Overloads | J37: LV | K37: Asset failure | L37: LV | N37: High density polyethylene (80)
E38: Safety | F38: Line rebuild over existing route - dual circuit | G38: Net market benefit | H38: Animals | I38: Planned | J38: Distribution substation | L38: Distribution substation | N38: High density polyethylene (100)
E39: Environment | F39: Reconductor - Single circuit | G39: Safety | H39: Third party impacts | I39: Network business | J39: HV | L39: HV | N39: High density polyethylene (250)
E40: Other | F40: Reconductor - Dual circuit | G40: Environment | H40: Transmission failure | I40: Third party | J40: Zone substation | L40: Zone substation | N40: High density polyethylene (575)
F41: Reconductor - Other | G41: Other | H41: Load shedding | I41: Unknown | J41: Subtransmission | L41: Subtransmission | N41: Medium density polyethylene
F42: Line upgrade - raising/retensoring | H42: Inter-distributor connection failure | I42: Vegetation | J42: insert description of 'other' | K42: Other | L42: insert description of 'other' | N42: Unprotected steel
F43: Line upgrade - voltage upgrade | H43: Other | I43: Weather | J43: Network error | K43: Overloads | N43: Protected steel
F44: Line upgrade - capacity | I44: 2 - STPIS Exclusion (3.3)(a) | J44: Switching and protection error | K44: Planned | N44: Other
F45: String spare circuit | I45: 3 - STPIS Exclusion (3.3)(a) | J45: Fire | K45: Network business | L45: Network error
F46: Other | I46: 4 - STPIS Exclusion (3.3)(a) | J46: Other | L46: Switching and protection error
I47: 5 - STPIS Exclusion (3.3)(a) | J47: Dig-in | K47: Third party | L47: Fire
I48: 6 - STPIS Exclusion (3.3)(a) | J48: Unauthorised access | L48: Other
I49: 7 - STPIS Exclusion (3.3)(a) | J49: Vehicle impact | L49: Dig-in
J50: Unknown | L50: Unauthorised access
J51: Blow-in/Fall-in - NSP responsibility | L51: Vehicle impact
J52: Grow-in - NSP responsibility | K52: Unknown | L52: Unknown
J53: Blow-in/Fall-in - Other responsible party | K53: Vegetation | L53: Blow-in/Fall-in - NSP responsibility
J54: Grow-in - Other responsible party | L54: Grow-in - NSP responsibility
L55: Blow-in/Fall-in - Other responsible party
L56: Grow-in - Other responsible party
K57: Weather
K58: 2 - STPIS Exclusion (3.3)(a)
K59: 3 - STPIS Exclusion (3.3)(a)
K60: 4 - STPIS Exclusion (3.3)(a)
K61: 5 - STPIS Exclusion (3.3)(a)
K62: 6 - STPIS Exclusion (3.3)(a)
K63: 7 - STPIS Exclusion (3.3)(a)
B66: CA & RESET RINS TNSP | C66: dms_TNSP_0203_SubstationType | D66: dms_TNSP_020301_ProjectType | E66: dms_TNSP_020301_ProjectTrigger | F66: dms_TNSP_020302_ProjectType | G66: dms_TNSP_0203_ProjectTrigger
C67: Terminal station | D67: New substation establishment | E67: Demand growth | F67: New line on new route - single circuit | G67: Demand growth
C68: Switching station | D68: Capacity upgrade | E68: Voltage issues | F68: New line on new route - dual circuit | G68: Voltage issues
C69: Transmission substation | D69: Voltage upgrade | E69: Reactive power issue | F69: New line on new route - other | G69: Reactive power issue
C70: Other | D70: Other | E70: Fault level issues | F70: Line rebuild over existing route - single circuit | G70: Fault level issues
E71: Net market benefit | F71: Line rebuild over existing route - dual circuit | G71: Net market benefit
E72: Safety | F72: Reconductor - Single circuit | G72: Safety
E73: Environment | F73: Reconductor - Dual circuit | G73: Environment
E74: Other | F74: Reconductor - Other | G74: Other
F75: Line upgrade - raising/retensoring
F76: Line upgrade - voltage upgrade
F77: Line upgrade - capacity
F78: String spare circuit
F79: Other
B83: NAMED RANGES USED IN ETL PROCESS
M84: GAS ARR & RESET
B85: CA & RESET RINS DNSP ONLY | C85: dms_020303_01_UOM | D85: dms_020501_01_UOM | E85: dms_020501_02_UOM | F85: dms_020501_03_UOM | G85: dms_020501_04_UOM | H85: dms_020701_01_UOM | I85: dms_020701_02_UOM | J85: dms_020701_01_Rows | K85: dms_040102_01_UOM | L85: dms_040102_04_UOM | M85: dms_S140101_UOM | N85: dms_S140201_UOM | O85: dms_E050201_UOM | P85: dms_E050202_UOM
C86: Circuit line length in km | D86: 0's | E86: 0's | F86: 0's | G86: 0's | H86: km | I86: km | J86: Route line length within zone | K86: 0's | L86: days | M86: number | N86: number per km | O86: per metre per connection | P86: metres per connection
C87: Circuit line length in km | D87: 0's | E87: 0's | F87: 0's | G87: 0's | H87: 0's | I87: 0's | J87: Number of maintenance spans | K87: 0's | L87: 0's | M87: number | N87: number | O87: per service per connection | P87: number per connection
C88: Circuit line length in km | D88: MVA added | E88: MVA added | F88: MVA added | G88: MVA added | H88: km | I88: km | J88: Total length of maintenance spans | K88: 0's | L88: $0s | M88: number | N88: number | O88: number per connection | P88: number per connection
C89: Circuit line length in km | D89: 0's | E89: 0's | F89: 0's | G89: 0's | H89: km | I89: km | J89: Length of vegetation corridors | K89: $0s | L89: 0's | M89: km
C90: Number | D90: total spend $0s | E90: total spend $0s | F90: total spend $0s | G90: total spend $0s | H90: 0's | I90: 0's | J90: Average number of trees per maintenance span
C91: Number | D91: net circuit km added | E91: net circuit km added | F91: net circuit km added | G91: net circuit km added | H91: years | I91: years | J91: Average frequency of cutting cycle
C92: Number | D92: total spend $0s | E92: total spend $0s | F92: total spend $0s | G92: total spend $0s
D93: net circuit km added | E93: net circuit km added | F93: net circuit km added | G93: net circuit km added
D94: total spend $0s | E94: total spend $0s | F94: total spend $0s | G94: total spend $0s
D95: 0's | F95: $0s
D96: 0's
D97: 0's
D98: $0s
B101: CA & RESET RINS TNSP ONLY | C101: dms_020701_01_UOM
C102: km
C103: 0's
C104: km
C105: 0's
C106: km
C107: metres
C108: years
B111: CA & RESET RINS DNSP & TNSP | C111: dms_020603_01_UOM
C112: 0's
C113: 0's
C114: 0's
C115: 0's
C116: (per cent)
B119: EB & RESET RINS DNSP ONLY | C119: dms_030601_01_UOM | D119: dms_030601_02_UOM | E119: dms_030701_01_UOM | F119: dms_030702_01_UOM | G119: dms_030703_01_UOM
C120: minutes/customer | D120: minutes/customer | E120: Customer / km | F120: % | G120: km
C121: minutes/customer | D121: minutes/customer | E121: MWh/customer | F121: Number of spans
C122: interruptions/customer | D122: interruptions/customer | E122: kVA / customer | F122: Number of spans
C123: interruptions/customer | D123: interruptions/customer | F123: Number of spans
F124: Number of spans
F125: Years
F126: Years
F127: Trees
F128: Trees
F129: Defects
F130: Defects
F131: Spans
F132: km
F133: Spans
C135: WHEN INSERTING COVER SHEET INTO A TNSP FILE - APPLY THESE NAMED RANGES
B136: EB & RESET RINS TNSP ONLY | C136: dms_030601_01_UOM | E136: dms_030701_01_UOM | F136: dms_030702_01_UOM
C137: % | E137: Number of spans | F137: km
C138: number | E138: Years | F138: %
C139: number | E139: Trees | F139: km
C140: % | E140: Defects | F140: number
C141: number | E141: Number of spans
C142: number | E142: km
C143: % | E143: km
C144: number | E144: Number of spans
C145: number
C146: %
C147: number
C148: %
C149: number
C150: %
C151: number
B153: EB & RESET RINS DNSP & TNSP | C153: dms_EB_RAB_PIT
C154: Beginning of year
C155: End of year
C156: End of year
C157: End of year
C158: End of year
C159: End of year
B161: ARR DNSP ONLY | C161: dms_030605_UOM | D161: dms_03060703_UOM | E161: dms_E020202_UOM | F161: Spare
C162: number | D162: number | E162: Length of mains replaced
C163: number | D163: number | E163: Number of services replaced
C164: number | D164: number
C165: number | D165: number
C166: number | D166: (per cent)
C167: number
C168: number
C169: number
C170: number
C171: number
C172: number
C173: number
C174: (per cent)
C175: (per cent)
B177: RFM | C177: dms_Beg | D177: dms_Mid | E177: dms_End
C178: Beginning of year | D178: Mid year | E178: End of Year
B180: PTRM | C180: dms_PTRM_RAB_PIT | D180: dms_PTRM_TAB_PIT | E180: DMS_Xfactor
C181: Beginning of year | D181: Beginning of year | E181: x factors
C182: End of year | D182: End of year
C183: End of year | D183: End of year
C184: End of year | D184: End of year
C185: End of year
B188: STPIS & MIC NAMED RANGES
B190: These "row descriptions" are the column headings in the various templates but become row descriptions in the ETL process
B192: Table 6.3 sustained interruptions - row descriptions | C192: dms_060301_CustNo_Affected_Row | D192: dms_060301_Avg_Duration_Sustained_Int_Row | E192: dms_060301_Effect_unplanned_SAIDI_Row | F192: dms_060301_Effect_unplanned_SAIFI_Row
C193: Number of customers affected by the interruption | D193: Average duration of sustained customer interruption | E193: Effect on unplanned SAIDI | F193: Effect on unplanned SAIFI
B196: Table 6.1 telephone answering - row descriptions and start date | C196: dms_060101_Rows | D196: dms_060102_Rows | E196: dms_060101_StartDateTxt
C197: Total number of calls (after removing excluded events) | D197: Number of calls answered within 30 seconds (after excluding excluded events) | E197: =dms_060701_StartDateTxt -> 1-Jul-2016
B200: Table 6.8.1 - row descriptions | C200: dms_060801_01_Rows | D200: dms_060801_02_Rows | E200: dms_060801_03_Rows | F200: dms_060801_04_Rows
C201: Number of interruptions | D201: Duration of interruptions | E201: Total unplanned minutes off supply | F201: Effect on unplanned MAIFI
B204: Table 7.9.4 - market impact component - row descriptions | C204: dms_070904_01_Rows | D204: without exclusions | E204: with exclusions
B207: These headings (Lists) are determined from the INDEX/MATCH function on the NSP selected on the Business & other details sheet
B209: Table 6.7.1 - daily performance data - unplanned - MAIFI -- row descriptions and header named range values | C209: dms_060701_Feeder_Header_Lvl4 | D209: =INDEX(dms_FeederName_1,MATCH(dms_TradingName,dms_TradingName_List)) -> CBD | E209: =INDEX(dms_FeederName_1,MATCH(dms_TradingName,dms_TradingName_List)) -> CBD | F209: =INDEX(dms_FeederName_2,MATCH(dms_TradingName,dms_TradingName_List)) -> Urban | G209: =INDEX(dms_FeederName_2,MATCH(dms_TradingName,dms_TradingName_List)) -> Urban | H209: =INDEX(dms_FeederName_3,MATCH(dms_TradingName,dms_TradingName_List)) -> Short rural | I209: =INDEX(dms_FeederName_3,MATCH(dms_TradingName,dms_TradingName_List)) -> Short rural | J209: =INDEX(dms_FeederName_4,MATCH(dms_TradingName,dms_TradingName_List)) -> Long rural | K209: =INDEX(dms_FeederName_4,MATCH(dms_TradingName,dms_TradingName_List)) -> Long rural | L209: =IF((INDEX(dms_FeederName_5,MATCH(dms_TradingName,dms_TradingName_List))=0),"Network",(INDEX(dms_FeederName_5,MATCH(dms_TradingName,dms_TradingName_List)))) -> Network | M209: =IF((INDEX(dms_FeederName_5,MATCH(dms_TradingName,dms_TradingName_List))=0),"Network",(INDEX(dms_FeederName_5,MATCH(dms_TradingName,dms_TradingName_List)))) -> Network | N209: Network | O209: Network
C211: dms_060701_Rows | D211: All events | E211: After removing excluded events | F211: All events | G211: After removing excluded events | H211: All events | I211: After removing excluded events | J211: All events | K211: After removing excluded events | L211: All events | M211: After removing excluded events | N211: All events | O211: After removing excluded events
D212: the number of column headings changes from 10 to 12 depending on the number of feeder categories for the NSP
C214: dms_0603_FeederList | D214: =INDEX(dms_FeederName_1,MATCH(dms_TradingName,dms_TradingName_List)) -> CBD | E214: =INDEX(dms_FeederName_2,MATCH(dms_TradingName,dms_TradingName_List)) -> Urban | F214: =INDEX(dms_FeederName_3,MATCH(dms_TradingName,dms_TradingName_List)) -> Short rural | G214: =INDEX(dms_FeederName_4,MATCH(dms_TradingName,dms_TradingName_List)) -> Long rural
B217: Use these to add to specific worksheets in existing files | C217: Use these to add to specific worksheets in existing files
B220: ARRs 6.7 STPIS daily performance | C220: dms_060101_Values | D220: dms_060102_Values | E220: dms_060701_Values
C221: dms_LeapYear
B224: ARR's 6.8 STPIS exclusions | C224: dms_060801_Event_Date | D224: dms_060801_OutageID | E224: dms_060801_FeederID | F224: dms_060801_FeederClass | G224: dms_060801_CauseID | H224: dms_060801_01_Values | I224: dms_060801_02_Values | J224: dms_060801_03_Values | K224: dms_060801_Excl_Cat | L224: dms_060801_04_Values
C225: dms_060801_StartCell
B228: CA 6.3 sustained interruptions | C228: dms_060301_Event_Date | D228: dms_060301_Event_Time | E228: dms_060301_AssetID | F228: dms_060301_FeederClass | G228: dms_060301_Reason | H228: dms_060301_DetailedReason | I228: dms_060301_CustNo_Affected_Values | J228: dms_060301_Avg_Duration_Sustained_Int_Values | K228: dms_060301_Effect_unplanned_SAIDI_Values | L228: dms_060301_Effect_unplanned_SAIFI_Values | M228: dms_060301_MED
B232: PTRM input sheet | C232: DMS_50_01_01a | D232: DMS_50_01_01aa | E232: DMS_50_01_01b | F232: DMS_50_01_01bb | G232: DMS_50_01_01c | H232: DMS_50_01_01d | I232: DMS_50_01_01dd

Sheet AER lookups (hidden)
B1: AER LOOKUP TABLES
B3: Data in these columns used for data validation and database purposes.
B4: Date last modified: | C4: 2017-01-16 | D4: added (Albury and Victora) for AGN
C5: 2016-10-17 | D5: updated TransGrid's correct legal name, corrected TasNetworks (T) to June financial year
C6: 2017-02-01 | D6: inserted Power and Water, added NRs (dms_FeederCat_1 and dms_FeederCat_2)
C7: 2017-03-03 | D7: inserted AEMO as a business
C8: 2018-03-28 | D8: major changes to accommodate STPIS
C9: Template Version | D9: 5
Z11: FOR ELECTRICITY BUSINESSES ONLY
Z12: Feeder Types | AD12: TasNetworks (D) | AE12: Feeder Names
Z14: CBD | AA14: Urban | AB14: Short rural | AC14: long rural | AD14: EXTRA
B15: dms_TradingName_List | C15: dms_TradingNameFull_List | D15: dms_ABN_List | E15: dms_JurisdictionList | F15: dms_Sector_List | G15: dms_Segment_List | H15: dms_FormControl_List | I15: dms_RPT_List | J15: dms_RPTMonth_List | K15: dms_CRCPlength_List | L15: dms_FRCPlength_List | M15: dms_PRCPlength_List | N15: dms_663_List | O15: dms_DeterminationRef_List | P15: dms_Addr1_List | Q15: dms_Addr2_List | R15: dms_Suburb_List | S15: dms_State_List | T15: dms_PostCode_List | U15: dms_PAddr1_List | V15: dms_PAddr2_List | W15: dms_PSuburb_List | X15: dms_PState_List | Y15: dms_PPostCode_List | Z15: dms_CBD_flag | AA15: dms_Urban_flag | AB15: dms_ShortRural_flag | AC15: dms_LongRural_flag | AD15: dms_FeederType_5_flag | AE15: dms_FeederName_1 | AF15: dms_FeederName_2 | AG15: dms_FeederName_3 | AH15: dms_FeederName_4 | AI15: dms_FeederName_5 | AJ15: dms_Public_Lighting_List | AK15: Name
B16: AGN (Albury and Victoria) | C16: Australian Gas Networks Limited (reporting data for Albury and Victoria) | D16: 19078551685 | E16: Vic | F16: Gas | G16: Distribution | H16: Tariff cap | I16: Financial | J16: June | K16: 5 | L16: 5 | M16: 5 | N16: x | P16: Level 6 | Q16: 400 King William Street | R16: ADELAIDE | S16: SA | T16: 5000 | U16: PO Box 6468 | V16: Halifax Street | W16: ADELAIDE | X16: SA | Y16: 5000 | Z16: NO | AA16: NO | AB16: NO | AC16: NO | AD16: NO | AE16: CBD | AF16: Urban | AG16: Short rural | AH16: Long rural | AJ16: NO | AK16: =B16 -> AGN (Albury and Victoria)
B17: AGN (Albury) | C17: Australian Gas Networks Limited (reporting data for Albury) | D17: 19078551685 | E17: Vic | F17: Gas | G17: Distribution | H17: Tariff cap | I17: Financial | J17: June | K17: 5 | L17: 5 | M17: 5 | N17: x | P17: Level 6 | Q17: 400 King William Street | R17: ADELAIDE | S17: SA | T17: 5000 | U17: PO Box 6468 | V17: Halifax Street | W17: ADELAIDE | X17: SA | Y17: 5000 | Z17: NO | AA17: NO | AB17: NO | AC17: NO | AD17: NO | AE17: CBD | AF17: Urban | AG17: Short rural | AH17: Long rural | AJ17: NO | AK17: AGN (Albury)
B18: AGN (SA) | C18: Australian Gas Networks Limited (reporting data for SA) | D18: 19078551685 | E18: SA | F18: Gas | G18: Distribution | H18: Tariff cap | I18: Financial | J18: June | K18: 5 | L18: 5 | M18: 5 | N18: 5 | O18: distribution determination | P18: Level 6 | Q18: 400 King William Street | R18: ADELAIDE | S18: SA | T18: 5000 | U18: PO Box 6468 | V18: Halifax Street | W18: ADELAIDE | X18: SA | Y18: 5000 | Z18: NO | AA18: NO | AB18: NO | AC18: NO | AD18: NO | AE18: CBD | AF18: Urban | AG18: Short rural | AH18: Long rural | AJ18: NO | AK18: AGN (SA)
B19: AGN (Victoria) | C19: Australian Gas Networks Limited (reporting data for Victoria) | D19: 19078551685 | E19: Vic | F19: Gas | G19: Distribution | H19: Tariff cap | I19: Financial | J19: June | K19: 5 | L19: 5 | M19: 5 | N19: x | P19: Level 6 | Q19: 400 King William Street | R19: ADELAIDE | S19: SA | T19: 5000 | U19: PO Box 6468 | V19: Halifax Street | W19: ADELAIDE | X19: SA | Y19: 5000 | Z19: NO | AA19: NO | AB19: NO | AC19: NO | AD19: NO | AE19: CBD | AF19: Urban | AG19: Short rural | AH19: Long rural | AJ19: NO | AK19: AGN (Victoria)
B20: Amadeus | C20: APT Pipelines (NT) Pty Ltd | D20: 39009737393 | E20: NT | F20: Gas | G20: Transmission | H20: Tariff cap | I20: Financial | J20: June | K20: 5 | L20: 5 | M20: 5 | N20: x | O20: n/a | P20: Level 19, HSBC Building | Q20: 580 George Street | R20: SYDNEY | S20: NSW | T20: 2000 | U20: Level 19, HSBC Building | V20: 580 George Street | W20: SYDNEY | X20: NSW | Y20: 2000 | Z20: NO | AA20: NO | AB20: NO | AC20: NO | AD20: NO | AE20: CBD | AF20: Urban | AG20: Short rural | AH20: Long rural | AJ20: NO | AK20: Amadeus
B21: APA GasNet | C21: APA GasNet Australia (Operations) Pty Ltd | D21: 065083009 | E21: Vic | F21: Gas | G21: Transmission | H21: Weighted average price cap | I21: Financial | J21: June | K21: 5 | L21: 5 | M21: 5 | N21: x | P21: Level 19, HSBC Building | Q21: 580 George Street | R21: SYDNEY | S21: NSW | T21: 2000 | U21: PO Box R41 | W21: ROYAL EXCHANGE | X21: NSW | Y21: 1225 | Z21: Alexandra Curran | AA21: 02 9275 0020 | AB21: alexandra.curran@apa.com.au | AC21: NO | AD21: NO | AE21: NO | AF21: NO | AG21: NO | AH21: - | AI21: CBD | AJ21: Urban | AK21: APA GasNet
B22: APA VTS | C22: APA VTS Australia (Operations) Pty Ltd | D22: 65083009 | E22: Vic | F22: Gas | G22: Transmission | H22: Tariff cap | I22: Financial | J22: June | K22: 5 | L22: 5 | M22: 5 | N22: x | P22: Level 19, HSBC Building | Q22: 580 George Street | R22: SYDNEY | S22: NSW | T22: 2000 | U22: PO Box R41 | W22: ROYAL EXCHANGE | X22: NSW | Y22: 1225 | Z22: NO | AA22: NO | AB22: NO | AC22: NO | AD22: NO | AE22: CBD | AF22: Urban | AG22: Short rural | AH22: Long rural | AJ22: NO | AK22: APA VTS
B23: AusNet (Gas) | C23: AusNet Gas Services | D23: 086015036 | E23: Vic | F23: Gas | G23: Distribution | H23: Tariff cap | I23: Financial | J23: June | K23: 5 | L23: 5 | M23: 5 | N23: - | O23: - | P23: Level 31 | Q23: 2 Southbank Boulevard | R23: SOUTHBANK | S23: Vic | T23: 3008 | X23: Vic | Z23: NO | AA23: NO | AB23: NO | AC23: NO | AD23: NO | AE23: CBD | AF23: Urban | AG23: Short rural | AH23: Long rural | AJ23: NO | AK23: AusNet (Gas)
B24: Australian Distribution Co. (Gas) | C24: Australian Gas Distribution Co. | D24: 11222333444 | E24: Vic | F24: Gas | G24: Distribution | H24: Tariff cap | I24: Financial | J24: June | K24: 5 | L24: 5 | M24: 5 | N24: - | O24: - | P24: 123 Straight Street | R24: MELBOURNE | S24: Vic | T24: 3000 | U24: PO Box 123 | W24: MELBOURNE | X24: Vic | Y24: 3000 | Z24: NO | AA24: NO | AB24: NO | AC24: NO | AD24: NO | AE24: CBD | AF24: Urban | AG24: Short rural | AH24: Long rural | AJ24: NO | AK24: Australian Distribution Co. (Gas)
B25: Australian Transmission Co. (Gas) | C25: Australian Transmission Co. (Gas) | D25: 11222333444 | E25: NSW | F25: Gas | G25: Transmission | H25: Tariff cap | I25: Financial | J25: June | K25: 5 | L25: 5 | M25: 5 | N25: 5 | O25: transmission determination | P25: 123 Straight Street | R25: SYDNEY | S25: NSW | T25: 2000 | U25: PO Box 123 | W25: SYDNEY | X25: NSW | Y25: 2000 | Z25: NO | AA25: NO | AB25: NO | AC25: NO | AD25: NO | AE25: CBD | AF25: Urban | AG25: Short rural | AH25: Long rural | AJ25: NO | AK25: Australian Transmission Co. (Gas)
B26: Evoenergy Gas | C26: Icon Distribution Investments Limited (ABN 83 073 025 224) and Jemena Networks (ACT) Pty Ltd (ABN 24 008 552 663) | D26: 76670568688 | E26: ACT | F26: Gas | G26: Distribution | H26: Tariff cap | I26: Financial | J26: June | K26: 5 | L26: 5 | M26: 5 | N26: x | P26: 40 Bunda Street | R26: CANBERRA | S26: ACT | T26: 2600 | U26: GPO BOX 366 | W26: CANBERRA | X26: ACT | Y26: 2601 | Z26: NO | AA26: NO | AB26: NO | AC26: NO | AD26: NO | AE26: CBD | AF26: Urban | AG26: Short rural | AH26: Long rural | AJ26: NO | AK26: Evoenergy Gas
B27: JGN | C27: Jemena Gas Networks (NSW) Ltd | D27: 003 004 322 | E27: NSW | F27: Gas | G27: Distribution | H27: Tariff cap | I27: Financial | J27: June | K27: 5 | L27: 5 | M27: 5 | Z27: NO | AA27: NO | AB27: NO | AC27: NO | AD27: NO | AE27: CBD | AF27: Urban | AG27: Short rural | AH27: Long rural | AJ27: NO | AK27: JGN
B28: Multinet Gas | C28: Multinet Gas (DB No.1) Pty Ltd (ACN 086 026 986), Multinet Gas (DB No.2) Pty Ltd (ACN 086 230 122) | D28: 086026986 | E28: Vic | F28: Gas | G28: Distribution | H28: Tariff cap | I28: Financial | J28: June | K28: 5 | L28: 5 | M28: 5 | N28: x | P28: 43-45 Centreway | R28: MT WAVERLEY | S28: Vic | T28: 3149 | X28: Vic | Z28: NO | AA28: NO | AB28: NO | AC28: NO | AD28: NO | AE28: CBD | AF28: Urban | AG28: Short rural | AH28: Long rural | AJ28: NO | AK28: Multinet Gas
B29: Roma to Brisbane Pipeline | C29: APT Petroleum Pipelines Limited t/a Roma to Brisbane Pipeline | D29: 009 737 393 | E29: Qld | F29: Gas | G29: Transmission | H29: Tariff cap | I29: Financial | J29: June | K29: 5 | L29: 5 | M29: 5 | N29: x | O29: n/a | P29: 580 George Street | R29: SYDNEY | S29: NSW | T29: 2000 | U29: PO Box R41 | W29: ROYAL EXCHANGE | X29: NSW | Y29: 1225 | Z29: NO | AA29: NO | AB29: NO | AC29: NO | AD29: NO | AE29: CBD | AF29: Urban | AG29: Short rural | AH29: Long rural | AJ29: NO | AK29: Roma to Brisbane Pipeline
B34: The Reg Year Ending (dms_RYE) must be set to the last year of the regulatory period. For forecast data is is usually (FRCP_y5) for actual it is a single year (CRY). For historical actual data the RYE will need to be set manually in the business details sheet by setting the dms_Multiyear_flag to 1 and putting the correct value in 'dms_Specified_FinalYear. See cells C67:C68
B35: dms_Model_List | C35: dms_Model_Name_Format1 | D35: dms_Worksheet_List | E35: dms_Model_Span_List
B36: ARR | C36: Annual Reporting | D36: =IF(dms_MultiYear_ResponseFlag="yes","NEW HISTORICAL ANNUAL REPORTING","ANNUAL REPORTING") -> ANNUAL REPORTING | E36: 1
B37: CA | C37: Category Analysis | D37: =IF(dms_MultiYear_ResponseFlag="yes","NEW HISTORICAL CATEGORY ANALYSIS","CATEGORY ANALYSIS") -> CATEGORY ANALYSIS | E37: 1
B38: CESS | C38: Capitlal Expenditure | D38: CAPITLAL EXPENDITURE SHARING SCHEMING | E38: 5
B39: CPI | C39: CPI | D39: CPI | E39: 5
B40: EB | C40: Economic Benchmarking | D40: =IF(dms_MultiYear_ResponseFlag="yes","NEW HISTORICAL ECONOMIC BENCHMARKING","ECONOMIC BENCHMARKING") -> ECONOMIC BENCHMARKING | E40: 1
B41: EBSS | C41: Efficiency Benefit Sharing Scheme | D41: EFFICIENCY BENEFIT SHARING SCHEME | E41: 5
B42: Pricing | C42: Pricing Proposal | D42: PRICING PROPOSAL | E42: 5
B43: Profitability | C43: Profitability | D43: PROFITABILITY | E43: 5
B44: PTRM | C44: Post Tax Revenue Model | D44: POST TAX REVENUE MODEL | E44: 5
B45: Reset | C45: Regulatory Reporting (Reset) | D45: REGULATORY REPORTING STATEMENT | E45: 5
B46: RFM | C46: Roll Forward Model | D46: ROLL FORWARD MODEL | E46: 5
B47: WACC | C47: Weighted Average Cost of Capital | D47: WEIGHTED AVERAGE COST OF CAPITAL | E47: 1
B51: Financial | C51: Calendar | E51: PREVIOUS | G51: CURRENT | I51: FORTHCOMING
B52: 1987-88 | C52: 1988 | D52: PRCP_y1 | E52: =INDEX(INDIRECT(dms_RPT),dms_PRCP_start_row) -> 2013-14 | F52: CRCP_y1 | G52: =INDEX(INDIRECT(dms_RPT),dms_CRCP_start_row) -> 2018-19 | H52: =FRCP_y1 -> 2023-24 | I52: =INDEX(INDIRECT(dms_RPT),dms_FRCP_start_row) -> 2023-24
B53: 1988-89 | C53: 1989 | D53: PRCP_y2 | E53: =INDEX(INDIRECT(dms_RPT),dms_PRCP_start_row+1) -> 2014-15 | F53: CRCP_y2 | G53: =INDEX(INDIRECT(dms_RPT),dms_CRCP_start_row+1) -> 2019-20 | H53: FRCP_y2 | I53: =INDEX(INDIRECT(dms_RPT),dms_FRCP_start_row+1) -> 2024-25
B54: 1989-90 | C54: 1990 | D54: PRCP_y3 | E54: =INDEX(INDIRECT(dms_RPT),dms_PRCP_start_row+2) -> 2015-16 | F54: CRCP_y3 | G54: =INDEX(INDIRECT(dms_RPT),dms_CRCP_start_row+2) -> 2020-21 | H54: FRCP_y3 | I54: =INDEX(INDIRECT(dms_RPT),dms_FRCP_start_row+2) -> 2025-26
B55: 1990-91 | C55: 1991 | D55: PRCP_y4 | E55: =INDEX(INDIRECT(dms_RPT),dms_PRCP_start_row+3) -> 2016-17 | F55: CRCP_y4 | G55: =INDEX(INDIRECT(dms_RPT),dms_CRCP_start_row+3) -> 2021-22 | H55: FRCP_y4 | I55: =INDEX(INDIRECT(dms_RPT),dms_FRCP_start_row+3) -> 2026-27
B56: 1991-92 | C56: 1992 | D56: PRCP_y5 | E56: =INDEX(INDIRECT(dms_RPT),dms_PRCP_start_row+4) -> 2017-18 | F56: CRCP_y5 | G56: =INDEX(INDIRECT(dms_RPT),dms_CRCP_start_row+4) -> 2022-23 | H56: FRCP_y5 | I56: =INDEX(INDIRECT(dms_RPT),dms_FRCP_start_row+4) -> 2027-28
B57: 1992-93 | C57: 1993 | D57: PRCP_y6 | E57: =INDEX(INDIRECT(dms_RPT),dms_PRCP_start_row+5) -> 2018-19 | F57: CRCP_y6 | G57: =INDEX(INDIRECT(dms_RPT),dms_CRCP_start_row+5) -> 2023-24 | H57: FRCP_y6 | I57: =INDEX(INDIRECT(dms_RPT),dms_FRCP_start_row+5) -> 2028-29
B58: 1993-94 | C58: 1994 | D58: PRCP_y7 | E58: =INDEX(INDIRECT(dms_RPT),dms_PRCP_start_row+6) -> 2019-20 | F58: CRCP_y7 | G58: =INDEX(INDIRECT(dms_RPT),dms_CRCP_start_row+6) -> 2024-25 | H58: FRCP_y7 | I58: =INDEX(INDIRECT(dms_RPT),dms_FRCP_start_row+6) -> 2029-30
B59: 1994-95 | C59: 1995 | D59: PRCP_y8 | E59: =INDEX(INDIRECT(dms_RPT),dms_PRCP_start_row+7) -> 2020-21 | F59: CRCP_y8 | G59: =INDEX(INDIRECT(dms_RPT),dms_CRCP_start_row+7) -> 2025-26 | H59: FRCP_y8 | I59: =INDEX(INDIRECT(dms_RPT),dms_FRCP_start_row+7) -> 2030-31
B60: 1995-96 | C60: 1996 | D60: PRCP_y9 | E60: =INDEX(INDIRECT(dms_RPT),dms_PRCP_start_row+8) -> 2021-22 | F60: CRCP_y9 | G60: =INDEX(INDIRECT(dms_RPT),dms_CRCP_start_row+8) -> 2026-27 | H60: FRCP_y9 | I60: =INDEX(INDIRECT(dms_RPT),dms_FRCP_start_row+8) -> 2031-32
B61: 1996-97 | C61: 1997 | D61: PRCP_y10 | E61: =INDEX(INDIRECT(dms_RPT),dms_PRCP_start_row+9) -> 2022-23 | F61: CRCP_y10 | G61: =INDEX(INDIRECT(dms_RPT),dms_CRCP_start_row+9) -> 2027-28 | H61: FRCP_y10 | I61: =INDEX(INDIRECT(dms_RPT),dms_FRCP_start_row+9) -> 2032-33
B62: 1997-98 | C62: 1998 | D62: PRCP_y11 | E62: =INDEX(INDIRECT(dms_RPT),dms_PRCP_start_row+10) -> 2023-24 | F62: CRCP_y11 | G62: =INDEX(INDIRECT(dms_RPT),dms_CRCP_start_row+10) -> 2028-29 | H62: FRCP_y11 | I62: =INDEX(INDIRECT(dms_RPT),dms_FRCP_start_row+10) -> 2033-34
B63: 1998-99 | C63: 1999 | D63: PRCP_y12 | E63: =INDEX(INDIRECT(dms_RPT),dms_PRCP_start_row+11) -> 2024-25 | F63: CRCP_y12 | G63: =INDEX(INDIRECT(dms_RPT),dms_CRCP_start_row+11) -> 2029-30 | H63: FRCP_y12 | I63: =INDEX(INDIRECT(dms_RPT),dms_FRCP_start_row+11) -> 2034-35
B64: 1999-00 | C64: 2000 | D64: PRCP_y13 | E64: =INDEX(INDIRECT(dms_RPT),dms_PRCP_start_row+12) -> 2025-26 | F64: CRCP_y13 | G64: =INDEX(INDIRECT(dms_RPT),dms_CRCP_start_row+12) -> 2030-31 | H64: FRCP_y13 | I64: =INDEX(INDIRECT(dms_RPT),dms_FRCP_start_row+12) -> 2035-36
B65: 2000-01 | C65: 2001 | D65: PRCP_y14 | E65: =INDEX(INDIRECT(dms_RPT),dms_PRCP_start_row+13) -> 2026-27 | F65: CRCP_y14 | G65: =INDEX(INDIRECT(dms_RPT),dms_CRCP_start_row+13) -> 2031-32 | H65: FRCP_y14 | I65: =INDEX(INDIRECT(dms_RPT),dms_FRCP_start_row+13) -> 2036-37
B66: 2001-02 | C66: 2002 | D66: PRCP_y15 | E66: =INDEX(INDIRECT(dms_RPT),dms_PRCP_start_row+14) -> 2027-28 | F66: CRCP_y15 | G66: =INDEX(INDIRECT(dms_RPT),dms_CRCP_start_row+14) -> 2032-33 | H66: FRCP_y15 | I66: =INDEX(INDIRECT(dms_RPT),dms_FRCP_start_row+14) -> 
B67: 2002-03 | C67: 2003 | D67: PRCP_y16 | E67: =INDEX(INDIRECT(dms_RPT),dms_PRCP_start_row+15) -> 2028-29 | F67: CRCP_y16 | G67: =INDEX(INDIRECT(dms_RPT),dms_CRCP_start_row+15) -> 2033-34 | H67: FRCP_y16 | I67: =INDEX(INDIRECT(dms_RPT),dms_FRCP_start_row+15) -> 
B68: 2003-04 | C68: 2004
B69: 2004-05 | C69: 2005
B70: 2005-06 | C70: 2006 | E70: CRY - FRY
B71: 2006-07 | C71: 2007 | D71: dms_y1 | E71: =IFERROR(INDEX(INDIRECT(dms_RPT),dms_CRY_start_row),0) -> 2021-22
B72: 2007-08 | C72: 2008 | D72: dms_y2 | E72: =IFERROR(INDEX(INDIRECT(dms_RPT),dms_CRY_start_row+1),0) -> 2022-23
B73: 2008-09 | C73: 2009 | D73: dms_y3 | E73: =IFERROR(INDEX(INDIRECT(dms_RPT),dms_CRY_start_row+2),0) -> 2023-24
B74: 2009-10 | C74: 2010 | D74: dms_y4 | E74: =IFERROR(INDEX(INDIRECT(dms_RPT),dms_CRY_start_row+3),0) -> 2024-25
B75: 2010-11 | C75: 2011 | D75: dms_y5 | E75: =IFERROR(INDEX(INDIRECT(dms_RPT),dms_CRY_start_row+4),0) -> 2025-26
B76: 2011-12 | C76: 2012 | D76: dms_y6 | E76: =IFERROR(INDEX(INDIRECT(dms_RPT),dms_CRY_start_row+5),0) -> 2026-27
B77: 2012-13 | C77: 2013 | D77: dms_y7 | E77: =IFERROR(INDEX(INDIRECT(dms_RPT),dms_CRY_start_row+6),0) -> 2027-28
B78: 2013-14 | C78: 2014 | D78: dms_y8 | E78: =IFERROR(INDEX(INDIRECT(dms_RPT),dms_CRY_start_row+7),0) -> 2028-29
B79: 2014-15 | C79: 2015 | D79: dms_y9 | E79: =IFERROR(INDEX(INDIRECT(dms_RPT),dms_CRY_start_row+8),0) -> 2029-30
B80: 2015-16 | C80: 2016 | D80: dms_y10 | E80: =IFERROR(INDEX(INDIRECT(dms_RPT),dms_CRY_start_row+9),0) -> 2030-31
B81: 2016-17 | C81: 2017 | D81: dms_y11 | E81: =IFERROR(INDEX(INDIRECT(dms_RPT),dms_CRY_start_row+10),0) -> 2031-32
B82: 2017-18 | C82: 2018 | D82: dms_y12 | E82: =IFERROR(INDEX(INDIRECT(dms_RPT),dms_CRY_start_row+11),0) -> 2032-33
B83: 2018-19 | C83: 2019 | D83: dms_y13 | E83: =IFERROR(INDEX(INDIRECT(dms_RPT),dms_CRY_start_row+12),0) -> 2033-34
B84: 2019-20 | C84: 2020 | D84: dms_y14 | E84: =IFERROR(INDEX(INDIRECT(dms_RPT),dms_CRY_start_row+13),0) -> 2034-35
B85: 2020-21 | C85: 2021 | D85: dms_y15 | E85: =IFERROR(INDEX(INDIRECT(dms_RPT),dms_CRY_start_row+14),0) -> 2035-36
B86: 2021-22 | C86: 2022 | D86: dms_y16 | E86: =IFERROR(INDEX(INDIRECT(dms_RPT),dms_CRY_start_row+15),0) -> 2036-37
B87: 2022-23 | C87: 2023
B88: 2023-24 | C88: 2024
B89: 2024-25 | C89: 2025
B90: 2025-26 | C90: 2026
B91: 2026-27 | C91: 2027
B92: 2027-28 | C92: 2028
B93: 2028-29 | C93: 2029
B94: 2029-30 | C94: 2030
B95: 2030-31 | C95: 2031
B96: 2031-32 | C96: 2032
B97: 2032-33 | C97: 2033
B98: 2033-34 | C98: 2034
B99: 2034-35 | C99: 2035
B100: 2035-36 | C100: 2036
B101: 2036-37 | C101: 2037

Sheet AER ETL (hidden)
B1: AER ETL INFORMATION
B3: USES NAMED RANGES FLAG | C3: yes | D3: dms_Defined_Names_Used
B5: IF THIS IS AN ABC RIN - make sure the the named range CRY is applied and the named range dms_dollar_nom_UOM is applied
B6: IF THIS IS A RESET RIN - make sure the named ranges CRY and dms_dollar_nom_UOM are NOT present in the workbook
B7: FOR ABC RINS THAT SPAN MULTIPLE YEARS - make sure MultiYear Flag is set and final year entered as required
B9: Full trading name | C9: =INDEX(dms_TradingNameFull_List,MATCH(dms_TradingName,dms_TradingName_List)) -> Multinet Gas (DB No.1) Pty Ltd (ACN 086 026 986), Multinet Gas (DB No.2) Pty Ltd (ACN 086 230 122) | E9: dms_TradingNameFull
B10: Trading name | C10: =dms_TradingName -> Multinet Gas
A11: Selected here | B11: Model / RIN | C11: Reset | D11: dms_Model
A12: Read from Business & other details | B12: Source | C12: Regulatory proposal | D12: dms_Source
B13: Data quality | C13: Consolidated | D13: For DB purposes this is always Consoldiated
B14: Data status | C14: Public | D14: For DB purposes this is always Public
B15: Amendment reason | C15: =dms_Amendment_Text -> . | F15: dms_AmendmentReason
B16: Submission date | C16: =dms_Typed_Submission_Date -> 2022-07-01 | D16: dms_SubmissionDate
A18: Redundant | B18: EBSS - First application of scheme in forthcoming period? | C18: No
A19: Pre-populated from lookup table | B19: Data ingestion data quality | C19: Consolidated | D19: dms_DataQuality | E19: Always Consolidated
B20: Sector | C20: =INDEX(dms_Sector_List,MATCH(dms_TradingName,dms_TradingName_List)) -> Gas | D20: dms_Sector | E20: =INDEX(dms_Sector_List,MATCH(dms_TradingName,dms_TradingName_List))
B21: Segment | C21: =INDEX(dms_Segment_List,MATCH(dms_TradingName,dms_TradingName_List)) -> Distribution | D21: dms_Segment | E21: =INDEX(dms_Segment_List,MATCH(dms_TradingName,dms_TradingName_List))
B22: Regulatory Year Ending | C22: =IF(dms_MultiYear_Flag=1,LEFT(dms_Specified_FinalYear,2)&RIGHT(dms_Specified_FinalYear,2),dms_RYE_result) -> 2028 | D22: dms_RYE | E22: =IF(dms_MultiYear_Flag=1,LEFT(dms_Specified_FinalYear,2)&RIGHT(dms_Specified_FinalYear,2),dms_RYE_result)
B23: Reporting Period Type | C23: =INDEX(dms_RPT_List,MATCH(dms_TradingName,dms_TradingName_List)) -> Financial | D23: dms_RPT | E23: =INDEX(dms_RPT_List,MATCH(dms_TradingName,dms_TradingName_List))
B24: EB/CA Unit of Measure for Monetary Values | C24: $0s | D24: dms_dollar_nom_UOM | E24: If the cover sheet is attached to an ABC RIN apply the NAMED RANGE to the cell
B25: Security Classification | C25: Public | D25: dms_Classification | E25: Always Public
B26: Jurisdiction | C26: =INDEX(dms_JurisdictionList,MATCH(dms_TradingName,dms_TradingName_List)) -> Vic | D26: dms_Jurisdiction | E26: =INDEX(dms_JurisdictionList,MATCH(dms_TradingName,dms_TradingName_List))
A27: Relevant for PTRM, RFMs and Reset RINS | B27: $ REAL REFERENCES
B28: Does the named range CRY exist in this file? | C28: =IFERROR(CRY,"NO") -> NO
B29: CRY-1 (last full calendar year before CRY) | C29: =IFERROR(IF(dms_RPT="calendar",CRY-1,LEFT(CRY,4)),"CRY not present") -> CRY not present | D29: dms_Cal_Year_B4_CRY | E29: '=IF(dms_RPT="financial",VALUE(LEFT(dms_SingleYear_FinalYear_Result,4)),VALUE(LEFT(dms_SingleYear_FinalYear_Result,4)-1))
B30: Dollar $ real month | C30: =INDEX(dms_RPTMonth_List,MATCH(dms_TradingName,dms_TradingName_List)) -> June | D30: dms_RPTMonth | E30: =INDEX(dms_RPTMonth_List,MATCH(dms_TradingName,dms_TradingName_List))
B31: Dollar $ real (the last month before the FRCP_y1) | C31: =IF(dms_Model="RFM",dms_DollarReal_Prev, IF(dms_SingleYearModel="yes",CONCATENATE(dms_RPTMonth)&" "&VALUE((LEFT(dms_CRY_start_year,2)&RIGHT(dms_CRY_start_year,2))),CONCATENATE(dms_RPTMonth)&" "&dms_DollarReal_year)) -> June 2023 | D31: dms_DollarReal | E31: =IF(dms_Model="RFM",dms_DollarReal_Prev, IF(dms_SingleYearModel="yes",CONCATENATE(dms_RPTMonth)&" "&VALUE((LEFT(dms_CRY_start_year,2)&RIGHT(dms_CRY_start_year,2))),CONCATENATE(dms_RPTMonth)&" "&dms_DollarReal_year))
B32: Dollar $ real previous year (PRCP_y5) | C32: December 2017 | D32: dms_DollarReal_Prev | E32: =IF(SUM(dms_SingleYear_Model)>0,CONCATENATE(dms_RPTMonth)&" "&VALUE(((LEFT(CRY,2))&RIGHT(CRY,2))-1),CONCATENATE(dms_RPTMonth)&" "&VALUE(((LEFT(dms_CRCP_FirstYear_Result,2)&RIGHT(dms_CRCP_FirstYear_Result,2))))-1)
B33: PTRM/ RFMs
B34: Form of control | C34: =INDEX(dms_FormControl_List,MATCH(dms_TradingName,dms_TradingName_List)) -> Tariff cap | D34: dms_FormControl | E34: =INDEX(dms_FormControl_List,MATCH(dms_TradingName,dms_TradingName_List))
A35: All potential values for Regulatory Years or RYEs as calculated | B35: This block works out the various RYE's for ALL RIN types and MODELS
B36: dms_start_year | C36: =FRCP_y1 -> 2023-24 | D36: =FRCP_y1 | E36: FRCP_y1 from cover sheet
B37: dms_CRY_start_year | C37: =IFERROR(CRY,CRCP_y4) -> 2021-22 | D37: =IFERROR(CRY,CRCP_y4)
B38: dms_CRY_start_row | C38: =IFERROR(MATCH(dms_CRY_start_year,INDIRECT(dms_RPT),0),0) -> 35 | D38: =IFERROR(MATCH(dms_CRY_start_year,INDIRECT(dms_RPT),0),0)
B39: dms_FRCP_start_row | C39: =MATCH(dms_start_year,INDIRECT(dms_RPT),0) -> 37 | D39: =MATCH(dms_start_year,INDIRECT(dms_RPT),0) | E39: Uses FRCP_y1 as a start reference
B40: dms_CRCP_start_row | C40: =dms_FRCP_start_row-dms_CRCPlength_Num -> 32 | D40: =dms_FRCP_start_row-dms_CRCPlength_Num | E40: Uses the value in dms_CRCPlength_Num
B41: dms_PRCP_start_row | C41: =dms_FRCP_start_row-dms_CRCPlength_Num-dms_PRCPlength_Num -> 27 | D41: =dms_FRCP_start_row-dms_CRCPlength_Num-dms_PRCPlength_Num | E41: Uses the value in dms_CRCPlength_Num and dms_PRCPlength_Num
B42: dms_RYE_start_row | C42: =dms_FRCP_start_row+(dms_FRCPlength_Num-1) -> 41 | D42: =dms_FRCP_start_row+(dms_FRCPlength_Num-1) | E42: Uses the value in dms_FRCPlength_Num-1
B43: FRCP_start_year | C43: =INDEX(INDIRECT(dms_RPT),dms_FRCP_start_row) -> 2023-24 | D43: =INDEX(INDIRECT(dms_RPT),dms_FRCP_start_row) | E43: Converts the FRCP start row to display the year
B44: CRCP_start_year | C44: =INDEX(INDIRECT(dms_RPT),dms_CRCP_start_row) -> 2018-19 | D44: =INDEX(INDIRECT(dms_RPT),dms_CRCP_start_row) | E44: Converts the CRCP start row to display the year
B45: PRCP_start_year | C45: =INDEX(INDIRECT(dms_RPT),dms_PRCP_start_row) -> 2013-14 | D45: =INDEX(INDIRECT(dms_RPT),dms_PRCP_start_row) | E45: Converts the PRCP start row to display the year
B46: FRCP_final_year | C46: =INDEX(INDIRECT(dms_RPT),dms_FRCP_start_row+dms_FRCPlength_Num-1) -> 2027-28 | D46: =INDEX(INDIRECT(dms_RPT),dms_FRCP_start_row+dms_FRCPlength_Num-1) | E46: Finds the FRCP final year
B47: CRCP_final_year | C47: =INDEX(INDIRECT(dms_RPT),dms_CRCP_start_row+dms_CRCPlength_Num-1) -> 2022-23 | D47: =INDEX(INDIRECT(dms_RPT),dms_CRCP_start_row+dms_CRCPlength_Num-1) | E47: Finds the CRCP final year
B48: PRCP_final_year | C48: =INDEX(INDIRECT(dms_RPT),dms_PRCP_start_row+dms_FRCPlength_Num-1) -> 2017-18 | D48: =INDEX(INDIRECT(dms_RPT),dms_PRCP_start_row+dms_FRCPlength_Num-1) | E48: Finds the PRCP final year
B49: dms_Reset_final_year | C49: =INDEX(INDIRECT(dms_RPT),dms_RYE_start_row) -> 2027-28 | D49: =INDEX(INDIRECT(dms_RPT),dms_RYE_start_row) | E49: For Resets and PTRM/RFMs (same as FRCP_final_year)
B50: dms_SpecifiedYear_final_year | C50: =FRY -> 2027-28 | D50: =FRY | E50: FRY from cover sheet
B51: dms_DollarReal_year | C51: =LEFT(CRCP_final_year,2)&RIGHT(CRCP_final_year,2) -> 2023 | D51: =LEFT(CRCP_final_year,2)&RIGHT(CRCP_final_year,2) | E51: Uses the value in CRCP_final_year
B52: dms_Previous_DollarReal_year | C52: =LEFT(PRCP_final_year,2)&RIGHT(PRCP_final_year,2) -> 2018 | D52: =LEFT(PRCP_final_year,2)&RIGHT(PRCP_final_year,2) | E52: Uses the value in PRCP_final_year
B53: dms_CRY_RYE | C53: =IFERROR(LEFT(CRY,2)&RIGHT(CRY,2),0) -> 0 | D53: =IFERROR(LEFT(CRY,2)&RIGHT(CRY,2),0) | E53: For ABC single year RINS
B54: dms_Reset_RYE | C54: =IF(dms_Model_Span>1,IF(dms_Model="RFM",(LEFT(dms_DollarReal_year,2)&RIGHT(dms_DollarReal_year,2)),(LEFT(dms_Reset_final_year,2)&RIGHT(dms_Reset_final_year,2))),0) -> 2028 | D54: =IF(dms_Model_Span>1,IF(dms_Model="RFM",(LEFT(dms_DollarReal_year,2)&RIGHT(dms_DollarReal_year,2)),(LEFT(dms_Reset_final_year,2)&RIGHT(dms_Reset_final_year,2))),0) | E54: If model span > 1 then uses dms_Reset_RYE otherwise it's a multi year ABC and uses dms_Specified_RYE
B55: dms_Specified_RYE | C55: =IF(dms_MultiYear_ResponseFlag="Yes",(LEFT(dms_Specified_FinalYear,2)&RIGHT(dms_Specified_FinalYear,2)),0) -> 0 | D55: =IF(dms_MultiYear_ResponseFlag="Yes",(LEFT(dms_Specified_FinalYear,2)&RIGHT(dms_Specified_FinalYear,2)),0) | E55: If multi year ABC - uses dms_Specified_FinalYear
B56: dms_Model_Span | C56: =INDEX(dms_Model_Span_List,MATCH(dms_Model,dms_Model_List)) -> 5 | D56: =INDEX(dms_Model_Span_List,MATCH(dms_Model,dms_Model_List)) | E56: A result of 5 is used to signify that it is more than 1 year span
B57: dms_RYE_result | C57: =IF(dms_MultiYear_ResponseFlag="yes",dms_Specified_RYE,(IF(dms_Model_Span>1,dms_Reset_RYE,dms_CRY_RYE))) -> 2028 | D57: =IF(dms_MultiYear_ResponseFlag="yes",dms_Specified_RYE,(IF(dms_Model_Span>1,dms_Reset_RYE,dms_CRY_RYE))) | E57: Nested IF - feeds into dms_RYE
B58: dms_Reset_Span | C58: =IF(dms_Reset_RYE>0,CONCATENATE(FRCP_y1," to ",FRCP_final_year),0) -> 2023-24 to 2027-28 | D58: =IF(dms_Reset_RYE>0,CONCATENATE(FRCP_y1," to ",FRCP_final_year),0) | E58: Reset span of years as text
B59: dms_SpecifiedYear_Span | C59: =IF(dms_Specified_RYE>0,CONCATENATE(CRY," to ",dms_Specified_FinalYear),0) -> 0 | D59: =IF(dms_Specified_RYE>0,CONCATENATE(CRY," to ",dms_Specified_FinalYear),0) | E59: Multi year ABC span of years as text
B60: dms_Header_Span | C60: =IF(dms_MultiYear_Flag=1,dms_SpecifiedYear_Span,IF(dms_Model_Span>1,dms_y1&" to "&FRCP_final_year,CRY)) -> 2021-22 to 2027-28 | D60: =IF(dms_MultiYear_Flag=1,dms_SpecifiedYear_Span,IF(dms_Model_Span>1,dms_Reset_Span,CRY)) | E60: NESTED IF - for Sheet Headers
B61: ABC RINS THAT SPAN MULTIPLE YEARS
B62: This is a multi year ABC RIN? | C62: No
C63: =IF(dms_MultiYear_ResponseFlag="No",0,1) -> 0 | D63: dms_MultiYear_Flag | E63: This is set from the answer provided above
C64: =IF(dms_MultiYear_Flag=1,FRY,"not a Multiple year submission") -> not a Multiple year submission | D64: dms_Specified_FinalYear | E64: The result here is returned to dms_CRCP_FinalYear_Result if response to Q in C73 is "yes" and dms_MultiYear_Flag is set to 1
B65: Start year for 5.2 in Multi year ABC RINS | C65: =IFERROR(IF(dms_MultiYear_Flag=1,FRY,CRY),"not an ABC") -> not an ABC | D65: dms_0502_Inst_Year | E65: =IF(dms_MultiYear_Flag=1,FRY,CRY) | G65: For single year RINS this is CRY - multi year RINS need to start a the end of the span of years (ie. FRY)
B66: WHAT IS THE RYE?
B67: Reg Period Lengths
B68: PRCP length in years | C68: =INDEX(dms_PRCPlength_List,MATCH(dms_TradingName,dms_TradingName_List)) -> 5 | D68: dms_PRCPlength_Num | E68: =INDEX(dms_PRCPlength_List,MATCH(dms_TradingName,dms_TradingName_List))
B69: CRCP length in years | C69: =INDEX(dms_CRCPlength_List,MATCH(dms_TradingName,dms_TradingName_List)) -> 5 | D69: dms_CRCPlength_Num | E69: =INDEX(dms_CRCPlength_List,MATCH(dms_TradingName,dms_TradingName_List))
B70: FRCP length in years | C70: =INDEX(dms_FRCPlength_List,MATCH(dms_TradingName,dms_TradingName_List)) -> 5 | D70: dms_FRCPlength_Num | E70: =INDEX(dms_FRCPlength_List,MATCH(dms_TradingName,dms_TradingName_List))
B71: Single year RIN?
B72: Single Year ABC RIN ? | C72: =IF(dms_Model="EB",1,0) -> 0 | D72: dms_EB
C73: =IF(dms_Model="CA",1,0) -> 0 | D73: dms_CA | E73: =dms_SingleYear_Model
C74: =IF(dms_Model="ARR",1,0) -> 0 | D74: dms_ARR
B75: Is this a single Year ABC RIN? | C75: =IF(SUM(dms_SingleYear_Model)=1,"yes","no") -> no | D75: dms_SingleYearModel | E75: =IF(SUM(dms_SingleYear_Model)=1,"yes","no")
B76: Single Year Final Year Result | C76: =IF(AND(dms_SingleYearModel="yes",dms_MultiYear_Flag=0),CRY,0) -> 0 | D76: dms_SingleYear_FinalYear_Result | E76: =IFERROR(IF(SUM(dms_SingleYear_Model)<>0,(INDIRECT(dms_SingleYear_FinalYear_Ref)),"not a single year RIN"),"CRY not present")
B77: Multi year RIN?
B79: Multi Year Reset/Model? | C79: =IF(dms_Model_Span>1,"yes","no") -> yes
B80: Final year result for Reset/Model | C80: =IF(dms_Model_Span>1,dms_Reset_final_year,0) -> 2027-28 | D80: dms_MultiYear_FinalYear_Result | E80: dms_CRCP_FinalYear_Result
B82: Multi Year ABC RIN? | C82: =IF(dms_MultiYear_Flag=1,"yes","no") -> no | D82: dms_MultiYear_ABC_RIN
B83: Final year result for ABC multi year | C83: =IF(dms_MultiYear_Flag=1,C50,0) -> 0
B85: EB RINS
B86: Calendar Year for table 3.6 data | C86: =IFERROR(IF(dms_Segment="Transmission",dms_Cal_Year_B4_CRY,CRY),"CRY not present") -> CRY not present | D86: dms_0306_Year | E86: =IF(dms_Segment="Transmission",dms_Cal_Year_B4_CRY,CRY)
B87: CA RINS
B88: Find how many rows in tables 6.3 sustained interruptions? | E88: dms_060301_MaxRows only returns a valid value when cover sheet is attached to a CA file
C89: =IF(dms_Model<>"CA","not a CA","Is a CA") -> not a CA | E89: =IF(dms_Model<>"CA","not a CA","Is a CA")
B90: dms_060301_Avg_Duration_Sustained_Int_Values present? | C90: =IFERROR(IF(INDEX(dms_060301_Avg_Duration_Sustained_Int_Values,1,1)<>"","yes","no"),"no") -> no | D90: dms_060301_checkvalue | E90: =IFERROR(IF(INDEX(dms_060301_Avg_Duration_Sustained_Int_Values,1,1)<>"","yes","no"),"no")
C91: =IF(AND(dms_Model="CA",(dms_060301_checkvalue="no")),"error - NR not present","no errors") -> no errors | E91: =IF(AND(dms_Model="CA",(dms_060301_checkvalue="no")),"error - NR not present","no errors")
B92: Table 6.3.1 - last row reference | C92: =IFERROR(IF(dms_Model="CA",LOOKUP(2,1/(dms_060301_Avg_Duration_Sustained_Int_Values<>""),(ROW(dms_060301_Avg_Duration_Sustained_Int_Values))),"not a CA"),"6.3 not present") -> not a CA | D92: dms_060301_LastRow | E92: =IFERROR(IF(dms_Model="CA",LOOKUP(2,1/(dms_060301_Avg_Duration_Sustained_Int_Values<>""),(ROW(dms_060301_Avg_Duration_Sustained_Int_Values))),"not a CA"),"6.3 not present")
B93: Table 6.3.1 - max number rows | C93: =IFERROR(IF(dms_Model="CA",(dms_060301_LastRow-15),"not a CA"),"error") -> not a CA | D93: dms_060301_MaxRows | E93: =IFERROR(IF(dms_Model="CA",(dms_060301_LastRow-15),"not a CA"),"error")
B94: Table 6.6.3 - Public lighting repair - no. business days | C94: =INDEX(dms_663_List,MATCH(dms_TradingName,dms_TradingName_List)) -> x | D94: dms_663 | E94: =INDEX(dms_663_List,MATCH(dms_TradingName,dms_TradingName_List))
B95: ARR or RESET RINS
B96: How many rows in tables 6.1 or 6.7? (leap year?) | C96: insert dms_LeapYear NR if required | E96: 'dms_LeapYear is used to determine dms_060701_Max_Rows BUT it is only found on worksheet 6.1 or 6.7 and the date value in the cell is used to determine whether it is a leap year
B97: Is dms_LeapYear named range present? | C97: =IFERROR(IF(dms_LeapYear,"yes"),"no") -> no
B98: Table 6.7.1 - includes a leap year? | C98: =IFERROR(IF(MONTH(DATE(YEAR(dms_LeapYear),2,29))=2,"is a leap year","not a leap year"), "dms_LeapYear not present") -> dms_LeapYear not present | D98: dms_LeapYear_Result | E98: =IFERROR(IF(MONTH(DATE(YEAR(dms_LeapYear),2,29))=2,"is a leap year","not a leap year"),"dms_LeapYear not present")
B99: MaxRows if Reset and leap year | C99: =IF(dms_LeapYear_Result="is a leap year",1827,1826) -> 1826 | D99: dms_060701_Reset_MaxRows | E99: =IF(dms_LeapYear_Result="is a leap year",1827,1826) | H99: number of days present in Reset RIN table
B100: MaxRows if ARR and leap year | C100: =IF(dms_LeapYear_Result="is a leap year",366,365) -> 365 | D100: dms_060701_ARR_MaxRows | E100: =IF(dms_LeapYear_Result="is a leap year",366,365) | H100: number of days present in ARR RIN table
B101: Table 6.7.1 - Max Rows (leap year/ non leap year) | C101: =IF(dms_Model="ARR",dms_060701_ARR_MaxRows,IF(dms_Model="Reset",dms_060701_Reset_MaxRows,"not a relevant RIN type")) -> 1826 | D101: dms_060701_MaxRows | E101: =IF(dms_Model="ARR",dms_060701_ARR_MaxRows,IF(dms_Model="Reset",dms_060701_Reset_MaxRows,"not a relevant RIN type"))
B102: How many columns in 6.7? (4 or 5 feeder categories) | C102: =IF(dms_FifthFeeder_flag_NSP="NO","This NSP has only 4 feeder categories","This NSP has 5 feeder categories") -> This NSP has only 4 feeder categories
B103: Table 6.7.1 - Last column (# of feeder categories > 4) | C103: =IF(dms_FifthFeeder_flag_NSP="NO",10,12) -> 10 | D103: dms_060701_MaxCols | E103: =IF(dms_FifthFeeder_flag_NSP="NO",8,10)
B104: Table 6.7.1 - Number of offset rows | C104: =IF(dms_Model="ARR",15,9) -> 9 | D104: dms_060701_OffsetRows | E104: =IF(dms_Model="ARR",15,9)
B105: Start date for telephone answering in 6.1 or 6.7? | E105: Using 060101 as naming standard not 060701 for start dates
B106: Table 6.1.1 and 6.7.1 - Start Date as Text | C106: =IF(dms_SingleYearModel="yes",(CONCATENATE(IF(LEN(CRY)=4,"1-Jan-","1-Jul-"),LEFT(CRY,4))),(CONCATENATE(IF(LEN(PRCP_y4)=4,"1-Jan-","1-Jul-"),LEFT(PRCP_y4,4)))) -> 1-Jul-2016 | D106: dms_060101_StartDateTxt | E106: =IF(SUM(dms_SingleYear_Model)>1,(CONCATENATE(IF(LEN(CRY)=4,"1-Jan-","1-Jul-"),LEFT(CRY,4))),(CONCATENATE(IF(LEN(CRCP_y4)=4,"1-Jan-","1-Jul-"),LEFT(CRCP_y4,4))))
B107: Table 6.1.1 and 6.7.1 - Start Date as Date Value | C107: =DATEVALUE(dms_060701_StartDateTxt) -> 42552 | D107: dms_060101_StartDateVal | E107: =DATEVALUE(dms_060701_StartDateTxt)
B108: ARRs
B109: How many rows in table 6.8? | C109: insert dms_060801_StartCell NR if required | E109: dms_060801_StartCell is only found on worksheet 6.8 and is used to determine the starting date for the date range
B110: Is dms_060801_StartCell named range present? | C110: =IFERROR(IF((ROW(dms_060801_StartCell)-1)=1,"yes","yes"),"no") -> no | D110: Must be present for ARRs | E110: =IFERROR(IF((ROW(dms_060801_StartCell)-1)=1,"yes","yes"),"no")
B111: Table 6.8 - Number of offset rows | C111: 12 | D111: dms_0608_OffsetRows | E111: =IFERROR(IF(dms_Model="ARR",(ROW(dms_060801_StartCell)-1),"not an ARR"),"6.8 error")
B112: Table 6.8 - Last row | C112: =IFERROR(IF(dms_060801_StartCell<>"",IF(dms_Model="ARR",(LOOKUP(2,1/(dms_060801_01_Values<>""),(ROW(dms_060801_01_Values)))),"not an ARR"),0),"0") -> 0 | D112: dms_0608_LastRow | E112: =IFERROR(IF(dms_060801_StartCell<>"",IF(dms_Model="ARR",(LOOKUP(2,1/(dms_060801_01_Values<>""),(ROW(dms_060801_01_Values)))),"not an ARR"),0),"0")
B113: Table 6.8 - MaxRows | C113: =IFERROR(IF(dms_Model="ARR",(MAX(0,dms_0608_LastRow-dms_0608_OffsetRows)),"not an ARR"),"0") -> not an ARR | D113: dms_060801_MaxRows | E113: =IFERROR(IF(dms_Model="ARR",(MAX(0,dms_0608_LastRow-dms_0608_OffsetRows)),"not an ARR"),"0")
B114: TNSP RESET RINS
B115: Table 7.9.4 only appears in TNSPs Reset RIN
B116: Table 7.9.4 - first year | C116: =LEFT(PRCP_y3,4) -> 2015 | D116: dms_070904_Start_Year | E116: =LEFT(PRCP_y3,4)
B118: MISC
B119: Distribution Determination Reference | C119: =INDEX(dms_DeterminationRef_List,MATCH(dms_TradingName,dms_TradingName_List)) -> 0 | D119: dms_DeterminationRef
B120: Public lighting NSP? | C120: =INDEX(dms_Public_Lighting_List,MATCH(dms_TradingName,dms_TradingName_List)) -> NO | D120: dms_Public_Lighting | E120: =INDEX(dms_Public_Lighting_List,MATCH(dms_TradingName,dms_TradingName_List))
B121: CBD Feeder for this business | C121: =INDEX(dms_CBD_flag,MATCH(dms_TradingName,dms_TradingName_List)) -> NO | D121: dms_CBD_flag_NSP
B122: Urban Feeder for this business | C122: =INDEX(dms_Urban_flag,MATCH(dms_TradingName,dms_TradingName_List)) -> NO | D122: dms_Urban_flag_NSP
B123: Short rural Feeder for this business | C123: =INDEX(dms_ShortRural_flag,MATCH(dms_TradingName,dms_TradingName_List)) -> NO | D123: dms_ShortRural_flag_NSP
B124: Long rural Feeder for this business | C124: =INDEX(dms_LongRural_flag,MATCH(dms_TradingName,dms_TradingName_List)) -> NO | D124: dms_LongRural_flag_NSP
B125: Fifth Feeder Category (eg. TasNetworks (D)) | C125: =INDEX(dms_FeederType_5_flag,MATCH(dms_TradingName,dms_TradingName_List)) -> NO | D125: dms_FifthFeeder_flag_NSP | E125: =INDEX(dms_FeederType_5_flag,MATCH(dms_TradingName,dms_TradingName_List))
B127: DISCARD FILES
B128: discard this record? | C128: NO | D128: dms_DISCARD | E128: If record is to be discarded from DB set this flag to YES
B130: SUBSET FILES
B131: Is this Submission File a Subset File | C131: NO | D131: dms_Partial
B134: REGULATORY YEARS FOR MULTI RYE SUBMISSIONS
B135: Multiple RYE flag | C135: NO | D135: dms_Multi_RYE_flag
C136: Manually specify RYE | D136: Named ranges to apply
C137: 2013 | D137: dms_RYE_01
C138: 2014 | D138: dms_RYE_02
C139: 2015 | D139: dms_RYE_03
C140: 2016 | D140: dms_RYE_04
C141: 2017 | D141: dms_RYE_05
C142: 2018 | D142: dms_RYE_06
C143: 2019 | D143: dms_RYE_07
C144: 2020 | D144: dms_RYE_08
C145: 2021 | D145: dms_RYE_09

Sheet Instructions
B2: =CONCATENATE(dms_Sector," ",dms_Segment," ", "Pipeline Service Provider") -> Gas Distribution Pipeline Service Provider
B3: =IF(dms_Model="Reset","Regulatory Proposal RIN Template","Annual Reporting RIN") -> Regulatory Proposal RIN Template
B5: INSTRUCTIONS
B6: GENERAL | C6: Complete the Business & other details worksheet before entering data or values in any other worksheets. The Business & other details worksheet is linked to other worksheets within the workbook and automatically generates certain column headings and conditional formatting.
B8: CONFIDENTIAL INFORMATION | C8: Please use the macro at the top of each worksheet to identify confidential information in the confidential workbook.
C9: -Do this by selecting the cell or cells that contain confidential information and then run the Mark selection as CONFIDENTIAL macro. This will format the cells a specific colour that is identified by the AER's database which in turn marks that information as confidential. -To reverse this, select the cell or cells and run the Return selection to NON-CONFIDENTIAL macro.
B11: RESPONSES | C11: Please return two (2) files to the AER: 1. A confidential version which must contain a complete set of all responses with confidential information marked using the Mark selection CONFIDENTIAL macro and which has been completed using the locked template file provided by the AER. 2. A public version with confidential information either removed completely or aggregated in some form together with writtten consent to disclose the public version of the response. Use the drop down box on the Business and other details worksheet to identify the file as either confidential ('consolidated') or public.
B13: AMENDMENTS | C13: If an NSP wishes to correct data previously submitted to the AER it should resubmit that data using the original completed submission as the starting point. Please make any necessary changes to the data. Data that is not being amended should be left unchanged. NSPs must identify the reason for the amendments in the Amendment Reason box on the Business and other details worksheet. NSPs may provide further details regarding any amendments in the Amendments worksheet. .
C14: NSP may use Amended Data macro to highlight cells that contain amended data. NB: if data is also CONFIDENTIAL, re-apply the Confidentiality macro after applying the Amended macro
C15: Please resubmit two (2) files - a confidential version and a public version of the amended submission to the AER
B17: UNITS OF MEASURE | C17: All amounts are to be unrounded and reported on a one for one basis: that is 1000 is to be entered as '1000'. Applicable units of measure may be identified in the table column headings or row descriptors.
B19: INPUT / NON-INPUT CELLS
D20: Yellow = Input cell (mandatory)
D21: Darker yellow = input cell (mandatory)
D22: Orange = input cell (if data available)
D23: Grey = Not applicable/No inputs required
D24: PLEASE DO NOT ENTER TEXT into cells that are to contain numeric data.
B27: NAVIGATION | C27: Many tables in the worksheets have been "grouped" to allow for easy navigation. To ungroup or group data use the outline symbols in the left margin (for Row groupings) or above the columns (for column groupings).

Sheet CONTENTS
B1: =INDEX(dms_Worksheet_List,MATCH(dms_Model,dms_Model_List)) -> REGULATORY REPORTING STATEMENT
B2: =dms_TradingName -> Multinet Gas
B3: =dms_Header_Span -> 2021-22 to 2027-28
C7: CONTENTS
C9: TEMPLATE DATE | D9: FINAL RIN MARCH 2022
C11: SUBMISSION | D11: Business & other details
C13: EXPENDITURE | D13: E1. Expenditure Summary
D14: E2. Mains Repex
D15: E3. Mains Augex
D16: E4. Meter replacement
D17: E5. New Connections
D18: E6. Non-network
D19: E10. Overheads
D20: E12. ICT
D21: E13. Other capex
D22: E17. Step changes
D23: E20. Opex
D24: E21. ARS
D25: E25. Escalators
C27: NETWORK | D27: N1. Demand
D28: N2. Network characteristcs
C30: SERVICE | D30: S1.1. Customer numbers - by customer type
D31: S1.2. Customer numbers - by tariff
D32: S10. Supply Quality
D33: S11. Network reliability
C35: FINANCIAL | D35: F3. Revenue
C37: ADMIN | D37: Additional disclosures

Sheet Business & other details
V1: =INDEX(dms_Worksheet_List,MATCH(dms_Model,dms_Model_List)) -> REGULATORY REPORTING STATEMENT
V2: =dms_TradingName -> Multinet Gas
V3: =dms_Header_Span -> 2021-22 to 2027-28
V4: BUSINESS & OTHER DETAILS
V6: INSTRUCTIONS
V7: Complete the following business details regulatory template before entering data or values in any other regulatory template. This regulatory template is linked to other cells within the spreadsheet and automatically generates column headings and conditional formatting to distinguish business specific input and non-input cells.
Q9: SUBMISSION PARTICULARS INPUT SHEET
V12: ENTITY DETAILS
V14: Business Name
V16: Short name | AL16: Multinet Gas
V17: ACN/ABN | AL17: =INDEX(dms_ABN_List,MATCH(dms_TradingName,dms_TradingName_List)) -> 086026986
V21: Business Address | BQ21: Postal Address
V23: Address 1 | AL23: =INDEX(dms_Addr1_List,MATCH(dms_TradingName,dms_TradingName_List)) -> 43-45 Centreway | BI23: Address 1
V24: Address 2 | AL24: =IF(ISBLANK(INDEX(dms_Addr2_List,MATCH(dms_TradingName,dms_TradingName_List))),"",(INDEX(dms_Addr2_List,MATCH(dms_TradingName,dms_TradingName_List)))) ->  | BI24: Address 2
V25: Suburb | AL25: =INDEX(dms_Suburb_List,MATCH(dms_TradingName,dms_TradingName_List)) -> MT WAVERLEY | BI25: Suburb
V26: State | AL26: =INDEX(dms_State_List,MATCH(dms_TradingName,dms_TradingName_List)) -> Vic | AV26: Post code | AX26: =INDEX(dms_PostCode_List,MATCH(dms_TradingName,dms_TradingName_List)) -> 3149 | BI26: State | BQ26: =INDEX(dms_PState_List,MATCH(dms_TradingName,dms_TradingName_List)) -> Vic | CA26: Post code
BA28: `
V30: Contact Names
V32: Name | BI32: Name
V33: Phone | BI33: Phone
V34: Email | BI34: Email
Q39: REGULATORY CONTROL PERIODS
Z42: Forthcoming period | AL42: 2023-24 | AU42: =FRCP_y2 -> 2024-25 | BD42: =FRCP_y3 -> 2025-26 | BM42: =FRCP_y4 -> 2026-27 | BV42: =FRCP_y5 -> 2027-28
AL43: =FRCP_y6 -> 2028-29 | AU43: =FRCP_y7 -> 2029-30 | BD43: =FRCP_y8 -> 2030-31 | BM43: =FRCP_y9 -> 2031-32 | BV43: =FRCP_y10 -> 2032-33
AL44: =FRCP_y11 -> 2033-34 | AU44: =FRCP_y12 -> 2034-35 | BD44: =FRCP_y13 -> 2035-36 | BM44: =FRCP_y14 -> 2036-37 | BV44: =FRCP_y15 -> 
Z46: Transitional period | AL46: 1 January 2023 to 30 June 2023
X48: RESETS | Z48: Current period | AL48: 2018 | AU48: 2019 | BD48: 2020 | BM48: 2021 | BV48: 2022
AL49: =CRCP_y6 -> 2023-24 | AU49: =CRCP_y7 -> 2024-25 | BD49: =CRCP_y8 -> 2025-26 | BM49: =CRCP_y9 -> 2026-27 | BV49: =CRCP_y10 -> 2027-28
AL50: =CRCP_y11 -> 2028-29 | AU50: =CRCP_y12 -> 2029-30 | BD50: =CRCP_y13 -> 2030-31 | BM50: =CRCP_y14 -> 2031-32 | BV50: =CRCP_y15 -> 2032-33
Z52: Previous period | AL52: 2013 | AU52: 2014 | BD52: 2015 | BM52: 2016 | BV52: 2017
AL53: =PRCP_y6 -> 2018-19 | AU53: =PRCP_y7 -> 2019-20 | BD53: =PRCP_y8 -> 2020-21 | BM53: =PRCP_y9 -> 2021-22 | BV53: =PRCP_y10 -> 2022-23
AL54: =PRCP_y11 -> 2023-24 | AU54: =PRCP_y12 -> 2024-25 | BD54: =PRCP_y13 -> 2025-26 | BM54: =PRCP_y14 -> 2026-27 | BV54: =PRCP_y15 -> 2027-28
Z56: Commencing year | AL56: 2023-24
X57: ANNUAL RINS
Z58: Final year | AL58: 2027-28
Q62: SUBMISSION DETAILS
Z64: RIN type | AL64: =INDIRECT(dms_Model) -> Regulatory Reporting (Reset)
Z66: Source | AL66: Regulatory proposal
X68: THIS FILE | Z68: Data Quality | AL68: Consolidated
Z70: Confidentiality Status | AL70: Public
Z72: Amended RIN Amendment Reason | AL72: .
Z76: Submission Date | AL76: 2022-07-01 | BD76: Please enter date this file submitted to AER

Sheet E1. Expenditure Summary
B1: =INDEX(dms_Worksheet_List,MATCH(dms_Model,dms_Model_List)) -> REGULATORY REPORTING STATEMENT
B2: =dms_TradingName -> Multinet Gas
B3: =dms_Header_Span -> 2021-22 to 2027-28
B4: E1. EXPENDITURE SUMMARY
B7: E1.1 - CAPEX
B8: E1.1.1 - REFERENCE SERVICES
C9: EXPENDITURE
C10: =CONCATENATE("$0's, real ",dms_DollarReal) -> $0's, real June 2023
C11: =VLOOKUP(CRCP_y4,'AER lookups'!$B$52:$C$101,2,0) -> 2022 | D11: =CONCATENATE("1 Jan-30 Jun "&(C11+1)) -> 1 Jan-30 Jun 2023 | E11: =FRCP_y1 -> 2023-24 | F11: =FRCP_y2 -> 2024-25 | G11: =FRCP_y3 -> 2025-26 | H11: =FRCP_y4 -> 2026-27 | I11: =FRCP_y5 -> 2027-28
B12: Connections | C12: 26034648.38 | D12: 12496632 | E12: 27553203.01 | F12: 24999753.63 | G12: 24207937.51 | H12: 24325960.68 | I12: 24349376.01
B13: Mains replacement | C13: 32978052.23 | D13: 21001529.37 | E13: 78366679.34 | F13: 88831728.65 | G13: 81974775.83 | H13: 86536403.48 | I13: 92878862.7
B14: Mains augmentation | C14: 7743439.577 | D14: 795609.7297 | E14: 3400982.95 | F14: 3408725.742 | G14: 0 | H14: 0 | I14: 0
B15: Telemetry | C15: 1467236.973 | D15: 701740.5405 | E15: 1256796.17 | F15: 913901.9449 | G15: 915837.6334 | H15: 852423.9372 | I15: 788709.1386
B16: Meter replacement | C16: 1573326.532 | D16: 1698758.919 | E16: 2922833.486 | F16: 3781041.085 | G16: 4183659.227 | H16: 5843900.777 | I16: 6939020.939
B17: ICT | C17: 8964132.44 | D17: 5283229 | E17: 18539563.59 | F17: 29794961.46 | G17: 12869190.87 | H17: 5241038.997 | I17: 8702335.668
B18: Capitalised network overheads | C18: 4913657.225 | D18: 2660979.099 | E18: 6154158.627 | F18: 6571863.011 | G18: 6024679.636 | H18: 6103344.007 | I18: 6160636.176
B19: Capitalised corporate overheads
B20: Other capex | C20: 3133442.194 | D20: 2372156.432 | E20: 8126477.416 | F20: 11647133.72 | G20: 6736464.716 | H20: 11050889.64 | I20: 5045139.635
B21: Capital contributions included in the above | C21: 1371500 | D21: 2244027 | E21: 3286934.526 | F21: 3275344.311 | G21: 3293620.052 | H21: 3292262.51 | I21: 3288539.843
B22: Total (less capital contributions) | C22: =SUM(C12:C20)-C21 -> 85436435.54 | D22: 44766608.09 | E22: 143033760.1 | F22: 166673764.9 | G22: 133618925.4 | H22: 136661699 | I22: 141575540.4
B24: E1.1.2 - NON-REFERENCE SERVICES
B50: Capital contributions included in the above
B51: Total | C51: =SUM(C25:C49)-C50 -> 0 | D51: 0 | E51: 0 | F51: 0 | G51: 0 | H51: 0 | I51: 0
B54: E1.2 - OPEX
B55: E1.2.1 - REFERENCE SERVICES
C56: EXPENDITURE
C57: =CONCATENATE("$0's, real ",dms_DollarReal) -> $0's, real June 2023
C58: =VLOOKUP(CRCP_y4,'AER lookups'!$B$52:$C$101,2,0) -> 2022 | D58: =CONCATENATE("1 Jan-30 Jun "&(C58+1)) -> 1 Jan-30 Jun 2023 | E58: =FRCP_y1 -> 2023-24 | F58: =FRCP_y2 -> 2024-25 | G58: =FRCP_y3 -> 2025-26 | H58: =FRCP_y4 -> 2026-27 | I58: =FRCP_y5 -> 2027-28
B59: ='E20. Opex'!B44 -> repairs and maintenance | C59: ='E20. Opex'!F44 -> 0 | D59: ='E20. Opex'!G44 -> 0 | E59: ='E20. Opex'!H44 -> 0 | F59: ='E20. Opex'!I44 -> 0 | G59: ='E20. Opex'!J44 -> 0 | H59: ='E20. Opex'!K44 -> 0 | I59: ='E20. Opex'!L44 -> 0
B60: ='E20. Opex'!B45 -> marketing and retail incentives | C60: ='E20. Opex'!F45 -> 0 | D60: ='E20. Opex'!G45 -> 0 | E60: ='E20. Opex'!H45 -> 0 | F60: ='E20. Opex'!I45 -> 0 | G60: ='E20. Opex'!J45 -> 0 | H60: ='E20. Opex'!K45 -> 0 | I60: ='E20. Opex'!L45 -> 0
B61: ='E20. Opex'!B46 -> debt raising | C61: ='E20. Opex'!F46 -> 0 | D61: ='E20. Opex'!G46 -> 0 | E61: ='E20. Opex'!H46 -> 0 | F61: ='E20. Opex'!I46 -> 0 | G61: ='E20. Opex'!J46 -> 0 | H61: ='E20. Opex'!K46 -> 0 | I61: ='E20. Opex'!L46 -> 0
B62: ='E20. Opex'!B47 -> equity raising | C62: ='E20. Opex'!F47 -> 0 | D62: ='E20. Opex'!G47 -> 0 | E62: ='E20. Opex'!H47 -> 0 | F62: ='E20. Opex'!I47 -> 0 | G62: ='E20. Opex'!J47 -> 0 | H62: ='E20. Opex'!K47 -> 0 | I62: ='E20. Opex'!L47 -> 0
B63: ='E20. Opex'!B48 -> unaccounted for gas | C63: ='E20. Opex'!F48 -> 0 | D63: ='E20. Opex'!G48 -> 0 | E63: ='E20. Opex'!H48 -> 0 | F63: ='E20. Opex'!I48 -> 0 | G63: ='E20. Opex'!J48 -> 0 | H63: ='E20. Opex'!K48 -> 0 | I63: ='E20. Opex'!L48 -> 0
B64: ='E20. Opex'!B49 -> jurisdictional charges | C64: ='E20. Opex'!F49 -> 0 | D64: ='E20. Opex'!G49 -> 0 | E64: ='E20. Opex'!H49 -> 0 | F64: ='E20. Opex'!I49 -> 0 | G64: ='E20. Opex'!J49 -> 0 | H64: ='E20. Opex'!K49 -> 0 | I64: ='E20. Opex'!L49 -> 0
B65: ='E20. Opex'!B50 -> GSL payments | C65: ='E20. Opex'!F50 -> 0 | D65: ='E20. Opex'!G50 -> 0 | E65: ='E20. Opex'!H50 -> 0 | F65: ='E20. Opex'!I50 -> 0 | G65: ='E20. Opex'!J50 -> 0 | H65: ='E20. Opex'!K50 -> 0 | I65: ='E20. Opex'!L50 -> 0
B66: ='E20. Opex'!B51 -> other opex | C66: ='E20. Opex'!F51 -> 0 | D66: ='E20. Opex'!G51 -> 0 | E66: ='E20. Opex'!H51 -> 0 | F66: ='E20. Opex'!I51 -> 0 | G66: ='E20. Opex'!J51 -> 0 | H66: ='E20. Opex'!K51 -> 0 | I66: ='E20. Opex'!L51 -> 0
B67: Total | C67: =SUM(C59:C66) -> 0 | D67: 0 | E67: 0 | F67: 0 | G67: 0 | H67: 0 | I67: 0
B69: E1.2.2 - NON-REFERENCE SERVICES
B70: =IF(ISBLANK('E20. Opex'!B58),"",'E20. Opex'!B58) -> 
B71: =IF(ISBLANK('E20. Opex'!B59),"",'E20. Opex'!B59) -> 
B72: =IF(ISBLANK('E20. Opex'!B60),"",'E20. Opex'!B60) -> 
B73: =IF(ISBLANK('E20. Opex'!B61),"",'E20. Opex'!B61) -> 
B74: =IF(ISBLANK('E20. Opex'!B62),"",'E20. Opex'!B62) -> 
B75: =IF(ISBLANK('E20. Opex'!B63),"",'E20. Opex'!B63) -> 
B76: =IF(ISBLANK('E20. Opex'!B64),"",'E20. Opex'!B64) -> 
B77: =IF(ISBLANK('E20. Opex'!B65),"",'E20. Opex'!B65) -> 
B78: =IF(ISBLANK('E20. Opex'!B66),"",'E20. Opex'!B66) -> 
B79: =IF(ISBLANK('E20. Opex'!B67),"",'E20. Opex'!B67) -> 
B80: =IF(ISBLANK('E20. Opex'!B68),"",'E20. Opex'!B68) -> 
B81: =IF(ISBLANK('E20. Opex'!B69),"",'E20. Opex'!B69) -> 
B82: =IF(ISBLANK('E20. Opex'!B70),"",'E20. Opex'!B70) -> 
B83: =IF(ISBLANK('E20. Opex'!B71),"",'E20. Opex'!B71) -> 
B84: =IF(ISBLANK('E20. Opex'!B72),"",'E20. Opex'!B72) -> 
B85: =IF(ISBLANK('E20. Opex'!B73),"",'E20. Opex'!B73) -> 
B86: =IF(ISBLANK('E20. Opex'!B74),"",'E20. Opex'!B74) -> 
B87: =IF(ISBLANK('E20. Opex'!B75),"",'E20. Opex'!B75) -> 
B88: =IF(ISBLANK('E20. Opex'!B76),"",'E20. Opex'!B76) -> 
B89: =IF(ISBLANK('E20. Opex'!B77),"",'E20. Opex'!B77) -> 
B90: =IF(ISBLANK('E20. Opex'!B78),"",'E20. Opex'!B78) -> 
B91: =IF(ISBLANK('E20. Opex'!B79),"",'E20. Opex'!B79) -> 
B92: =IF(ISBLANK('E20. Opex'!B80),"",'E20. Opex'!B80) -> 
B93: =IF(ISBLANK('E20. Opex'!B81),"",'E20. Opex'!B81) -> 
B94: =IF(ISBLANK('E20. Opex'!B82),"",'E20. Opex'!B82) -> 
B95: Total | C95: =SUM(C70:C94) -> 0 | D95: =SUM(D70:D94) -> 0 | E95: 0 | F95: 0 | G95: 0 | H95: 0 | I95: 0
B98: E1.3 - CAPCONS
B99: E1.3.1 - REFERENCE SERVICES
C100: EXPENDITURE
C101: =CONCATENATE("$0's, real ",dms_DollarReal) -> $0's, real June 2023
C102: =VLOOKUP(CRCP_y4,'AER lookups'!$B$52:$C$101,2,0) -> 2022 | D102: =CONCATENATE("1 Jan-30 Jun "&(C102+1)) -> 1 Jan-30 Jun 2023 | E102: =FRCP_y1 -> 2023-24 | F102: =FRCP_y2 -> 2024-25 | G102: =FRCP_y3 -> 2025-26 | H102: =FRCP_y4 -> 2026-27 | I102: =FRCP_y5 -> 2027-28
B103: Connections | C103: 1371500 | D103: 2244027 | E103: 1721151.346 | F103: 1721151.346 | G103: 1721151.346 | H103: 1721151.346 | I103: 1721151.346
B104: Mains replacement | E104: 0 | F104: 0 | G104: 0 | H104: 0 | I104: 0
B105: Mains augmentation | E105: 0 | F105: 0 | G105: 0 | H105: 0 | I105: 0
B106: Telemetry | E106: 0 | F106: 0 | G106: 0 | H106: 0 | I106: 0
B107: Meter replacement | E107: 0 | F107: 0 | G107: 0 | H107: 0 | I107: 0
B108: ICT | E108: 0 | F108: 0 | G108: 0 | H108: 0 | I108: 0
B109: Capitalised network overheads | E109: 138246.4492 | F109: 126656.2338 | G109: 144931.9754 | H109: 143574.4329 | I109: 139851.7665
B110: Capitalised corporate overheads
B111: Other capex | E111: 1427536.731 | F111: 1427536.731 | G111: 1427536.731 | H111: 1427536.731 | I111: 1427536.731
B112: Total | C112: =SUM(C103:C111) -> 1371500 | D112: 2244027 | E112: 3286934.526 | F112: 3275344.311 | G112: 3293620.052 | H112: 3292262.51 | I112: 3288539.843
B114: E1.3.2 - NON-REFERENCE SERVICES
C115: EXPENDITURE
C116: =CONCATENATE("$0's, real ",dms_DollarReal) -> $0's, real June 2023
C117: =VLOOKUP(CRCP_y4,'AER lookups'!$B$52:$C$101,2,0) -> 2022 | D117: =CONCATENATE("1 Jan-30 Jun "&(C117+1)) -> 1 Jan-30 Jun 2023 | E117: =FRCP_y1 -> 2023-24 | F117: =FRCP_y2 -> 2024-25 | G117: =FRCP_y3 -> 2025-26 | H117: =FRCP_y4 -> 2026-27 | I117: =FRCP_y5 -> 2027-28
B142: Total | C142: =SUM(C118:C141) -> 0 | D142: 0 | E142: 0 | F142: 0 | G142: 0 | H142: 0 | I142: 0
B145: E1.4 - CAPITALISED OVERHEADS
B146: E1.4.1 - REFERENCE SERVICES
C147: EXPENDITURE
C148: =CONCATENATE("$0's, real ",dms_DollarReal) -> $0's, real June 2023
C149: =VLOOKUP(CRCP_y4,'AER lookups'!$B$52:$C$101,2,0) -> 2022 | D149: =CONCATENATE("1 Jan-30 Jun "&(C149+1)) -> 1 Jan-30 Jun 2023 | E149: =FRCP_y1 -> 2023-24 | F149: =FRCP_y2 -> 2024-25 | G149: =FRCP_y3 -> 2025-26 | H149: =FRCP_y4 -> 2026-27 | I149: =FRCP_y5 -> 2027-28
B150: Connections | C150: 1562078.903 | D150: 749797.92 | E150: 1209752.248 | F150: 1005617.122 | G150: 1114274.935 | H150: 1109219.435 | I150: 1081499.076
B151: Mains replacement | C151: 1978683.134 | D151: 1260091.758 | E151: 3440771.169 | F151: 3573263.506 | G151: 3773243.3 | H151: 3945902.151 | I151: 4125296.854
B152: Mains augmentation | C152: 464606.3746 | D152: 47736.61622 | E152: 149323.72 | F152: 137116.2701 | G152: 0 | H152: 0 | I152: 0
B153: Telemetry | C153: 88034.21838 | D153: 42104.46789 | E153: 55180.95269 | F153: 36761.78002 | G153: 42155.38474 | H153: 38868.97666 | I153: 35031.21414
B154: Meter replacement | C154: 94399.59192 | D154: 101925.5351 | E154: 128330.0668 | F154: 152092.685 | G154: 192570.995 | H154: 266471.2158 | I154: 308202.7537
B155: ICT | C155: 537847.9464 | D155: 316993.74 | E155: 813998.9651 | F155: 1198504.747 | G155: 592360.1222 | H155: 238981.8183 | I155: 386521.9374
B156: Other capex | C156: 188006.5316 | D156: 142329.3531 | E156: 356801.5059 | F156: 468506.9008 | G156: 310074.8993 | H156: 503900.4101 | I156: 224084.3402
B157: Capital contributions included in the above | E157: 138246.4492 | F157: 126656.2338 | G157: 144931.9754 | H157: 143574.4329 | I157: 139851.7665
B158: Total (less capital contributions) | C158: =SUM(C150:C156)-C157 -> 4913656.699 | D158: 2660979.39 | E158: 6015912.178 | F158: 6445206.777 | G158: 5879747.661 | H158: 5959769.574 | I158: 6020784.409
B162: E1.4.2 - NON-REFERENCE SERVICES
C163: EXPENDITURE
C164: =CONCATENATE("$0's, real ",dms_DollarReal) -> $0's, real June 2023
C165: =VLOOKUP(CRCP_y4,'AER lookups'!$B$52:$C$101,2,0) -> 2022 | D165: =CONCATENATE("1 Jan-30 Jun "&(C165+1)) -> 1 Jan-30 Jun 2023 | E165: =FRCP_y1 -> 2023-24 | F165: =FRCP_y2 -> 2024-25 | G165: =FRCP_y3 -> 2025-26 | H165: =FRCP_y4 -> 2026-27 | I165: =FRCP_y5 -> 2027-28
B188: Capital contributions included in the above
B189: Total (less capital contributions) | C189: =SUM(C166:C187)-C188 -> 0 | D189: 0 | E189: 0 | F189: 0 | G189: 0 | H189: 0 | I189: 0

Sheet E2. Mains Repex
B1: =INDEX(dms_Worksheet_List,MATCH(dms_Model,dms_Model_List)) -> REGULATORY REPORTING STATEMENT
B2: =dms_TradingName -> Multinet Gas
B3: =dms_Header_Span -> 2021-22 to 2027-28
B4: E2. MAINS REPLACEMENT
B8: Please list all projects here:
B9: LP Mains Replacement Program
B10: MP Steel Mt Waverley
B11: Early Gen PE Replacement Program
B12: 4
B13: Princes St, Port Melbourne
B14: Belford Rd, Kew
B15: Linda Cres, Hawthorn
B16: Wright St, Bentleigh
B17: Strabane Ave, Box Hill Nth
B18: Nirvana Ave, Malvern East
B19: Barilla Rd, Moorabbin
B20: Watson Grove, GlenHuntly (LXRA)
B21: Yarrbat Ave, Balwyn
B22: Ruskin St, Elwood
B23: Albion Rd, Box Hill Sth
B24: Talbot Cres, Kooyong (LXRA)
B25: Sinclair Ave, Edithvale
B26: Hall Street, Bentleigh
B27: Spring Road, Moorabbin 2930 mp
B28: Crest Avenue, Balwyn 2005 mp
B29: Through Road, Burwood
B30: 22
B31: 23
B32: 24
B33: Annandale Cres, Glen Waverly (2.4 km)
B34: MPCI - Eastern Network M43+M28
B35: Graham Street, Port Melbourne
B36: Graham Street, Port Melbourne
B37: Aughtie Drive, Albert Park
B38: Scammell Close Mt Waverley HP (MP) Renew Stage 1
B39: 31
B40: 32
B41: 33
B42: 34
B43: 35
B44: 36
B45: 37
B46: 38
B47: 39
B48: 40
B49: 41
B50: 42
B51: 43
B52: 44
B53: 45
B54: 46
B55: 47
B56: 48
B57: 49
B58: 50
B61: E2.1 - CAPEX
B62: E2.1.1 - PROACTIVE - BY PROJECT
D63: EXPENDITURE
D64: =CONCATENATE("$0's, real ",dms_DollarReal) -> $0's, real June 2023
D65: =VLOOKUP(CRCP_y4,'AER lookups'!$B$52:$C$101,2,0) -> 2022 | E65: =CONCATENATE("1 Jan-30 Jun "&(D65+1)) -> 1 Jan-30 Jun 2023 | F65: =FRCP_y1 -> 2023-24 | G65: =FRCP_y2 -> 2024-25 | H65: =FRCP_y3 -> 2025-26 | I65: =FRCP_y4 -> 2026-27 | J65: =FRCP_y5 -> 2027-28
B66: A. DIRECT INTERNAL LABOUR EXPENDITURE
B67: =IF(ISBLANK(dms_E2_Projects_01),"",dms_E2_Projects_01) -> LP Mains Replacement Program
B68: =IF(ISBLANK(dms_E2_Projects_02),"",dms_E2_Projects_02) -> MP Steel Mt Waverley
B69: =IF(ISBLANK(dms_E2_Projects_03),"",dms_E2_Projects_03) -> Early Gen PE Replacement Program
B70: =IF(ISBLANK(dms_E2_Projects_04),"",dms_E2_Projects_04) -> 4
B71: =IF(ISBLANK(dms_E2_Projects_05),"",dms_E2_Projects_05) -> Princes St, Port Melbourne
B72: =IF(ISBLANK(dms_E2_Projects_06),"",dms_E2_Projects_06) -> Belford Rd, Kew
B73: =IF(ISBLANK(dms_E2_Projects_07),"",dms_E2_Projects_07) -> Linda Cres, Hawthorn
B74: =IF(ISBLANK(dms_E2_Projects_08),"",dms_E2_Projects_08) -> Wright St, Bentleigh
B75: =IF(ISBLANK(dms_E2_Projects_09),"",dms_E2_Projects_09) -> Strabane Ave, Box Hill Nth
B76: =IF(ISBLANK(dms_E2_Projects_10),"",dms_E2_Projects_10) -> Nirvana Ave, Malvern East
B77: =IF(ISBLANK(dms_E2_Projects_11),"",dms_E2_Projects_11) -> Barilla Rd, Moorabbin
B78: =IF(ISBLANK(dms_E2_Projects_12),"",dms_E2_Projects_12) -> Watson Grove, GlenHuntly (LXRA)
B79: =IF(ISBLANK(dms_E2_Projects_13),"",dms_E2_Projects_13) -> Yarrbat Ave, Balwyn
B80: =IF(ISBLANK(dms_E2_Projects_14),"",dms_E2_Projects_14) -> Ruskin St, Elwood
B81: =IF(ISBLANK(dms_E2_Projects_15),"",dms_E2_Projects_15) -> Albion Rd, Box Hill Sth
B82: =IF(ISBLANK(dms_E2_Projects_16),"",dms_E2_Projects_16) -> Talbot Cres, Kooyong (LXRA)
B83: =IF(ISBLANK(dms_E2_Projects_17),"",dms_E2_Projects_17) -> Sinclair Ave, Edithvale
B84: =IF(ISBLANK(dms_E2_Projects_18),"",dms_E2_Projects_18) -> Hall Street, Bentleigh
B85: =IF(ISBLANK(dms_E2_Projects_19),"",dms_E2_Projects_19) -> Spring Road, Moorabbin 2930 mp
B86: =IF(ISBLANK(dms_E2_Projects_20),"",dms_E2_Projects_20) -> Crest Avenue, Balwyn 2005 mp
B87: =IF(ISBLANK(dms_E2_Projects_21),"",dms_E2_Projects_21) -> Through Road, Burwood
B88: =IF(ISBLANK(dms_E2_Projects_22),"",dms_E2_Projects_22) -> 22
B89: =IF(ISBLANK(dms_E2_Projects_23),"",dms_E2_Projects_23) -> 23
B90: =IF(ISBLANK(dms_E2_Projects_24),"",dms_E2_Projects_24) -> 24
B91: =IF(ISBLANK(dms_E2_Projects_25),"",dms_E2_Projects_25) -> Annandale Cres, Glen Waverly (2.4 km)
B92: =IF(ISBLANK(dms_E2_Projects_26),"",dms_E2_Projects_26) -> MPCI - Eastern Network M43+M28
B93: =IF(ISBLANK(dms_E2_Projects_27),"",dms_E2_Projects_27) -> Graham Street, Port Melbourne
B94: =IF(ISBLANK(dms_E2_Projects_28),"",dms_E2_Projects_28) -> Graham Street, Port Melbourne
B95: =IF(ISBLANK(dms_E2_Projects_29),"",dms_E2_Projects_29) -> Aughtie Drive, Albert Park
B96: =IF(ISBLANK(dms_E2_Projects_30),"",dms_E2_Projects_30) -> Scammell Close Mt Waverley HP (MP) Renew Stage 1
B97: =IF(ISBLANK(dms_E2_Projects_31),"",dms_E2_Projects_31) -> 31
B98: =IF(ISBLANK(dms_E2_Projects_32),"",dms_E2_Projects_32) -> 32
B99: =IF(ISBLANK(dms_E2_Projects_33),"",dms_E2_Projects_33) -> 33
B100: =IF(ISBLANK(dms_E2_Projects_34),"",dms_E2_Projects_34) -> 34
B101: =IF(ISBLANK(dms_E2_Projects_35),"",dms_E2_Projects_35) -> 35
B102: =IF(ISBLANK(dms_E2_Projects_36),"",dms_E2_Projects_36) -> 36
B103: =IF(ISBLANK(dms_E2_Projects_37),"",dms_E2_Projects_37) -> 37
B104: =IF(ISBLANK(dms_E2_Projects_38),"",dms_E2_Projects_38) -> 38
B105: =IF(ISBLANK(dms_E2_Projects_39),"",dms_E2_Projects_39) -> 39
B106: =IF(ISBLANK(dms_E2_Projects_40),"",dms_E2_Projects_40) -> 40
B107: =IF(ISBLANK(dms_E2_Projects_41),"",dms_E2_Projects_41) -> 41
B108: =IF(ISBLANK(dms_E2_Projects_42),"",dms_E2_Projects_42) -> 42
B109: =IF(ISBLANK(dms_E2_Projects_43),"",dms_E2_Projects_43) -> 43
B110: =IF(ISBLANK(dms_E2_Projects_44),"",dms_E2_Projects_44) -> 44
B111: =IF(ISBLANK(dms_E2_Projects_45),"",dms_E2_Projects_45) -> 45
B112: =IF(ISBLANK(dms_E2_Projects_46),"",dms_E2_Projects_46) -> 46
B113: =IF(ISBLANK(dms_E2_Projects_47),"",dms_E2_Projects_47) -> 47
B114: =IF(ISBLANK(dms_E2_Projects_48),"",dms_E2_Projects_48) -> 48
B115: =IF(ISBLANK(dms_E2_Projects_49),"",dms_E2_Projects_49) -> 49
B116: =IF(ISBLANK(dms_E2_Projects_50),"",dms_E2_Projects_50) -> 50
B117: Other projects with expenditure of less than $500,000
C118: Total | D118: =SUM(D67:D117) -> 0 | E118: =SUM(E67:E117) -> 0 | F118: =SUM(F67:F117) -> 0 | G118: =SUM(G67:G117) -> 0 | H118: =SUM(H67:H117) -> 0 | I118: =SUM(I67:I117) -> 0 | J118: =SUM(J67:J117) -> 0
B120: B. DIRECT CONTRACTOR EXPENDITURE
D121: EXPENDITURE
D122: =CONCATENATE("$0's, real ",dms_DollarReal) -> $0's, real June 2023
D123: =VLOOKUP(CRCP_y4,'AER lookups'!$B$52:$C$101,2,0) -> 2022 | E123: =CONCATENATE("1 Jan-30 Jun "&(D123+1)) -> 1 Jan-30 Jun 2023 | F123: =FRCP_y1 -> 2023-24 | G123: =FRCP_y2 -> 2024-25 | H123: =FRCP_y3 -> 2025-26 | I123: =FRCP_y4 -> 2026-27 | J123: =FRCP_y5 -> 2027-28
B124: =IF(ISBLANK(dms_E2_Projects_01),"",dms_E2_Projects_01) -> LP Mains Replacement Program
B125: =IF(ISBLANK(dms_E2_Projects_02),"",dms_E2_Projects_02) -> MP Steel Mt Waverley
B126: =IF(ISBLANK(dms_E2_Projects_03),"",dms_E2_Projects_03) -> Early Gen PE Replacement Program
B127: =IF(ISBLANK(dms_E2_Projects_04),"",dms_E2_Projects_04) -> 4
B128: =IF(ISBLANK(dms_E2_Projects_05),"",dms_E2_Projects_05) -> Princes St, Port Melbourne
B129: =IF(ISBLANK(dms_E2_Projects_06),"",dms_E2_Projects_06) -> Belford Rd, Kew
B130: =IF(ISBLANK(dms_E2_Projects_07),"",dms_E2_Projects_07) -> Linda Cres, Hawthorn
B131: =IF(ISBLANK(dms_E2_Projects_08),"",dms_E2_Projects_08) -> Wright St, Bentleigh
B132: =IF(ISBLANK(dms_E2_Projects_09),"",dms_E2_Projects_09) -> Strabane Ave, Box Hill Nth
B133: =IF(ISBLANK(dms_E2_Projects_10),"",dms_E2_Projects_10) -> Nirvana Ave, Malvern East
B134: =IF(ISBLANK(dms_E2_Projects_11),"",dms_E2_Projects_11) -> Barilla Rd, Moorabbin
B135: =IF(ISBLANK(dms_E2_Projects_12),"",dms_E2_Projects_12) -> Watson Grove, GlenHuntly (LXRA)
B136: =IF(ISBLANK(dms_E2_Projects_13),"",dms_E2_Projects_13) -> Yarrbat Ave, Balwyn
B137: =IF(ISBLANK(dms_E2_Projects_14),"",dms_E2_Projects_14) -> Ruskin St, Elwood
B138: =IF(ISBLANK(dms_E2_Projects_15),"",dms_E2_Projects_15) -> Albion Rd, Box Hill Sth
B139: =IF(ISBLANK(dms_E2_Projects_16),"",dms_E2_Projects_16) -> Talbot Cres, Kooyong (LXRA)
B140: =IF(ISBLANK(dms_E2_Projects_17),"",dms_E2_Projects_17) -> Sinclair Ave, Edithvale
B141: =IF(ISBLANK(dms_E2_Projects_18),"",dms_E2_Projects_18) -> Hall Street, Bentleigh
B142: =IF(ISBLANK(dms_E2_Projects_19),"",dms_E2_Projects_19) -> Spring Road, Moorabbin 2930 mp
B143: =IF(ISBLANK(dms_E2_Projects_20),"",dms_E2_Projects_20) -> Crest Avenue, Balwyn 2005 mp
B144: =IF(ISBLANK(dms_E2_Projects_21),"",dms_E2_Projects_21) -> Through Road, Burwood
B145: =IF(ISBLANK(dms_E2_Projects_22),"",dms_E2_Projects_22) -> 22
B146: =IF(ISBLANK(dms_E2_Projects_23),"",dms_E2_Projects_23) -> 23
B147: =IF(ISBLANK(dms_E2_Projects_24),"",dms_E2_Projects_24) -> 24
B148: =IF(ISBLANK(dms_E2_Projects_25),"",dms_E2_Projects_25) -> Annandale Cres, Glen Waverly (2.4 km)
B149: =IF(ISBLANK(dms_E2_Projects_26),"",dms_E2_Projects_26) -> MPCI - Eastern Network M43+M28
B150: =IF(ISBLANK(dms_E2_Projects_27),"",dms_E2_Projects_27) -> Graham Street, Port Melbourne
B151: =IF(ISBLANK(dms_E2_Projects_28),"",dms_E2_Projects_28) -> Graham Street, Port Melbourne
B152: =IF(ISBLANK(dms_E2_Projects_29),"",dms_E2_Projects_29) -> Aughtie Drive, Albert Park
B153: =IF(ISBLANK(dms_E2_Projects_30),"",dms_E2_Projects_30) -> Scammell Close Mt Waverley HP (MP) Renew Stage 1
B154: =IF(ISBLANK(dms_E2_Projects_31),"",dms_E2_Projects_31) -> 31
B155: =IF(ISBLANK(dms_E2_Projects_32),"",dms_E2_Projects_32) -> 32
B156: =IF(ISBLANK(dms_E2_Projects_33),"",dms_E2_Projects_33) -> 33
B157: =IF(ISBLANK(dms_E2_Projects_34),"",dms_E2_Projects_34) -> 34
B158: =IF(ISBLANK(dms_E2_Projects_35),"",dms_E2_Projects_35) -> 35
B159: =IF(ISBLANK(dms_E2_Projects_36),"",dms_E2_Projects_36) -> 36
B160: =IF(ISBLANK(dms_E2_Projects_37),"",dms_E2_Projects_37) -> 37
B161: =IF(ISBLANK(dms_E2_Projects_38),"",dms_E2_Projects_38) -> 38
B162: =IF(ISBLANK(dms_E2_Projects_39),"",dms_E2_Projects_39) -> 39
B163: =IF(ISBLANK(dms_E2_Projects_40),"",dms_E2_Projects_40) -> 40
B164: =IF(ISBLANK(dms_E2_Projects_41),"",dms_E2_Projects_41) -> 41
B165: =IF(ISBLANK(dms_E2_Projects_42),"",dms_E2_Projects_42) -> 42
B166: =IF(ISBLANK(dms_E2_Projects_43),"",dms_E2_Projects_43) -> 43
B167: =IF(ISBLANK(dms_E2_Projects_44),"",dms_E2_Projects_44) -> 44
B168: =IF(ISBLANK(dms_E2_Projects_45),"",dms_E2_Projects_45) -> 45
B169: =IF(ISBLANK(dms_E2_Projects_46),"",dms_E2_Projects_46) -> 46
B170: =IF(ISBLANK(dms_E2_Projects_47),"",dms_E2_Projects_47) -> 47
B171: =IF(ISBLANK(dms_E2_Projects_48),"",dms_E2_Projects_48) -> 48
B172: =IF(ISBLANK(dms_E2_Projects_49),"",dms_E2_Projects_49) -> 49
B173: =IF(ISBLANK(dms_E2_Projects_50),"",dms_E2_Projects_50) -> 50
B174: Other projects with expenditure of less than $500,000
C175: Total
B177: C. DIRECT MATERIAL EXPENDITURE
D178: EXPENDITURE
D179: =CONCATENATE("$0's, real ",dms_DollarReal) -> $0's, real June 2023
D180: =VLOOKUP(CRCP_y4,'AER lookups'!$B$52:$C$101,2,0) -> 2022 | E180: =CONCATENATE("1 Jan-30 Jun "&(D180+1)) -> 1 Jan-30 Jun 2023 | F180: =FRCP_y1 -> 2023-24 | G180: =FRCP_y2 -> 2024-25 | H180: =FRCP_y3 -> 2025-26 | I180: =FRCP_y4 -> 2026-27 | J180: =FRCP_y5 -> 2027-28
B181: =IF(ISBLANK(dms_E2_Projects_01),"",dms_E2_Projects_01) -> LP Mains Replacement Program
B182: =IF(ISBLANK(dms_E2_Projects_02),"",dms_E2_Projects_02) -> MP Steel Mt Waverley
B183: =IF(ISBLANK(dms_E2_Projects_03),"",dms_E2_Projects_03) -> Early Gen PE Replacement Program
B184: =IF(ISBLANK(dms_E2_Projects_04),"",dms_E2_Projects_04) -> 4
B185: =IF(ISBLANK(dms_E2_Projects_05),"",dms_E2_Projects_05) -> Princes St, Port Melbourne
B186: =IF(ISBLANK(dms_E2_Projects_06),"",dms_E2_Projects_06) -> Belford Rd, Kew
B187: =IF(ISBLANK(dms_E2_Projects_07),"",dms_E2_Projects_07) -> Linda Cres, Hawthorn
B188: =IF(ISBLANK(dms_E2_Projects_08),"",dms_E2_Projects_08) -> Wright St, Bentleigh
B189: =IF(ISBLANK(dms_E2_Projects_09),"",dms_E2_Projects_09) -> Strabane Ave, Box Hill Nth
B190: =IF(ISBLANK(dms_E2_Projects_10),"",dms_E2_Projects_10) -> Nirvana Ave, Malvern East
B191: =IF(ISBLANK(dms_E2_Projects_11),"",dms_E2_Projects_11) -> Barilla Rd, Moorabbin
B192: =IF(ISBLANK(dms_E2_Projects_12),"",dms_E2_Projects_12) -> Watson Grove, GlenHuntly (LXRA)
B193: =IF(ISBLANK(dms_E2_Projects_13),"",dms_E2_Projects_13) -> Yarrbat Ave, Balwyn
B194: =IF(ISBLANK(dms_E2_Projects_14),"",dms_E2_Projects_14) -> Ruskin St, Elwood
B195: =IF(ISBLANK(dms_E2_Projects_15),"",dms_E2_Projects_15) -> Albion Rd, Box Hill Sth
B196: =IF(ISBLANK(dms_E2_Projects_16),"",dms_E2_Projects_16) -> Talbot Cres, Kooyong (LXRA)
B197: =IF(ISBLANK(dms_E2_Projects_17),"",dms_E2_Projects_17) -> Sinclair Ave, Edithvale
B198: =IF(ISBLANK(dms_E2_Projects_18),"",dms_E2_Projects_18) -> Hall Street, Bentleigh
B199: =IF(ISBLANK(dms_E2_Projects_19),"",dms_E2_Projects_19) -> Spring Road, Moorabbin 2930 mp
B200: =IF(ISBLANK(dms_E2_Projects_20),"",dms_E2_Projects_20) -> Crest Avenue, Balwyn 2005 mp
B201: =IF(ISBLANK(dms_E2_Projects_21),"",dms_E2_Projects_21) -> Through Road, Burwood
B202: =IF(ISBLANK(dms_E2_Projects_22),"",dms_E2_Projects_22) -> 22
B203: =IF(ISBLANK(dms_E2_Projects_23),"",dms_E2_Projects_23) -> 23
B204: =IF(ISBLANK(dms_E2_Projects_24),"",dms_E2_Projects_24) -> 24
B205: =IF(ISBLANK(dms_E2_Projects_25),"",dms_E2_Projects_25) -> Annandale Cres, Glen Waverly (2.4 km)
B206: =IF(ISBLANK(dms_E2_Projects_26),"",dms_E2_Projects_26) -> MPCI - Eastern Network M43+M28
B207: =IF(ISBLANK(dms_E2_Projects_27),"",dms_E2_Projects_27) -> Graham Street, Port Melbourne
... 573 more rows

Sheet E3. Mains Augex
B1: =INDEX(dms_Worksheet_List,MATCH(dms_Model,dms_Model_List)) -> REGULATORY REPORTING STATEMENT
B2: =dms_TradingName -> Multinet Gas
B3: =dms_Header_Span -> 2021-22 to 2027-28
B4: E3. MAINS AUGMENTATION
B7: Please list all projects here:
B8: H04 and H43 linkage
B9: 2
B10: Oakleigh HP (LP to HP) - Stage 3
B11: Oakleigh HP (LP to HP) - Stage 4
B12: Sherbrooke Road, Sassafras
B13: Old Coach Road, Kalorama
B14: Toorak Rd 180P10
B15: Vermont (MP upgrade to HP - Stage 1)
B16: High Street (Knox)
B17: Lincoln Road (Olinda Nth)
B18: Blaxland Drive (Knox)
B19: Glenfern (Olinda South)
B20: Azalea Court (Ringwood)
B21: NELP - Bulleen Rd
B22: 15
B23: 16
B24: 17
B25: 18
B26: 19
B27: 20
B28: 21
B29: 22
B30: 23
B31: 24
B32: 25
B33: 26
B34: 27
B35: 28
B36: 29
B37: 30
B38: 31
B39: 32
B40: 33
B41: 34
B42: 35
B43: 36
B44: 37
B45: 38
B46: 39
B47: 40
B48: 41
B49: 42
B50: 43
B51: 44
B52: 45
B53: 46
B54: 47
B55: 48
B56: 49
B57: 50
B60: E3.1 - CAPEX BY PROJECT
B61: A. DIRECT INTERNAL LABOUR EXPENDITURE
C62: EXPENDITURE
C63: =CONCATENATE("$0's, real ",dms_DollarReal) -> $0's, real June 2023
C64: =VLOOKUP(CRCP_y4,'AER lookups'!$B$52:$C$101,2,0) -> 2022 | D64: =CONCATENATE("1 Jan-30 Jun "&(C64+1)) -> 1 Jan-30 Jun 2023 | E64: =FRCP_y1 -> 2023-24 | F64: =FRCP_y2 -> 2024-25 | G64: =FRCP_y3 -> 2025-26 | H64: =FRCP_y4 -> 2026-27 | I64: =FRCP_y5 -> 2027-28
B65: =IF(ISBLANK(dms_E3_Projects_01),"",dms_E3_Projects_01) -> H04 and H43 linkage
B66: =IF(ISBLANK(dms_E3_Projects_02),"",dms_E3_Projects_02) -> 2
B67: =IF(ISBLANK(dms_E3_Projects_03),"",dms_E3_Projects_03) -> Oakleigh HP (LP to HP) - Stage 3
B68: =IF(ISBLANK(dms_E3_Projects_04),"",dms_E3_Projects_04) -> Oakleigh HP (LP to HP) - Stage 4
B69: =IF(ISBLANK(dms_E3_Projects_05),"",dms_E3_Projects_05) -> Sherbrooke Road, Sassafras
B70: =IF(ISBLANK(dms_E3_Projects_06),"",dms_E3_Projects_06) -> Old Coach Road, Kalorama
B71: =IF(ISBLANK(dms_E3_Projects_07),"",dms_E3_Projects_07) -> Toorak Rd 180P10
B72: =IF(ISBLANK(dms_E3_Projects_08),"",dms_E3_Projects_08) -> Vermont (MP upgrade to HP - Stage 1)
B73: =IF(ISBLANK(dms_E3_Projects_09),"",dms_E3_Projects_09) -> High Street (Knox)
B74: =IF(ISBLANK(dms_E3_Projects_10),"",dms_E3_Projects_10) -> Lincoln Road (Olinda Nth)
B75: =IF(ISBLANK(dms_E3_Projects_11),"",dms_E3_Projects_11) -> Blaxland Drive (Knox)
B76: =IF(ISBLANK(dms_E3_Projects_12),"",dms_E3_Projects_12) -> Glenfern (Olinda South)
B77: =IF(ISBLANK(dms_E3_Projects_13),"",dms_E3_Projects_13) -> Azalea Court (Ringwood)
B78: =IF(ISBLANK(dms_E3_Projects_14),"",dms_E3_Projects_14) -> NELP - Bulleen Rd
B79: =IF(ISBLANK(dms_E3_Projects_15),"",dms_E3_Projects_15) -> 15
B80: =IF(ISBLANK(dms_E3_Projects_16),"",dms_E3_Projects_16) -> 16
B81: =IF(ISBLANK(dms_E3_Projects_17),"",dms_E3_Projects_17) -> 17
B82: =IF(ISBLANK(dms_E3_Projects_18),"",dms_E3_Projects_18) -> 18
B83: =IF(ISBLANK(dms_E3_Projects_18),"",dms_E3_Projects_18) -> 18
B84: =IF(ISBLANK(dms_E3_Projects_19),"",dms_E3_Projects_19) -> 19
B85: =IF(ISBLANK(dms_E3_Projects_20),"",dms_E3_Projects_20) -> 20
B86: =IF(ISBLANK(dms_E3_Projects_21),"",dms_E3_Projects_21) -> 21
B87: =IF(ISBLANK(dms_E3_Projects_22),"",dms_E3_Projects_22) -> 22
B88: =IF(ISBLANK(dms_E3_Projects_23),"",dms_E3_Projects_23) -> 23
B89: =IF(ISBLANK(dms_E3_Projects_24),"",dms_E3_Projects_24) -> 24
B90: =IF(ISBLANK(dms_E3_Projects_25),"",dms_E3_Projects_25) -> 25
B91: =IF(ISBLANK(dms_E3_Projects_25),"",dms_E3_Projects_26) -> 26
B92: =IF(ISBLANK(dms_E3_Projects_27),"",dms_E3_Projects_27) -> 27
B93: =IF(ISBLANK(dms_E3_Projects_28),"",dms_E3_Projects_28) -> 28
B94: =IF(ISBLANK(dms_E3_Projects_29),"",dms_E3_Projects_29) -> 29
B95: =IF(ISBLANK(dms_E3_Projects_30),"",dms_E3_Projects_30) -> 30
B96: =IF(ISBLANK(dms_E3_Projects_31),"",dms_E3_Projects_31) -> 31
B97: =IF(ISBLANK(dms_E3_Projects_32),"",dms_E3_Projects_32) -> 32
B98: =IF(ISBLANK(dms_E3_Projects_33),"",dms_E3_Projects_33) -> 33
B99: =IF(ISBLANK(dms_E3_Projects_34),"",dms_E3_Projects_34) -> 34
B100: =IF(ISBLANK(dms_E3_Projects_35),"",dms_E3_Projects_35) -> 35
B101: =IF(ISBLANK(dms_E3_Projects_36),"",dms_E3_Projects_36) -> 36
B102: =IF(ISBLANK(dms_E3_Projects_37),"",dms_E3_Projects_37) -> 37
B103: =IF(ISBLANK(dms_E3_Projects_38),"",dms_E3_Projects_38) -> 38
B104: =IF(ISBLANK(dms_E3_Projects_39),"",dms_E3_Projects_39) -> 39
B105: =IF(ISBLANK(dms_E3_Projects_40),"",dms_E3_Projects_40) -> 40
B106: =IF(ISBLANK(dms_E3_Projects_41),"",dms_E3_Projects_41) -> 41
B107: =IF(ISBLANK(dms_E3_Projects_42),"",dms_E3_Projects_42) -> 42
B108: =IF(ISBLANK(dms_E3_Projects_43),"",dms_E3_Projects_43) -> 43
B109: =IF(ISBLANK(dms_E3_Projects_44),"",dms_E3_Projects_44) -> 44
B110: =IF(ISBLANK(dms_E3_Projects_45),"",dms_E3_Projects_45) -> 45
B111: =IF(ISBLANK(dms_E3_Projects_46),"",dms_E3_Projects_46) -> 46
B112: =IF(ISBLANK(dms_E3_Projects_47),"",dms_E3_Projects_47) -> 47
B113: =IF(ISBLANK(dms_E3_Projects_48),"",dms_E3_Projects_48) -> 48
B114: =IF(ISBLANK(dms_E3_Projects_49),"",dms_E3_Projects_49) -> 49
B115: =IF(ISBLANK(dms_E3_Projects_50),"",dms_E3_Projects_50) -> 50
B116: Aggregate of other projects with total expenditure of less than $500,000
B117: Total
B119: B. DIRECT CONTRACTOR EXPENDITURE
C120: EXPENDITURE
C121: =CONCATENATE("$0's, real ",dms_DollarReal) -> $0's, real June 2023
C122: =VLOOKUP(CRCP_y4,'AER lookups'!$B$52:$C$101,2,0) -> 2022 | D122: =CONCATENATE("1 Jan-30 Jun "&(C122+1)) -> 1 Jan-30 Jun 2023 | E122: =FRCP_y1 -> 2023-24 | F122: =FRCP_y2 -> 2024-25 | G122: =FRCP_y3 -> 2025-26 | H122: =FRCP_y4 -> 2026-27 | I122: =FRCP_y5 -> 2027-28
B123: =IF(ISBLANK(dms_E3_Projects_01),"",dms_E3_Projects_01) -> H04 and H43 linkage
B124: =IF(ISBLANK(dms_E3_Projects_02),"",dms_E3_Projects_02) -> 2
B125: =IF(ISBLANK(dms_E3_Projects_03),"",dms_E3_Projects_03) -> Oakleigh HP (LP to HP) - Stage 3
B126: =IF(ISBLANK(dms_E3_Projects_04),"",dms_E3_Projects_04) -> Oakleigh HP (LP to HP) - Stage 4
B127: =IF(ISBLANK(dms_E3_Projects_05),"",dms_E3_Projects_05) -> Sherbrooke Road, Sassafras
B128: =IF(ISBLANK(dms_E3_Projects_06),"",dms_E3_Projects_06) -> Old Coach Road, Kalorama
B129: =IF(ISBLANK(dms_E3_Projects_07),"",dms_E3_Projects_07) -> Toorak Rd 180P10
B130: =IF(ISBLANK(dms_E3_Projects_08),"",dms_E3_Projects_08) -> Vermont (MP upgrade to HP - Stage 1)
B131: =IF(ISBLANK(dms_E3_Projects_09),"",dms_E3_Projects_09) -> High Street (Knox)
B132: =IF(ISBLANK(dms_E3_Projects_10),"",dms_E3_Projects_10) -> Lincoln Road (Olinda Nth)
B133: =IF(ISBLANK(dms_E3_Projects_11),"",dms_E3_Projects_11) -> Blaxland Drive (Knox)
B134: =IF(ISBLANK(dms_E3_Projects_12),"",dms_E3_Projects_12) -> Glenfern (Olinda South)
B135: =IF(ISBLANK(dms_E3_Projects_13),"",dms_E3_Projects_13) -> Azalea Court (Ringwood)
B136: =IF(ISBLANK(dms_E3_Projects_14),"",dms_E3_Projects_14) -> NELP - Bulleen Rd
B137: =IF(ISBLANK(dms_E3_Projects_15),"",dms_E3_Projects_15) -> 15
B138: =IF(ISBLANK(dms_E3_Projects_16),"",dms_E3_Projects_16) -> 16
B139: =IF(ISBLANK(dms_E3_Projects_17),"",dms_E3_Projects_17) -> 17
B140: =IF(ISBLANK(dms_E3_Projects_18),"",dms_E3_Projects_18) -> 18
B141: =IF(ISBLANK(dms_E3_Projects_18),"",dms_E3_Projects_18) -> 18
B142: =IF(ISBLANK(dms_E3_Projects_19),"",dms_E3_Projects_19) -> 19
B143: =IF(ISBLANK(dms_E3_Projects_20),"",dms_E3_Projects_20) -> 20
B144: =IF(ISBLANK(dms_E3_Projects_21),"",dms_E3_Projects_21) -> 21
B145: =IF(ISBLANK(dms_E3_Projects_22),"",dms_E3_Projects_22) -> 22
B146: =IF(ISBLANK(dms_E3_Projects_23),"",dms_E3_Projects_23) -> 23
B147: =IF(ISBLANK(dms_E3_Projects_24),"",dms_E3_Projects_24) -> 24
B148: =IF(ISBLANK(dms_E3_Projects_25),"",dms_E3_Projects_25) -> 25
B149: =IF(ISBLANK(dms_E3_Projects_25),"",dms_E3_Projects_26) -> 26
B150: =IF(ISBLANK(dms_E3_Projects_27),"",dms_E3_Projects_27) -> 27
B151: =IF(ISBLANK(dms_E3_Projects_28),"",dms_E3_Projects_28) -> 28
B152: =IF(ISBLANK(dms_E3_Projects_29),"",dms_E3_Projects_29) -> 29
B153: =IF(ISBLANK(dms_E3_Projects_30),"",dms_E3_Projects_30) -> 30
B154: =IF(ISBLANK(dms_E3_Projects_31),"",dms_E3_Projects_31) -> 31
B155: =IF(ISBLANK(dms_E3_Projects_32),"",dms_E3_Projects_32) -> 32
B156: =IF(ISBLANK(dms_E3_Projects_33),"",dms_E3_Projects_33) -> 33
B157: =IF(ISBLANK(dms_E3_Projects_34),"",dms_E3_Projects_34) -> 34
B158: =IF(ISBLANK(dms_E3_Projects_35),"",dms_E3_Projects_35) -> 35
B159: =IF(ISBLANK(dms_E3_Projects_36),"",dms_E3_Projects_36) -> 36
B160: =IF(ISBLANK(dms_E3_Projects_37),"",dms_E3_Projects_37) -> 37
B161: =IF(ISBLANK(dms_E3_Projects_38),"",dms_E3_Projects_38) -> 38
B162: =IF(ISBLANK(dms_E3_Projects_39),"",dms_E3_Projects_39) -> 39
B163: =IF(ISBLANK(dms_E3_Projects_40),"",dms_E3_Projects_40) -> 40
B164: =IF(ISBLANK(dms_E3_Projects_41),"",dms_E3_Projects_41) -> 41
B165: =IF(ISBLANK(dms_E3_Projects_42),"",dms_E3_Projects_42) -> 42
B166: =IF(ISBLANK(dms_E3_Projects_43),"",dms_E3_Projects_43) -> 43
B167: =IF(ISBLANK(dms_E3_Projects_44),"",dms_E3_Projects_44) -> 44
B168: =IF(ISBLANK(dms_E3_Projects_45),"",dms_E3_Projects_45) -> 45
B169: =IF(ISBLANK(dms_E3_Projects_46),"",dms_E3_Projects_46) -> 46
B170: =IF(ISBLANK(dms_E3_Projects_47),"",dms_E3_Projects_47) -> 47
B171: =IF(ISBLANK(dms_E3_Projects_48),"",dms_E3_Projects_48) -> 48
B172: =IF(ISBLANK(dms_E3_Projects_49),"",dms_E3_Projects_49) -> 49
B173: =IF(ISBLANK(dms_E3_Projects_50),"",dms_E3_Projects_50) -> 50
B174: Aggregate of other projects with total expenditure of less than $500,000
B175: Total
B177: C. DIRECT MATERIAL EXPENDITURE
C178: EXPENDITURE
C179: =CONCATENATE("$0's, real ",dms_DollarReal) -> $0's, real June 2023
C180: =VLOOKUP(CRCP_y4,'AER lookups'!$B$52:$C$101,2,0) -> 2022 | D180: =CONCATENATE("1 Jan-30 Jun "&(C180+1)) -> 1 Jan-30 Jun 2023 | E180: =FRCP_y1 -> 2023-24 | F180: =FRCP_y2 -> 2024-25 | G180: =FRCP_y3 -> 2025-26 | H180: =FRCP_y4 -> 2026-27 | I180: =FRCP_y5 -> 2027-28
B181: =IF(ISBLANK(dms_E3_Projects_01),"",dms_E3_Projects_01) -> H04 and H43 linkage
B182: =IF(ISBLANK(dms_E3_Projects_02),"",dms_E3_Projects_02) -> 2
B183: =IF(ISBLANK(dms_E3_Projects_03),"",dms_E3_Projects_03) -> Oakleigh HP (LP to HP) - Stage 3
B184: =IF(ISBLANK(dms_E3_Projects_04),"",dms_E3_Projects_04) -> Oakleigh HP (LP to HP) - Stage 4
B185: =IF(ISBLANK(dms_E3_Projects_05),"",dms_E3_Projects_05) -> Sherbrooke Road, Sassafras
B186: =IF(ISBLANK(dms_E3_Projects_06),"",dms_E3_Projects_06) -> Old Coach Road, Kalorama
B187: =IF(ISBLANK(dms_E3_Projects_07),"",dms_E3_Projects_07) -> Toorak Rd 180P10
B188: =IF(ISBLANK(dms_E3_Projects_08),"",dms_E3_Projects_08) -> Vermont (MP upgrade to HP - Stage 1)
B189: =IF(ISBLANK(dms_E3_Projects_09),"",dms_E3_Projects_09) -> High Street (Knox)
B190: =IF(ISBLANK(dms_E3_Projects_10),"",dms_E3_Projects_10) -> Lincoln Road (Olinda Nth)
B191: =IF(ISBLANK(dms_E3_Projects_11),"",dms_E3_Projects_11) -> Blaxland Drive (Knox)
B192: =IF(ISBLANK(dms_E3_Projects_12),"",dms_E3_Projects_12) -> Glenfern (Olinda South)
B193: =IF(ISBLANK(dms_E3_Projects_13),"",dms_E3_Projects_13) -> Azalea Court (Ringwood)
B194: =IF(ISBLANK(dms_E3_Projects_14),"",dms_E3_Projects_14) -> NELP - Bulleen Rd
B195: =IF(ISBLANK(dms_E3_Projects_15),"",dms_E3_Projects_15) -> 15
B196: =IF(ISBLANK(dms_E3_Projects_16),"",dms_E3_Projects_16) -> 16
B197: =IF(ISBLANK(dms_E3_Projects_17),"",dms_E3_Projects_17) -> 17
B198: =IF(ISBLANK(dms_E3_Projects_18),"",dms_E3_Projects_18) -> 18
B199: =IF(ISBLANK(dms_E3_Projects_18),"",dms_E3_Projects_18) -> 18
B200: =IF(ISBLANK(dms_E3_Projects_19),"",dms_E3_Projects_19) -> 19
B201: =IF(ISBLANK(dms_E3_Projects_20),"",dms_E3_Projects_20) -> 20
B202: =IF(ISBLANK(dms_E3_Projects_21),"",dms_E3_Projects_21) -> 21
B203: =IF(ISBLANK(dms_E3_Projects_22),"",dms_E3_Projects_22) -> 22
B204: =IF(ISBLANK(dms_E3_Projects_23),"",dms_E3_Projects_23) -> 23
B205: =IF(ISBLANK(dms_E3_Projects_24),"",dms_E3_Projects_24) -> 24
B206: =IF(ISBLANK(dms_E3_Projects_25),"",dms_E3_Projects_25) -> 25
... 541 more rows

Sheet E4. Meter replacement
B1: =INDEX(dms_Worksheet_List,MATCH(dms_Model,dms_Model_List)) -> REGULATORY REPORTING STATEMENT
B2: =dms_TradingName -> Multinet Gas
B3: =dms_Header_Span -> 2021-22 to 2027-28
B4: E4. METER REPLACEMENT
B6: E4.1 - CAPEX
B7: E4.1.1 - NEW METERS ACQUIRED
C8: EXPENDITURE
C9: =CONCATENATE("$0's, real ",dms_DollarReal) -> $0's, real June 2023
C10: =VLOOKUP(CRCP_y4,'AER lookups'!$B$52:$C$101,2,0) -> 2022 | D10: =CONCATENATE("1 Jan-30 Jun "&(C10+1)) -> 1 Jan-30 Jun 2023 | E10: =FRCP_y1 -> 2023-24 | F10: =FRCP_y2 -> 2024-25 | G10: =FRCP_y3 -> 2025-26 | H10: =FRCP_y4 -> 2026-27 | I10: =FRCP_y5 -> 2027-28
B11: A. DIRECT INTERNAL LABOUR EXPENDITURE
B12: Residential
B13: Industrial and Commercial
B14: Other
B15: Total | C15: =SUM(C12:C14) -> 0 | D15: =SUM(D12:D14) -> 0 | E15: 0 | F15: 0 | G15: 0 | H15: 0 | I15: 0
B16: B. DIRECT CONTRACTOR EXPENDITURE
B17: Residential
B18: Industrial and Commercial
B19: Other
B20: Total | C20: =SUM(C17:C19) -> 0 | D20: =SUM(D17:D19) -> 0 | E20: 0 | F20: 0 | G20: 0 | H20: 0 | I20: 0
B21: C. DIRECT MATERIAL EXPENDITURE
B22: Residential
B23: Industrial and Commercial
B24: Other
B25: Total | C25: =SUM(C22:C24) -> 0 | D25: =SUM(D22:D24) -> 0 | E25: 0 | F25: 0 | G25: 0 | H25: 0 | I25: 0
B26: D. OTHER DIRECT EXPENDITURE
B27: Residential
B28: Industrial and Commercial
B29: Other
B30: Total | C30: =SUM(C27:C29) -> 0 | D30: =SUM(D27:D29) -> 0 | E30: 0 | F30: 0 | G30: 0 | H30: 0 | I30: 0
B31: E. RELATED PARTY MARGIN EXPENDITURE
B32: Residential
B33: Industrial and Commercial
B34: Other
B35: Total | C35: =SUM(C32:C34) -> 0 | D35: =SUM(D32:D34) -> 0 | E35: 0 | F35: 0 | G35: 0 | H35: 0 | I35: 0
B36: F. CAPITAL CONTRIBUTIONS included in the above
B37: Residential
B38: Industrial and Commercial
B39: Other
B40: Total | C40: =SUM(C37:C39) -> 0 | D40: =SUM(D37:D39) -> 0 | E40: 0 | F40: 0 | G40: 0 | H40: 0 | I40: 0
B41: TOTAL | C41: =SUM(C15,C20,C25,C30,C35,C40) -> 0 | D41: =SUM(D15,D20,D25,D30,D35,D40) -> 0 | E41: 0 | F41: 0 | G41: 0 | H41: 0 | I41: 0
B43: E4.1.2 - METER REFURBISHMENT
C44: EXPENDITURE
C45: =CONCATENATE("$0's, real ",dms_DollarReal) -> $0's, real June 2023
C46: =VLOOKUP(CRCP_y4,'AER lookups'!$B$52:$C$101,2,0) -> 2022 | D46: =CONCATENATE("1 Jan-30 Jun "&(C46+1)) -> 1 Jan-30 Jun 2023 | E46: =FRCP_y1 -> 2023-24 | F46: =FRCP_y2 -> 2024-25 | G46: =FRCP_y3 -> 2025-26 | H46: =FRCP_y4 -> 2026-27 | I46: =FRCP_y5 -> 2027-28
B47: A. DIRECT INTERNAL LABOUR EXPENDITURE
B48: Residential
B49: Industrial and Commercial
B50: Other
B51: Total | C51: =SUM(C48:C50) -> 0 | D51: =SUM(D48:D50) -> 0 | E51: 0 | F51: 0 | G51: 0 | H51: 0 | I51: 0
B52: B. DIRECT CONTRACTOR EXPENDITURE
B53: Residential
B54: Industrial and Commercial
B55: Other
B56: Total | C56: =SUM(C53:C55) -> 0 | D56: =SUM(D53:D55) -> 0 | E56: 0 | F56: 0 | G56: 0 | H56: 0 | I56: 0
B57: C. DIRECT MATERIAL EXPENDITURE
B58: Residential
B59: Industrial and Commercial
B60: Other
B61: Total | C61: =SUM(C58:C60) -> 0 | D61: =SUM(D58:D60) -> 0 | E61: 0 | F61: 0 | G61: 0 | H61: 0 | I61: 0
B62: D. OTHER DIRECT EXPENDITURE
B63: Residential
B64: Industrial and Commercial
B65: Other
B66: Total | C66: =SUM(C63:C65) -> 0 | D66: =SUM(D63:D65) -> 0 | E66: 0 | F66: 0 | G66: 0 | H66: 0 | I66: 0
B67: E. RELATED PARTY MARGIN EXPENDITURE
B68: Residential
B69: Industrial and Commercial
B70: Other
B71: Total | C71: =SUM(C68:C70) -> 0 | D71: =SUM(D68:D70) -> 0 | E71: 0 | F71: 0 | G71: 0 | H71: 0 | I71: 0
B72: F. CAPITAL CONTRIBUTIONS included in the above
B73: Residential
B74: Industrial and Commercial
B75: Other
B76: Total | C76: =SUM(C73:C75) -> 0 | D76: =SUM(D73:D75) -> 0 | E76: 0 | F76: 0 | G76: 0 | H76: 0 | I76: 0
B77: TOTAL | C77: =SUM(C51,C56,C61,C66,C71,C76) -> 0 | D77: =SUM(D51,D56,D61,D66,D71,D76) -> 0 | E77: 0 | F77: 0 | G77: 0 | H77: 0 | I77: 0
B79: E4.1.3 - METER INSTALLATION
C80: EXPENDITURE
C81: =CONCATENATE("$0's, real ",dms_DollarReal) -> $0's, real June 2023
C82: =VLOOKUP(CRCP_y4,'AER lookups'!$B$52:$C$101,2,0) -> 2022 | D82: =CONCATENATE("1 Jan-30 Jun "&(C82+1)) -> 1 Jan-30 Jun 2023 | E82: =FRCP_y1 -> 2023-24 | F82: =FRCP_y2 -> 2024-25 | G82: =FRCP_y3 -> 2025-26 | H82: =FRCP_y4 -> 2026-27 | I82: =FRCP_y5 -> 2027-28
B83: A. DIRECT INTERNAL LABOUR EXPENDITURE
B84: Residential
B85: Industrial and Commercial
B86: Other
B87: Total | C87: =SUM(C84:C86) -> 0 | D87: =SUM(D84:D86) -> 0 | E87: 0 | F87: 0 | G87: 0 | H87: 0 | I87: 0
B88: B. DIRECT CONTRACTOR EXPENDITURE
B89: Residential
B90: Industrial and Commercial
B91: Other
B92: Total | C92: =SUM(C89:C91) -> 0 | D92: =SUM(D89:D91) -> 0 | E92: 0 | F92: 0 | G92: 0 | H92: 0 | I92: 0
B93: C. DIRECT MATERIAL EXPENDITURE
B94: Residential
B95: Industrial and Commercial
B96: Other
B97: Total | C97: =SUM(C94:C96) -> 0 | D97: =SUM(D94:D96) -> 0 | E97: 0 | F97: 0 | G97: 0 | H97: 0 | I97: 0
B98: D. OTHER DIRECT EXPENDITURE
B99: Residential
B100: Industrial and Commercial
B101: Other
B102: Total | C102: =SUM(C99:C101) -> 0 | D102: =SUM(D99:D101) -> 0 | E102: 0 | F102: 0 | G102: 0 | H102: 0 | I102: 0
B103: E. RELATED PARTY MARGIN EXPENDITURE
B104: Residential
B105: Industrial and Commercial
B106: Other
B107: Total | C107: =SUM(C104:C106) -> 0 | D107: =SUM(D104:D106) -> 0 | E107: 0 | F107: 0 | G107: 0 | H107: 0 | I107: 0
B108: F. CAPITAL CONTRIBUTIONS included in the above
B109: Residential
B110: Industrial and Commercial
B111: Other
B112: Total | C112: =SUM(C109:C111) -> 0 | D112: =SUM(D109:D111) -> 0 | E112: 0 | F112: 0 | G112: 0 | H112: 0 | I112: 0
B113: TOTAL | C113: =SUM(C87,C92,C97,C102,C107,C112) -> 0 | D113: =SUM(D87,D92,D97,D102,D107,D112) -> 0 | E113: 0 | F113: 0 | G113: 0 | H113: 0 | I113: 0
B115: E4.1.4 - OTHER METER REPLACEMENT CAPEX
C116: EXPENDITURE
C117: =CONCATENATE("$0's, real ",dms_DollarReal) -> $0's, real June 2023
C118: =VLOOKUP(CRCP_y4,'AER lookups'!$B$52:$C$101,2,0) -> 2022 | D118: =CONCATENATE("1 Jan-30 Jun "&(C118+1)) -> 1 Jan-30 Jun 2023 | E118: =FRCP_y1 -> 2023-24 | F118: =FRCP_y2 -> 2024-25 | G118: =FRCP_y3 -> 2025-26 | H118: =FRCP_y4 -> 2026-27 | I118: =FRCP_y5 -> 2027-28
B119: A. DIRECT INTERNAL LABOUR EXPENDITURE
B120: Residential
B121: Industrial and Commercial
B122: Other
B123: Total | C123: =SUM(C120:C122) -> 0 | D123: =SUM(D120:D122) -> 0 | E123: 0 | F123: 0 | G123: 0 | H123: 0 | I123: 0
B124: B. DIRECT CONTRACTOR EXPENDITURE
B125: Residential
B126: Industrial and Commercial
B127: Other
B128: Total | C128: =SUM(C125:C127) -> 0 | D128: =SUM(D125:D127) -> 0 | E128: 0 | F128: 0 | G128: 0 | H128: 0 | I128: 0
B129: C. DIRECT MATERIAL EXPENDITURE
B130: Residential
B131: Industrial and Commercial
B132: Other
B133: Total | C133: =SUM(C130:C132) -> 0 | D133: =SUM(D130:D132) -> 0 | E133: 0 | F133: 0 | G133: 0 | H133: 0 | I133: 0
B134: D. OTHER DIRECT EXPENDITURE
B135: Residential
B136: Industrial and Commercial
B137: Other
B138: Total | C138: =SUM(C135:C137) -> 0 | D138: =SUM(D135:D137) -> 0 | E138: 0 | F138: 0 | G138: 0 | H138: 0 | I138: 0
B139: E. RELATED PARTY MARGIN EXPENDITURE
B140: Residential
B141: Industrial and Commercial
B142: Other
B143: Total | C143: =SUM(C140:C142) -> 0 | D143: =SUM(D140:D142) -> 0 | E143: 0 | F143: 0 | G143: 0 | H143: 0 | I143: 0
B144: F. CAPITAL CONTRIBUTIONS included in the above
B145: Residential
B146: Industrial and Commercial
B147: Other
B148: Total | C148: =SUM(C145:C147) -> 0 | D148: =SUM(D145:D147) -> 0 | E148: 0 | F148: 0 | G148: 0 | H148: 0 | I148: 0
B149: TOTAL | C149: =SUM(C123,C128,C133,C138,C143,C148) -> 0 | D149: =SUM(D123,D128,D133,D138,D143,D148) -> 0 | E149: 0 | F149: 0 | G149: 0 | H149: 0 | I149: 0
B152: E4.2 - VOLUMES
B153: E4.2.1 - NUMBER OF NEW METERS ACQUIRED
C154: VOLUMES
C155: 0s
C156: =VLOOKUP(CRCP_y4,'AER lookups'!$B$52:$C$101,2,0) -> 2022 | D156: =CONCATENATE("1 Jan-30 Jun "&(C156+1)) -> 1 Jan-30 Jun 2023 | E156: =FRCP_y1 -> 2023-24 | F156: =FRCP_y2 -> 2024-25 | G156: =FRCP_y3 -> 2025-26 | H156: =FRCP_y4 -> 2026-27 | I156: =FRCP_y5 -> 2027-28
B157: Residential | C157: 14152.802 | D157: 15274.3448 | E157: 19163 | F157: 26407 | G157: 27024 | H157: 45179 | I157: 54911
B158: Industrial and commercial | C158: 297.436 | D158: 321.0064 | E158: 199 | F158: 235 | G158: 269 | H158: 271 | I158: 240
B159: Other meters | C159: 1 | D159: 1
B160: Total | C160: =SUM(C157:C159) -> 14451.238 | D160: =SUM(D157:D159) -> 15596.3512 | E160: 19362 | F160: 26642 | G160: 27293 | H160: 45450 | I160: 55151
B163: E4.2.2 - NUMBER OF METERS REFURBISHED
C164: VOLUMES
C165: 0s
C166: =VLOOKUP(CRCP_y4,'AER lookups'!$B$52:$C$101,2,0) -> 2022 | D166: =CONCATENATE("1 Jan-30 Jun "&(C166+1)) -> 1 Jan-30 Jun 2023 | E166: =FRCP_y1 -> 2023-24 | F166: =FRCP_y2 -> 2024-25 | G166: =FRCP_y3 -> 2025-26 | H166: =FRCP_y4 -> 2026-27 | I166: =FRCP_y5 -> 2027-28
B167: A. REFURBISHABLE METERS REMOVED
B168: Residential
B169: Industrial and commercial
B170: Other meters
B171: Total | C171: =SUM(C168:C170) -> 0 | D171: 0 | E171: 0 | F171: 0 | G171: 0 | H171: 0 | I171: 0
B172: B. METERS DECOMMISSIONED
B173: Residential
B174: Industrial and commercial
B175: Other meters
B176: Total | C176: =SUM(C173:C175) -> 0 | D176: 0 | E176: 0 | F176: 0 | G176: 0 | H176: 0 | I176: 0
B177: TOTAL | C177: =SUM(C171,C176) -> 0 | D177: =SUM(D171,D176) -> 0 | E177: 0 | F177: 0 | G177: 0 | H177: 0 | I177: 0
B180: E4.2.3 - NUMBER OF METERS INSTALLED
C181: VOLUMES
C182: 0s
C183: =VLOOKUP(CRCP_y4,'AER lookups'!$B$52:$C$101,2,0) -> 2022 | D183: =CONCATENATE("1 Jan-30 Jun "&(C183+1)) -> 1 Jan-30 Jun 2023 | E183: =FRCP_y1 -> 2023-24 | F183: =FRCP_y2 -> 2024-25 | G183: =FRCP_y3 -> 2025-26 | H183: =FRCP_y4 -> 2026-27 | I183: =FRCP_y5 -> 2027-28
B184: Residential | C184: 14121.638 | D184: 15240.7112
B185: Industrial and commercial | C185: 433.116 | D185: 467.4384
B186: Other meters | C186: 4 | D186: 3
B187: Total | C187: =SUM(C184:C186) -> 14558.754 | D187: =SUM(D184:D186) -> 15711.1496 | E187: 0 | F187: 0 | G187: 0 | H187: 0 | I187: 0
B190: E4.2.4 - NUMBER OF METERS REMOVED / DECOMMISSIONED
C191: VOLUMES
C192: 0s
C193: =VLOOKUP(CRCP_y4,'AER lookups'!$B$52:$C$101,2,0) -> 2022 | D193: =CONCATENATE("1 Jan-30 Jun "&(C193+1)) -> 1 Jan-30 Jun 2023 | E193: =FRCP_y1 -> 2023-24 | F193: =FRCP_y2 -> 2024-25 | G193: =FRCP_y3 -> 2025-26 | H193: =FRCP_y4 -> 2026-27 | I193: =FRCP_y5 -> 2027-28
B194: Residential | C194: 13412.074 | D194: 14474.9176
B195: Industrial and commercial | C195: 44.096 | D195: 47.5904
B196: Other meters | C196: 0 | D196: 0
B197: Total | C197: =SUM(C194:C196) -> 13456.17 | D197: =SUM(D194:D196) -> 14522.508 | E197: 0 | F197: 0 | G197: 0 | H197: 0 | I197: 0
B200: E4.2.5 - OTHER METER REPLACEMENT VOLUMES
C201: VOLUMES
C202: 0s
C203: =VLOOKUP(CRCP_y4,'AER lookups'!$B$52:$C$101,2,0) -> 2022 | D203: =CONCATENATE("1 Jan-30 Jun "&(C203+1)) -> 1 Jan-30 Jun 2023 | E203: =FRCP_y1 -> 2023-24 | F203: =FRCP_y2 -> 2024-25 | G203: =FRCP_y3 -> 2025-26 | H203: =FRCP_y4 -> 2026-27 | I203: =FRCP_y5 -> 2027-28
B204: Residential | E204: 500 | F204: 500 | G204: 1550 | H204: 1550 | I204: 1550
B205: Industrial and commercial
B206: Other meters
B207: Total | C207: =SUM(C204:C206) -> 0 | D207: =SUM(D204:D206) -> 0 | E207: 500 | F207: 500 | G207: 1550 | H207: 1550 | I207: 1550
B210: E4.2.2 - NUMBER OF METERS Refurbished - replaced 6 May 2022
C211: VOLUMES
C212: 0s
C213: =VLOOKUP(CRCP_y4,'AER lookups'!$B$52:$C$101,2,0) -> 2022 | D213: =CONCATENATE("1 Jan-30 Jun "&(C213+1)) -> 1 Jan-30 Jun 2023 | E213: =FRCP_y1 -> 2023-24 | F213: =FRCP_y2 -> 2024-25 | G213: =FRCP_y3 -> 2025-26 | H213: =FRCP_y4 -> 2026-27 | I213: =FRCP_y5 -> 2027-28
B214: Residential | C214: 3416.592 | D214: 3687.3408
B215: Industrial and commercial | C215: 373.862 | D215: 403.4888
B216: Other meters | C216: 2 | D216: 2
... 1 more rows

Sheet E5. New Connections
B1: =INDEX(dms_Worksheet_List,MATCH(dms_Model,dms_Model_List)) -> REGULATORY REPORTING STATEMENT
B2: =dms_TradingName -> Multinet Gas
B3: =dms_Header_Span -> 2021-22 to 2027-28
B4: E5. NEW CONNECTIONS
B6: E5.1 - EXPENDITURE
B7: E5.1.1 - CAPEX - BY CONNECTION TYPE
B8: A. DIRECT INTERNAL LABOUR EXPENDITURE
D9: EXPENDITURE
D10: =CONCATENATE("$0's, real ",dms_DollarReal) -> $0's, real June 2023
D11: =VLOOKUP(CRCP_y4,'AER lookups'!$B$52:$C$101,2,0) -> 2022 | E11: =CONCATENATE("1 Jan-30 Jun "&(D11+1)) -> 1 Jan-30 Jun 2023 | F11: =FRCP_y1 -> 2023-24 | G11: =FRCP_y2 -> 2024-25 | H11: =FRCP_y3 -> 2025-26 | I11: =FRCP_y4 -> 2026-27 | J11: =FRCP_y5 -> 2027-28
B12: (i) ELECTRICITY TO GAS
B13: Distribution Mains
B14: Inlet service pipes
B15: Meters
C16: Total | D16: =SUM(D13:D15) -> 0 | E16: =SUM(E13:E15) -> 0 | F16: 0 | G16: 0 | H16: 0 | I16: 0 | J16: 0
B17: (ii) NEW HOMES
B18: Distribution Mains
B19: Inlet service pipes
B20: Meters
C21: Total
B22: (iii) NEW MEDIUM DENSITY / HIGH RISE
B23: Distribution Mains
B24: Inlet service pipes
B25: Meters
C26: Total | D26: =SUM(D23:D25) -> 0 | E26: =SUM(E23:E25) -> 0 | F26: =SUM(F23:F25) -> 0 | G26: =SUM(G23:G25) -> 0 | H26: =SUM(H23:H25) -> 0 | I26: =SUM(I23:I25) -> 0 | J26: =SUM(J23:J25) -> 0
B27: (iv) INDUSTRIAL & COMMERCIAL TARIFF
B28: Distribution Mains
B29: Inlet service pipes
B30: Meters
C31: Total | D31: =SUM(D28:D30) -> 0 | E31: =SUM(E28:E30) -> 0 | F31: =SUM(F28:F30) -> 0 | G31: =SUM(G28:G30) -> 0 | H31: =SUM(H28:H30) -> 0 | I31: =SUM(I28:I30) -> 0 | J31: =SUM(J28:J30) -> 0
B32: (v) INDUSTRIAL & COMMERCIAL CONTRACT
B33: Distribution Mains
B34: Inlet service pipes
B35: Meters
C36: Total
C37: TOTAL
B39: B. DIRECT CONTRACTOR EXPENDITURE
D40: EXPENDITURE
D41: =CONCATENATE("$0's, real ",dms_DollarReal) -> $0's, real June 2023
D42: =VLOOKUP(CRCP_y4,'AER lookups'!$B$52:$C$101,2,0) -> 2022 | E42: =CONCATENATE("1 Jan-30 Jun "&(D42+1)) -> 1 Jan-30 Jun 2023 | F42: =FRCP_y1 -> 2023-24 | G42: =FRCP_y2 -> 2024-25 | H42: =FRCP_y3 -> 2025-26 | I42: =FRCP_y4 -> 2026-27 | J42: =FRCP_y5 -> 2027-28
B43: (i) ELECTRICITY TO GAS
B44: Distribution Mains
B45: Inlet service pipes
B46: Meters
C47: Total | D47: =SUM(D44:D46) -> 0 | E47: =SUM(E44:E46) -> 0 | F47: =SUM(F44:F46) -> 0 | G47: =SUM(G44:G46) -> 0 | H47: =SUM(H44:H46) -> 0 | I47: =SUM(I44:I46) -> 0 | J47: =SUM(J44:J46) -> 0
B48: (ii) NEW HOMES
B49: Distribution Mains
B50: Inlet service pipes
B51: Meters
C52: Total
B53: (iii) NEW MEDIUM DENSITY / HIGH RISE
B54: Distribution Mains
B55: Inlet service pipes
B56: Meters
C57: Total | D57: =SUM(D54:D56) -> 0 | E57: =SUM(E54:E56) -> 0 | F57: =SUM(F54:F56) -> 0 | G57: =SUM(G54:G56) -> 0 | H57: =SUM(H54:H56) -> 0 | I57: =SUM(I54:I56) -> 0 | J57: =SUM(J54:J56) -> 0
B58: (iv) INDUSTRIAL & COMMERCIAL TARIFF
B59: Distribution Mains
B60: Inlet service pipes
B61: Meters
C62: Total
B63: (v) INDUSTRIAL & COMMERCIAL CONTRACT
B64: Distribution Mains
B65: Inlet service pipes
B66: Meters
C67: Total
C68: TOTAL
B70: C. DIRECT MATERIAL EXPENDITURE
D71: EXPENDITURE
D72: =CONCATENATE("$0's, real ",dms_DollarReal) -> $0's, real June 2023
D73: =VLOOKUP(CRCP_y4,'AER lookups'!$B$52:$C$101,2,0) -> 2022 | E73: =CONCATENATE("1 Jan-30 Jun "&(D73+1)) -> 1 Jan-30 Jun 2023 | F73: =FRCP_y1 -> 2023-24 | G73: =FRCP_y2 -> 2024-25 | H73: =FRCP_y3 -> 2025-26 | I73: =FRCP_y4 -> 2026-27 | J73: =FRCP_y5 -> 2027-28
B74: (i) ELECTRICITY TO GAS
B75: Distribution Mains
B76: Inlet service pipes
B77: Meters
C78: Total | D78: =SUM(D75:D77) -> 0 | E78: =SUM(E75:E77) -> 0 | F78: =SUM(F75:F77) -> 0 | G78: =SUM(G75:G77) -> 0 | H78: =SUM(H75:H77) -> 0 | I78: =SUM(I75:I77) -> 0 | J78: =SUM(J75:J77) -> 0
B79: (ii) NEW HOMES
B80: Distribution Mains
B81: Inlet service pipes
B82: Meters
C83: Total | D83: =SUM(D80:D82) -> 0 | E83: =SUM(E80:E82) -> 0 | F83: =SUM(F80:F82) -> 0 | G83: =SUM(G80:G82) -> 0 | H83: =SUM(H80:H82) -> 0 | I83: =SUM(I80:I82) -> 0 | J83: =SUM(J80:J82) -> 0
B84: (iii) NEW MEDIUM DENSITY / HIGH RISE
B85: Distribution Mains
B86: Inlet service pipes
B87: Meters
C88: Total | D88: =SUM(D85:D87) -> 0 | E88: =SUM(E85:E87) -> 0 | F88: =SUM(F85:F87) -> 0 | G88: =SUM(G85:G87) -> 0 | H88: =SUM(H85:H87) -> 0 | I88: =SUM(I85:I87) -> 0 | J88: =SUM(J85:J87) -> 0
B89: (iv) INDUSTRIAL & COMMERCIAL TARIFF
B90: Distribution Mains
B91: Inlet service pipes
B92: Meters
C93: Total | D93: =SUM(D90:D92) -> 0 | E93: =SUM(E90:E92) -> 0 | F93: =SUM(F90:F92) -> 0 | G93: =SUM(G90:G92) -> 0 | H93: =SUM(H90:H92) -> 0 | I93: =SUM(I90:I92) -> 0 | J93: =SUM(J90:J92) -> 0
B94: (v) INDUSTRIAL & COMMERCIAL CONTRACT
B95: Distribution Mains
B96: Inlet service pipes
B97: Meters
C98: Total | D98: =SUM(D95:D97) -> 0 | E98: =SUM(E95:E97) -> 0 | F98: =SUM(F95:F97) -> 0 | G98: =SUM(G95:G97) -> 0 | H98: =SUM(H95:H97) -> 0 | I98: =SUM(I95:I97) -> 0 | J98: =SUM(J95:J97) -> 0
C99: TOTAL | D99: =SUM(D98,D93,D88,D83,D78) -> 0 | E99: =SUM(E98,E93,E88,E83,E78) -> 0 | F99: =SUM(F98,F93,F88,F83,F78) -> 0 | G99: =SUM(G98,G93,G88,G83,G78) -> 0 | H99: =SUM(H98,H93,H88,H83,H78) -> 0 | I99: =SUM(I98,I93,I88,I83,I78) -> 0 | J99: =SUM(J98,J93,J88,J83,J78) -> 0
B101: D. OTHER DIRECT EXPENDITURE
D102: EXPENDITURE
D103: =CONCATENATE("$0's, real ",dms_DollarReal) -> $0's, real June 2023
D104: =VLOOKUP(CRCP_y4,'AER lookups'!$B$52:$C$101,2,0) -> 2022 | E104: =CONCATENATE("1 Jan-30 Jun "&(D104+1)) -> 1 Jan-30 Jun 2023 | F104: =FRCP_y1 -> 2023-24 | G104: =FRCP_y2 -> 2024-25 | H104: =FRCP_y3 -> 2025-26 | I104: =FRCP_y4 -> 2026-27 | J104: =FRCP_y5 -> 2027-28
B105: (i) ELECTRICITY TO GAS
B106: Distribution Mains
B107: Inlet service pipes
B108: Meters
C109: Total | D109: =SUM(D106:D108) -> 0 | E109: =SUM(E106:E108) -> 0 | F109: =SUM(F106:F108) -> 0 | G109: =SUM(G106:G108) -> 0 | H109: =SUM(H106:H108) -> 0 | I109: =SUM(I106:I108) -> 0 | J109: =SUM(J106:J108) -> 0
B110: (ii) NEW HOMES
B111: Distribution Mains
B112: Inlet service pipes
B113: Meters
C114: Total | D114: =SUM(D111:D113) -> 0 | E114: =SUM(E111:E113) -> 0 | F114: =SUM(F111:F113) -> 0 | G114: =SUM(G111:G113) -> 0 | H114: =SUM(H111:H113) -> 0 | I114: =SUM(I111:I113) -> 0 | J114: =SUM(J111:J113) -> 0
B115: (iii) NEW MEDIUM DENSITY / HIGH RISE
B116: Distribution Mains
B117: Inlet service pipes
B118: Meters
C119: Total | D119: =SUM(D116:D118) -> 0 | E119: =SUM(E116:E118) -> 0 | F119: =SUM(F116:F118) -> 0 | G119: =SUM(G116:G118) -> 0 | H119: =SUM(H116:H118) -> 0 | I119: =SUM(I116:I118) -> 0 | J119: =SUM(J116:J118) -> 0
B120: (iv) INDUSTRIAL & COMMERCIAL TARIFF
B121: Distribution Mains
B122: Inlet service pipes
B123: Meters
C124: Total | D124: =SUM(D121:D123) -> 0 | E124: =SUM(E121:E123) -> 0 | F124: =SUM(F121:F123) -> 0 | G124: =SUM(G121:G123) -> 0 | H124: =SUM(H121:H123) -> 0 | I124: =SUM(I121:I123) -> 0 | J124: =SUM(J121:J123) -> 0
B125: (v) INDUSTRIAL & COMMERCIAL CONTRACT
B126: Distribution Mains
B127: Inlet service pipes
B128: Meters
C129: Total | D129: =SUM(D126:D128) -> 0 | E129: =SUM(E126:E128) -> 0 | F129: =SUM(F126:F128) -> 0 | G129: =SUM(G126:G128) -> 0 | H129: =SUM(H126:H128) -> 0 | I129: =SUM(I126:I128) -> 0 | J129: =SUM(J126:J128) -> 0
C130: TOTAL | D130: =SUM(D129,D124,D119,D114,D109) -> 0 | E130: =SUM(E129,E124,E119,E114,E109) -> 0 | F130: =SUM(F129,F124,F119,F114,F109) -> 0 | G130: =SUM(G129,G124,G119,G114,G109) -> 0 | H130: =SUM(H129,H124,H119,H114,H109) -> 0 | I130: =SUM(I129,I124,I119,I114,I109) -> 0 | J130: =SUM(J129,J124,J119,J114,J109) -> 0
B132: E. RELATED PARTY MARGIN EXPENDITURE
D133: EXPENDITURE
D134: =CONCATENATE("$0's, real ",dms_DollarReal) -> $0's, real June 2023
D135: =VLOOKUP(CRCP_y4,'AER lookups'!$B$52:$C$101,2,0) -> 2022 | E135: =CONCATENATE("1 Jan-30 Jun "&(D135+1)) -> 1 Jan-30 Jun 2023 | F135: =FRCP_y1 -> 2023-24 | G135: =FRCP_y2 -> 2024-25 | H135: =FRCP_y3 -> 2025-26 | I135: =FRCP_y4 -> 2026-27 | J135: =FRCP_y5 -> 2027-28
B136: (i) ELECTRICITY TO GAS
B137: Distribution Mains
B138: Inlet service pipes
B139: Meters
C140: Total | D140: =SUM(D137:D139) -> 0 | E140: =SUM(E137:E139) -> 0 | F140: =SUM(F137:F139) -> 0 | G140: =SUM(G137:G139) -> 0 | H140: =SUM(H137:H139) -> 0 | I140: =SUM(I137:I139) -> 0 | J140: =SUM(J137:J139) -> 0
B141: (ii) NEW HOMES
B142: Distribution Mains
B143: Inlet service pipes
B144: Meters
C145: Total | D145: =SUM(D142:D144) -> 0 | E145: =SUM(E142:E144) -> 0 | F145: =SUM(F142:F144) -> 0 | G145: =SUM(G142:G144) -> 0 | H145: =SUM(H142:H144) -> 0 | I145: =SUM(I142:I144) -> 0 | J145: =SUM(J142:J144) -> 0
B146: (iii) NEW MEDIUM DENSITY / HIGH RISE
B147: Distribution Mains
B148: Inlet service pipes
B149: Meters
C150: Total | D150: =SUM(D147:D149) -> 0 | E150: =SUM(E147:E149) -> 0 | F150: =SUM(F147:F149) -> 0 | G150: =SUM(G147:G149) -> 0 | H150: =SUM(H147:H149) -> 0 | I150: =SUM(I147:I149) -> 0 | J150: =SUM(J147:J149) -> 0
B151: (iv) INDUSTRIAL & COMMERCIAL TARIFF
B152: Distribution Mains
B153: Inlet service pipes
B154: Meters
C155: Total | D155: =SUM(D152:D154) -> 0 | E155: =SUM(E152:E154) -> 0 | F155: =SUM(F152:F154) -> 0 | G155: =SUM(G152:G154) -> 0 | H155: =SUM(H152:H154) -> 0 | I155: =SUM(I152:I154) -> 0 | J155: =SUM(J152:J154) -> 0
B156: (v) INDUSTRIAL & COMMERCIAL CONTRACT
B157: Distribution Mains
B158: Inlet service pipes
B159: Meters
C160: Total | D160: =SUM(D157:D159) -> 0 | E160: =SUM(E157:E159) -> 0 | F160: =SUM(F157:F159) -> 0 | G160: =SUM(G157:G159) -> 0 | H160: =SUM(H157:H159) -> 0 | I160: =SUM(I157:I159) -> 0 | J160: =SUM(J157:J159) -> 0
C161: TOTAL | D161: =SUM(D160,D155,D150,D145,D140) -> 0 | E161: =SUM(E160,E155,E150,E145,E140) -> 0 | F161: =SUM(F160,F155,F150,F145,F140) -> 0 | G161: =SUM(G160,G155,G150,G145,G140) -> 0 | H161: =SUM(H160,H155,H150,H145,H140) -> 0 | I161: =SUM(I160,I155,I150,I145,I140) -> 0 | J161: =SUM(J160,J155,J150,J145,J140) -> 0
B163: F. CAPITAL CONTRIBUTIONS included in the above
D164: EXPENDITURE
D165: =CONCATENATE("$0's, real ",dms_DollarReal) -> $0's, real June 2023
D166: =VLOOKUP(CRCP_y4,'AER lookups'!$B$52:$C$101,2,0) -> 2022 | E166: =CONCATENATE("1 Jan-30 Jun "&(D166+1)) -> 1 Jan-30 Jun 2023 | F166: =FRCP_y1 -> 2023-24 | G166: =FRCP_y2 -> 2024-25 | H166: =FRCP_y3 -> 2025-26 | I166: =FRCP_y4 -> 2026-27 | J166: =FRCP_y5 -> 2027-28
B167: (i) ELECTRICITY TO GAS
B168: Distribution Mains
B169: Inlet service pipes
B170: Meters
C171: Total | D171: =SUM(D168:D170) -> 0 | E171: =SUM(E168:E170) -> 0 | F171: =SUM(F168:F170) -> 0 | G171: =SUM(G168:G170) -> 0 | H171: =SUM(H168:H170) -> 0 | I171: =SUM(I168:I170) -> 0 | J171: =SUM(J168:J170) -> 0
B172: (ii) NEW HOMES
B173: Distribution Mains
B174: Inlet service pipes | D174: 1100500 | E174: 1640000
B175: Meters
C176: Total | D176: =SUM(D173:D175) -> 1100500 | E176: =SUM(E173:E175) -> 1640000 | F176: =SUM(F173:F175) -> 0 | G176: =SUM(G173:G175) -> 0 | H176: =SUM(H173:H175) -> 0 | I176: =SUM(I173:I175) -> 0 | J176: =SUM(J173:J175) -> 0
B177: (iii) NEW MEDIUM DENSITY / HIGH RISE
B178: Distribution Mains
B179: Inlet service pipes
B180: Meters
C181: Total | D181: =SUM(D178:D180) -> 0 | E181: =SUM(E178:E180) -> 0 | F181: =SUM(F178:F180) -> 0 | G181: =SUM(G178:G180) -> 0 | H181: =SUM(H178:H180) -> 0 | I181: =SUM(I178:I180) -> 0 | J181: =SUM(J178:J180) -> 0
B182: (iv) INDUSTRIAL & COMMERCIAL TARIFF
B183: Distribution Mains
B184: Inlet service pipes | F184: 1796720.299 | G184: 1790384.799 | H184: 1800374.775 | I184: 1799632.708 | J184: 1797597.806
B185: Meters
C186: Total | D186: =SUM(D183:D185) -> 0 | E186: =SUM(E183:E185) -> 0 | F186: =SUM(F183:F185) -> 1796720.299 | G186: =SUM(G183:G185) -> 1790384.799 | H186: =SUM(H183:H185) -> 1800374.775 | I186: =SUM(I183:I185) -> 1799632.708 | J186: =SUM(J183:J185) -> 1797597.806
B187: (v) INDUSTRIAL & COMMERCIAL CONTRACT
B188: Distribution Mains
B189: Inlet service pipes | D189: 271000 | E189: 604027
B190: Meters
C191: Total | D191: =SUM(D188:D190) -> 271000 | E191: =SUM(E188:E190) -> 604027 | F191: =SUM(F188:F190) -> 0 | G191: =SUM(G188:G190) -> 0 | H191: =SUM(H188:H190) -> 0 | I191: =SUM(I188:I190) -> 0 | J191: =SUM(J188:J190) -> 0
C192: TOTAL | D192: =SUM(D191,D186,D181,D176,D171) -> 1371500 | E192: =SUM(E191,E186,E181,E176,E171) -> 2244027 | F192: =SUM(F191,F186,F181,F176,F171) -> 1796720.299 | G192: =SUM(G191,G186,G181,G176,G171) -> 1790384.799 | H192: =SUM(H191,H186,H181,H176,H171) -> 1800374.775 | I192: =SUM(I191,I186,I181,I176,I171) -> 1799632.708 | J192: =SUM(J191,J186,J181,J176,J171) -> 1797597.806
B195: E5.2 - UNIT RATES
B196: E5.2.1 - UNIT RATES - PER CONNECTION - BY CONNECTION TYPE
D197: RATES PER CONNECTION
D198: =CONCATENATE("$0's, real ",dms_DollarReal) -> $0's, real June 2023
C199: Units | D199: =VLOOKUP(CRCP_y4,'AER lookups'!$B$52:$C$101,2,0) -> 2022 | E199: =CONCATENATE("1 Jan-30 Jun "&(D199+1)) -> 1 Jan-30 Jun 2023 | F199: =FRCP_y1 -> 2023-24 | G199: =FRCP_y2 -> 2024-25 | H199: =FRCP_y3 -> 2025-26 | I199: =FRCP_y4 -> 2026-27 | J199: =FRCP_y5 -> 2027-28
B200: A. ELECTRICITY TO GAS
B201: Distribution mains | C201: per metre per connection
B202: Inlet service pipes | C202: per service per connection
B203: Meters | C203: number per connection
B204: B. NEW HOMES
B205: Distribution mains | C205: per metre per connection
B206: Inlet service pipes | C206: per service per connection
B207: Meters | C207: number per connection
B208: C. NEW MEDIUM DENSITY / HIGH RISE
... 67 more rows

Sheet E6. Non-network
B1: =INDEX(dms_Worksheet_List,MATCH(dms_Model,dms_Model_List)) -> REGULATORY REPORTING STATEMENT
B2: =dms_TradingName -> Multinet Gas
B3: =dms_Header_Span -> 2021-22 to 2027-28
B4: E6. NON-NETWORK EXPENDITURE
B6: E6.5 - TELEMETRY
B8: Please list all projects here:
B9: End of Life Replacement
B10: Network Control and Monitoring
B11: Hazardous Area Upgrades
B13: Network Control Program
B14: RTU (Remote Telemetry Units)
B15: Kingfisher RTU Replacement
B16: TRIO Radio Replace/Streamline & Radio Works
B17: Point Blue Logger Implementation
B18: Gas Detector Installation
B19: Vortex Flow meter Installation
B20: New Control Room - Perth
B26: E6.5.1 - CAPEX - BY PROJECT
B27: A. DIRECT INTERNAL LABOUR EXPENDITURE
C28: EXPENDITURE
C29: =CONCATENATE("$0's, real ",dms_DollarReal) -> $0's, real June 2023
C30: =VLOOKUP(CRCP_y4,'AER lookups'!$B$52:$C$101,2,0) -> 2022 | D30: =CONCATENATE("1 Jan-30 Jun "&(C30+1)) -> 1 Jan-30 Jun 2023 | E30: =FRCP_y1 -> 2023-24 | F30: =FRCP_y2 -> 2024-25 | G30: =FRCP_y3 -> 2025-26 | H30: =FRCP_y4 -> 2026-27 | I30: =FRCP_y5 -> 2027-28
B31: =IF(ISBLANK(dms_E65_Projects_01),"",dms_E65_Projects_01) -> End of Life Replacement | E31: 18509.33424 | F31: 16987.39294 | G31: 19479.74457 | H31: 19320.02723 | I31: 18837.67852
B32: =IF(ISBLANK(dms_E65_Projects_02),"",dms_E65_Projects_02) -> Network Control and Monitoring | E32: 33074.83064 | F32: 16473.34735 | G32: 18890.27939 | H32: 15794.62539 | I32: 12532.94299
B33: =IF(ISBLANK(dms_E65_Projects_03),"",dms_E65_Projects_03) -> Hazardous Area Upgrades | E33: 3596.787814 | F33: 3301.039742 | G33: 3785.360781 | H33: 3754.324042 | I33: 3660.592633
B34: =IF(ISBLANK(dms_E65_Projects_04),"",dms_E65_Projects_04) -> 
B35: =IF(ISBLANK(dms_E65_Projects_05),"",dms_E65_Projects_05) -> Network Control Program | C35: 12146.75676 | D35: 0
B36: =IF(ISBLANK(dms_E65_Projects_06),"",dms_E65_Projects_06) -> RTU (Remote Telemetry Units) | C36: 1660.227838 | D36: 0
B37: =IF(ISBLANK(dms_E65_Projects_07),"",dms_E65_Projects_07) -> Kingfisher RTU Replacement | C37: 14827.02703 | D37: 15926.48649
B38: =IF(ISBLANK(dms_E65_Projects_08),"",dms_E65_Projects_08) -> TRIO Radio Replace/Streamline & Radio Works | C38: 5816.756757 | D38: 11423.13514
B39: =IF(ISBLANK(dms_E65_Projects_09),"",dms_E65_Projects_09) -> Point Blue Logger Implementation | C39: 6641.823784 | D39: 2471.351351
B40: =IF(ISBLANK(dms_E65_Projects_10),"",dms_E65_Projects_10) -> Gas Detector Installation | C40: 2669.264054 | D40: 1977.081081
B41: =IF(ISBLANK(dms_E65_Projects_11),"",dms_E65_Projects_11) -> Vortex Flow meter Installation | C41: 8199.060811 | D41: 5491.891892
B42: =IF(ISBLANK(dms_E65_Projects_12),"",dms_E65_Projects_12) -> New Control Room - Perth | C42: 28488.70676 | D42: 0
B43: =IF(ISBLANK(dms_E65_Projects_13),"",dms_E65_Projects_13) -> 
B44: =IF(ISBLANK(dms_E65_Projects_14),"",dms_E65_Projects_14) -> 
B45: =IF(ISBLANK(dms_E65_Projects_15),"",dms_E65_Projects_15) -> 
B46: Aggregate of other projects with total expenditure of less than $500,000 | C46: 7584.594595 | D46: 4814.521946
B47: Total | C47: =SUM(C31:C46) -> 88034.21838 | D47: =SUM(D31:D46) -> 42104.46789 | E47: 55180.95269 | F47: 36761.78002 | G47: 42155.38474 | H47: 38868.97666 | I47: 35031.21414
B49: B. DIRECT CONTRACTOR EXPENDITURE
B50: =IF(ISBLANK(dms_E65_Projects_01),"",dms_E65_Projects_01) -> End of Life Replacement | E50: 421566.8493 | F50: 422308.48 | G50: 423202.9497 | H50: 423701.7564 | I50: 424120.3042
B51: =IF(ISBLANK(dms_E65_Projects_02),"",dms_E65_Projects_02) -> Network Control and Monitoring | E51: 753309.2205 | F51: 409529.2494 | G51: 410396.6521 | H51: 346387.2197 | I51: 282172.5399
B52: =IF(ISBLANK(dms_E65_Projects_03),"",dms_E65_Projects_03) -> Hazardous Area Upgrades | E52: 81920.09973 | F52: 82064.21556 | G52: 82238.03153 | H52: 82334.9611 | I52: 82416.29453
B53: =IF(ISBLANK(dms_E65_Projects_04),"",dms_E65_Projects_04) -> 
B54: =IF(ISBLANK(dms_E65_Projects_05),"",dms_E65_Projects_05) -> Network Control Program | C54: 202445.9459 | D54: 0
B55: =IF(ISBLANK(dms_E65_Projects_06),"",dms_E65_Projects_06) -> RTU (Remote Telemetry Units) | C55: 27670.46396 | D55: 0
B56: =IF(ISBLANK(dms_E65_Projects_07),"",dms_E65_Projects_07) -> Kingfisher RTU Replacement | C56: 247117.1171 | D56: 265441.4414
B57: =IF(ISBLANK(dms_E65_Projects_08),"",dms_E65_Projects_08) -> TRIO Radio Replace/Streamline & Radio Works | C57: 96945.94595 | D57: 190385.5856
B58: =IF(ISBLANK(dms_E65_Projects_09),"",dms_E65_Projects_09) -> Point Blue Logger Implementation | C58: 110697.0631 | D58: 41189.18919
B59: =IF(ISBLANK(dms_E65_Projects_10),"",dms_E65_Projects_10) -> Gas Detector Installation | C59: 44487.73423 | D59: 32951.35135
B60: =IF(ISBLANK(dms_E65_Projects_11),"",dms_E65_Projects_11) -> Vortex Flow meter Installation | C60: 136651.0135 | D60: 91531.53153
B61: =IF(ISBLANK(dms_E65_Projects_12),"",dms_E65_Projects_12) -> New Control Room - Perth | C61: 474811.7793 | D61: 0
B62: =IF(ISBLANK(dms_E65_Projects_13),"",dms_E65_Projects_13) -> 
B63: =IF(ISBLANK(dms_E65_Projects_14),"",dms_E65_Projects_14) -> 
B64: =IF(ISBLANK(dms_E65_Projects_15),"",dms_E65_Projects_15) -> 
B65: Aggregate of other projects with total expenditure of less than $500,000 | C65: 126409.9099 | D65: 80242.03243
B66: Total | C66: =SUM(C50:C65) -> 1467236.973 | D66: =SUM(D50:D65) -> 701741.1315 | E66: =SUM(E50:E65) -> 1256796.17 | F66: =SUM(F50:F65) -> 913901.9449 | G66: =SUM(G50:G65) -> 915837.6334 | H66: =SUM(H50:H65) -> 852423.9372 | I66: =SUM(I50:I65) -> 788709.1386
B68: C. DIRECT MATERIAL EXPENDITURE
B69: =IF(ISBLANK(dms_E65_Projects_01),"",dms_E65_Projects_01) -> End of Life Replacement
B70: =IF(ISBLANK(dms_E65_Projects_02),"",dms_E65_Projects_02) -> Network Control and Monitoring
B71: =IF(ISBLANK(dms_E65_Projects_03),"",dms_E65_Projects_03) -> Hazardous Area Upgrades
B72: =IF(ISBLANK(dms_E65_Projects_04),"",dms_E65_Projects_04) -> 
B73: =IF(ISBLANK(dms_E65_Projects_05),"",dms_E65_Projects_05) -> Network Control Program
B74: =IF(ISBLANK(dms_E65_Projects_06),"",dms_E65_Projects_06) -> RTU (Remote Telemetry Units)
B75: =IF(ISBLANK(dms_E65_Projects_07),"",dms_E65_Projects_07) -> Kingfisher RTU Replacement
B76: =IF(ISBLANK(dms_E65_Projects_08),"",dms_E65_Projects_08) -> TRIO Radio Replace/Streamline & Radio Works
B77: =IF(ISBLANK(dms_E65_Projects_09),"",dms_E65_Projects_09) -> Point Blue Logger Implementation
B78: =IF(ISBLANK(dms_E65_Projects_10),"",dms_E65_Projects_10) -> Gas Detector Installation
B79: =IF(ISBLANK(dms_E65_Projects_11),"",dms_E65_Projects_11) -> Vortex Flow meter Installation
B80: =IF(ISBLANK(dms_E65_Projects_12),"",dms_E65_Projects_12) -> New Control Room - Perth
B81: =IF(ISBLANK(dms_E65_Projects_13),"",dms_E65_Projects_13) -> 
B82: =IF(ISBLANK(dms_E65_Projects_14),"",dms_E65_Projects_14) -> 
B83: =IF(ISBLANK(dms_E65_Projects_15),"",dms_E65_Projects_15) -> 
B84: Aggregate of other projects with total expenditure of less than $500,000
B85: Total | C85: =SUM(C69:C84) -> 0 | D85: =SUM(D69:D84) -> 0 | E85: 0 | F85: 0 | G85: 0 | H85: 0 | I85: 0
B87: D. OTHER DIRECT EXPENDITURE
B88: =IF(ISBLANK(dms_E65_Projects_01),"",dms_E65_Projects_01) -> End of Life Replacement
B89: =IF(ISBLANK(dms_E65_Projects_02),"",dms_E65_Projects_02) -> Network Control and Monitoring
B90: =IF(ISBLANK(dms_E65_Projects_03),"",dms_E65_Projects_03) -> Hazardous Area Upgrades
B91: =IF(ISBLANK(dms_E65_Projects_04),"",dms_E65_Projects_04) -> 
B92: =IF(ISBLANK(dms_E65_Projects_05),"",dms_E65_Projects_05) -> Network Control Program
B93: =IF(ISBLANK(dms_E65_Projects_06),"",dms_E65_Projects_06) -> RTU (Remote Telemetry Units)
B94: =IF(ISBLANK(dms_E65_Projects_07),"",dms_E65_Projects_07) -> Kingfisher RTU Replacement
B95: =IF(ISBLANK(dms_E65_Projects_08),"",dms_E65_Projects_08) -> TRIO Radio Replace/Streamline & Radio Works
B96: =IF(ISBLANK(dms_E65_Projects_09),"",dms_E65_Projects_09) -> Point Blue Logger Implementation
B97: =IF(ISBLANK(dms_E65_Projects_10),"",dms_E65_Projects_10) -> Gas Detector Installation
B98: =IF(ISBLANK(dms_E65_Projects_11),"",dms_E65_Projects_11) -> Vortex Flow meter Installation
B99: =IF(ISBLANK(dms_E65_Projects_12),"",dms_E65_Projects_12) -> New Control Room - Perth
B100: =IF(ISBLANK(dms_E65_Projects_13),"",dms_E65_Projects_13) -> 
B101: =IF(ISBLANK(dms_E65_Projects_14),"",dms_E65_Projects_14) -> 
B102: =IF(ISBLANK(dms_E65_Projects_15),"",dms_E65_Projects_15) -> 
B103: Aggregate of other projects with total expenditure of less than $500,000
B104: Total | C104: =SUM(C88:C103) -> 0 | D104: =SUM(D88:D103) -> 0 | E104: =SUM(E88:E103) -> 0 | F104: =SUM(F88:F103) -> 0 | G104: =SUM(G88:G103) -> 0 | H104: =SUM(H88:H103) -> 0 | I104: =SUM(I88:I103) -> 0
B106: E. RELATED PARTY MARGIN EXPENDITURE
B107: =IF(ISBLANK(dms_E65_Projects_01),"",dms_E65_Projects_01) -> End of Life Replacement
B108: =IF(ISBLANK(dms_E65_Projects_02),"",dms_E65_Projects_02) -> Network Control and Monitoring
B109: =IF(ISBLANK(dms_E65_Projects_03),"",dms_E65_Projects_03) -> Hazardous Area Upgrades
B110: =IF(ISBLANK(dms_E65_Projects_04),"",dms_E65_Projects_04) -> 
B111: =IF(ISBLANK(dms_E65_Projects_05),"",dms_E65_Projects_05) -> Network Control Program
B112: =IF(ISBLANK(dms_E65_Projects_06),"",dms_E65_Projects_06) -> RTU (Remote Telemetry Units)
B113: =IF(ISBLANK(dms_E65_Projects_07),"",dms_E65_Projects_07) -> Kingfisher RTU Replacement
B114: =IF(ISBLANK(dms_E65_Projects_08),"",dms_E65_Projects_08) -> TRIO Radio Replace/Streamline & Radio Works
B115: =IF(ISBLANK(dms_E65_Projects_09),"",dms_E65_Projects_09) -> Point Blue Logger Implementation
B116: =IF(ISBLANK(dms_E65_Projects_10),"",dms_E65_Projects_10) -> Gas Detector Installation
B117: =IF(ISBLANK(dms_E65_Projects_11),"",dms_E65_Projects_11) -> Vortex Flow meter Installation
B118: =IF(ISBLANK(dms_E65_Projects_12),"",dms_E65_Projects_12) -> New Control Room - Perth
B119: =IF(ISBLANK(dms_E65_Projects_13),"",dms_E65_Projects_13) -> 
B120: =IF(ISBLANK(dms_E65_Projects_14),"",dms_E65_Projects_14) -> 
B121: =IF(ISBLANK(dms_E65_Projects_15),"",dms_E65_Projects_15) -> 
B122: Aggregate of other projects with total expenditure of less than $500,000
B123: Total | C123: =SUM(C107:C122) -> 0 | D123: =SUM(D107:D122) -> 0 | E123: =SUM(E107:E122) -> 0 | F123: =SUM(F107:F122) -> 0 | G123: =SUM(G107:G122) -> 0 | H123: =SUM(H107:H122) -> 0 | I123: =SUM(I107:I122) -> 0
B125: F. CAPITAL CONTRIBUTIONS included in the above
B126: =IF(ISBLANK(dms_E65_Projects_01),"",dms_E65_Projects_01) -> End of Life Replacement
B127: =IF(ISBLANK(dms_E65_Projects_02),"",dms_E65_Projects_02) -> Network Control and Monitoring
B128: =IF(ISBLANK(dms_E65_Projects_03),"",dms_E65_Projects_03) -> Hazardous Area Upgrades
B129: =IF(ISBLANK(dms_E65_Projects_04),"",dms_E65_Projects_04) -> 
B130: =IF(ISBLANK(dms_E65_Projects_05),"",dms_E65_Projects_05) -> Network Control Program
B131: =IF(ISBLANK(dms_E65_Projects_06),"",dms_E65_Projects_06) -> RTU (Remote Telemetry Units)
B132: =IF(ISBLANK(dms_E65_Projects_07),"",dms_E65_Projects_07) -> Kingfisher RTU Replacement
B133: =IF(ISBLANK(dms_E65_Projects_08),"",dms_E65_Projects_08) -> TRIO Radio Replace/Streamline & Radio Works
B134: =IF(ISBLANK(dms_E65_Projects_09),"",dms_E65_Projects_09) -> Point Blue Logger Implementation
B135: =IF(ISBLANK(dms_E65_Projects_10),"",dms_E65_Projects_10) -> Gas Detector Installation
B136: =IF(ISBLANK(dms_E65_Projects_11),"",dms_E65_Projects_11) -> Vortex Flow meter Installation
B137: =IF(ISBLANK(dms_E65_Projects_12),"",dms_E65_Projects_12) -> New Control Room - Perth
B138: =IF(ISBLANK(dms_E65_Projects_13),"",dms_E65_Projects_13) -> 
B139: =IF(ISBLANK(dms_E65_Projects_14),"",dms_E65_Projects_14) -> 
B140: =IF(ISBLANK(dms_E65_Projects_15),"",dms_E65_Projects_15) -> 
B141: Aggregate of other projects with total expenditure of less than $500,000
B142: Total | C142: =SUM(C126:C141) -> 0 | D142: =SUM(D126:D141) -> 0 | E142: =SUM(E126:E141) -> 0 | F142: =SUM(F126:F141) -> 0 | G142: =SUM(G126:G141) -> 0 | H142: =SUM(H126:H141) -> 0 | I142: =SUM(I126:I141) -> 0

Sheet E10. Overheads
B1: =INDEX(dms_Worksheet_List,MATCH(dms_Model,dms_Model_List)) -> REGULATORY REPORTING STATEMENT
B2: =dms_TradingName -> Multinet Gas
B3: =dms_Header_Span -> 2021-22 to 2027-28
B4: E10. OVERHEADS EXPENDITURE
B6: E10.1 - NETWORK
C7: EXPENDITURE
C8: =CONCATENATE("$0's, real ",dms_DollarReal) -> $0's, real June 2023
C9: =VLOOKUP(CRCP_y4,'AER lookups'!$B$52:$C$101,2,0) -> 2022 | D9: =CONCATENATE("1 Jan-30 Jun "&(C9+1)) -> 1 Jan-30 Jun 2023 | E9: =FRCP_y1 -> 2023-24 | F9: =FRCP_y2 -> 2024-25 | G9: =FRCP_y3 -> 2025-26 | H9: =FRCP_y4 -> 2026-27 | I9: =FRCP_y5 -> 2027-28
B10: E10.1.1 - OPEX
B11: Reference services
B12: Non-reference services
B13: Total | C13: =SUM(C11:C12) -> 0 | D13: =SUM(D11:D12) -> 0 | E13: 0 | F13: 0 | G13: 0 | H13: 0 | I13: 0
B14: E10.1.2 - CAPEX
B15: Reference services | C15: 4913656.722 | D15: 2660979.327 | E15: 6154158.627 | F15: 6571863.011 | G15: 6024679.636 | H15: 6103344.007 | I15: 6160636.176
B16: Non-reference services
B17: Total | C17: =SUM(C15:C16) -> 4913656.722 | D17: =SUM(D15:D16) -> 2660979.327 | E17: 6154158.627 | F17: 6571863.011 | G17: 6024679.636 | H17: 6103344.007 | I17: 6160636.176
B21: E10.2 - CORPORATE
C22: EXPENDITURE
C23: =CONCATENATE("$0's, real ",dms_DollarReal) -> $0's, real June 2023
C24: =VLOOKUP(CRCP_y4,'AER lookups'!$B$52:$C$101,2,0) -> 2022 | D24: =CONCATENATE("1 Jan-30 Jun "&(C24+1)) -> 1 Jan-30 Jun 2023 | E24: =FRCP_y1 -> 2023-24 | F24: =FRCP_y2 -> 2024-25 | G24: =FRCP_y3 -> 2025-26 | H24: =FRCP_y4 -> 2026-27 | I24: =FRCP_y5 -> 2027-28
B25: E10.2.1 - OPEX
B26: Reference services
B27: Non-reference services
B28: Total | C28: =SUM(C26:C27) -> 0 | D28: 0 | E28: 0 | F28: 0 | G28: 0 | H28: 0 | I28: 0
B29: E10.2.2 - CAPEX
B30: Reference services
B31: Non-reference services
B32: Total | C32: =SUM(C30:C31) -> 0 | D32: 0 | E32: 0 | F32: 0 | G32: 0 | H32: 0 | I32: 0

Sheet E12. ICT
B1: =INDEX(dms_Worksheet_List,MATCH(dms_Model,dms_Model_List)) -> REGULATORY REPORTING STATEMENT
B2: =dms_TradingName -> Multinet Gas
B3: =dms_Header_Span -> 2021-22 to 2027-28
B4: E12. INFORMATION AND COMMUNICATION TECHNOLOGY
B6: Please list all projects here:
B7: Applications Renewal
B8: Infrastructure Renewal
B9: GIS Upgrade
B10: NCC in-housing
B11: Digital Customer Experience
B12: AGIG One IT Strategy
B13: Remote & Digital Metering IT
B23: E12.1 - CAPEX - BY PROJECT
B24: A. DIRECT INTERNAL LABOUR EXPENDITURE
C25: EXPENDITURE
C26: =CONCATENATE("$0's, real ",dms_DollarReal) -> $0's, real June 2023
C27: =VLOOKUP(CRCP_y4,'AER lookups'!$B$52:$C$101,2,0) -> 2022 | D27: =CONCATENATE("1 Jan-30 Jun "&(C27+1)) -> 1 Jan-30 Jun 2023 | E27: =FRCP_y1 -> 2023-24 | F27: =FRCP_y2 -> 2024-25 | G27: =FRCP_y3 -> 2025-26 | H27: =FRCP_y4 -> 2026-27 | I27: =FRCP_y5 -> 2027-28
B28: =IF(ISBLANK(dms_E12_Projects_01),"",dms_E12_Projects_01) -> Applications Renewal | C28: 222262.0008 | D28: 94702.88538 | E28: 166155.1316 | F28: 322765.5866 | G28: 220775.6622 | H28: 285874.0422 | I28: 272372.8343
B29: =IF(ISBLANK(dms_E12_Projects_02),"",dms_E12_Projects_02) -> Infrastructure Renewal | C29: 23148.38462 | D29: 45523.33531 | E29: 0 | F29: 0 | G29: 0 | H29: 0 | I29: 0
B30: =IF(ISBLANK(dms_E12_Projects_03),"",dms_E12_Projects_03) -> GIS Upgrade | C30: 767895.4017 | D30: 159327
B31: =IF(ISBLANK(dms_E12_Projects_04),"",dms_E12_Projects_04) -> NCC in-housing | C31: 16428.3123 | D31: 9104.4
B32: =IF(ISBLANK(dms_E12_Projects_05),"",dms_E12_Projects_05) -> Digital Customer Experience | C32: 179233.7052 | D32: 168937.2 | E32: 335191.478 | F32: 424365.1871 | G32: 394363.3194 | H32: 0 | I32: 0
B33: =IF(ISBLANK(dms_E12_Projects_06),"",dms_E12_Projects_06) -> AGIG One IT Strategy | C33: 324006.0381 | D33: 555469.56 | E33: 3055813.606 | F33: 6772905.796 | G33: 2263084.445 | H33: 77048.44654 | I33: 84094.08139
B34: =IF(ISBLANK(dms_E12_Projects_07),"",dms_E12_Projects_07) -> Remote & Digital Metering IT | E34: 0 | F34: 0 | G34: 0 | H34: 0 | I34: 0
B35: =IF(ISBLANK(dms_E12_Projects_08),"",dms_E12_Projects_08) -> 
B36: =IF(ISBLANK(dms_E12_Projects_09),"",dms_E12_Projects_09) -> 
B37: =IF(ISBLANK(dms_E12_Projects_10),"",dms_E12_Projects_10) -> 
B38: =IF(ISBLANK(dms_E12_Projects_11),"",dms_E12_Projects_11) -> 
B39: =IF(ISBLANK(dms_E12_Projects_12),"",dms_E12_Projects_12) -> 
B40: =IF(ISBLANK(dms_E12_Projects_13),"",dms_E12_Projects_13) -> 
B41: =IF(ISBLANK(dms_E12_Projects_14),"",dms_E12_Projects_14) -> 
B42: =IF(ISBLANK(dms_E12_Projects_15),"",dms_E12_Projects_15) -> 
B43: Aggregate of other projects with total expenditure of less than $500,000
B44: Total | C44: =SUM(C28:C43) -> 1532973.843 | D44: =SUM(D28:D43) -> 1033064.381 | E44: 3557160.216 | F44: 7520036.569 | G44: 2878223.427 | H44: 362922.4887 | I44: 356466.9157
B46: B. DIRECT CONTRACTOR EXPENDITURE
B47: =IF(ISBLANK(dms_E12_Projects_01),"",dms_E12_Projects_01) -> Applications Renewal | C47: 3263370.646 | D47: 1390478.873 | E47: 2439579.314 | F47: 4739018.533 | G47: 3241547.421 | H47: 4197356.968 | I47: 3999124.948
B48: =IF(ISBLANK(dms_E12_Projects_02),"",dms_E12_Projects_02) -> Infrastructure Renewal | C48: 123458.0513 | D48: 242791.1217 | E48: 1242976.754 | F48: 391100.0623 | G48: 317756.8384 | H48: 227046.6191 | I48: 1503430.757
B49: =IF(ISBLANK(dms_E12_Projects_03),"",dms_E12_Projects_03) -> GIS Upgrade | C49: 2779050.025 | D49: 576612
B50: =IF(ISBLANK(dms_E12_Projects_04),"",dms_E12_Projects_04) -> NCC in-housing | C50: 153330.9148 | D50: 84974.4
B51: =IF(ISBLANK(dms_E12_Projects_05),"",dms_E12_Projects_05) -> Digital Customer Experience | C51: 0 | D51: 0 | E51: 0 | F51: 0 | G51: 0 | H51: 0 | I51: 0
B52: =IF(ISBLANK(dms_E12_Projects_06),"",dms_E12_Projects_06) -> AGIG One IT Strategy | C52: 20180.30687 | D52: 34596.72 | E52: 190327.491 | F52: 421841.8835 | G52: 140953.3564 | H52: 4798.865183 | I52: 5237.693651
B53: =IF(ISBLANK(dms_E12_Projects_07),"",dms_E12_Projects_07) -> Remote & Digital Metering IT | E53: 1439527.135 | F53: 0 | G53: 0 | H53: 0 | I53: 0
B54: =IF(ISBLANK(dms_E12_Projects_08),"",dms_E12_Projects_08) -> 
B55: =IF(ISBLANK(dms_E12_Projects_09),"",dms_E12_Projects_09) -> 
B56: =IF(ISBLANK(dms_E12_Projects_10),"",dms_E12_Projects_10) -> 
B57: =IF(ISBLANK(dms_E12_Projects_11),"",dms_E12_Projects_11) -> 
B58: =IF(ISBLANK(dms_E12_Projects_12),"",dms_E12_Projects_12) -> 
B59: =IF(ISBLANK(dms_E12_Projects_13),"",dms_E12_Projects_13) -> 
B60: =IF(ISBLANK(dms_E12_Projects_14),"",dms_E12_Projects_14) -> 
B61: =IF(ISBLANK(dms_E12_Projects_15),"",dms_E12_Projects_15) -> 
B62: Aggregate of other projects with total expenditure of less than $500,000
B63: Total | C63: =SUM(C47:C62) -> 6339389.944 | D63: =SUM(D47:D62) -> 2329453.114 | E63: =SUM(E47:E62) -> 5312410.694 | F63: =SUM(F47:F62) -> 5551960.478 | G63: =SUM(G47:G62) -> 3700257.615 | H63: =SUM(H47:H62) -> 4429202.452 | I63: =SUM(I47:I62) -> 5507793.4
B65: C. DIRECT MATERIAL EXPENDITURE
B66: =IF(ISBLANK(dms_E12_Projects_01),"",dms_E12_Projects_01) -> Applications Renewal | C66: 42335.61919 | D66: 18038.64483 | E66: 31648.5965 | F66: 61479.15934 | G66: 42052.50708 | H66: 54452.19851 | I66: 51880.53987
B67: =IF(ISBLANK(dms_E12_Projects_02),"",dms_E12_Projects_02) -> Infrastructure Renewal | C67: 239199.9744 | D67: 470407.7982 | E67: 2456358.824 | F67: 772888.2184 | G67: 627948.0379 | H67: 448687.3663 | I67: 2971065.545
B68: =IF(ISBLANK(dms_E12_Projects_03),"",dms_E12_Projects_03) -> GIS Upgrade | C68: 109699.3431 | D68: 22761
B69: =IF(ISBLANK(dms_E12_Projects_04),"",dms_E12_Projects_04) -> NCC in-housing | C69: 104045.9779 | D69: 57661.2
B70: =IF(ISBLANK(dms_E12_Projects_05),"",dms_E12_Projects_05) -> Digital Customer Experience | C70: 0 | D70: 0 | E70: 0 | F70: 0 | G70: 0 | H70: 0 | I70: 0
B71: =IF(ISBLANK(dms_E12_Projects_06),"",dms_E12_Projects_06) -> AGIG One IT Strategy | C71: 3363.384479 | D71: 5766.12 | E71: 31721.2485 | F71: 70306.98058 | G71: 23492.22607 | H71: 799.8108638 | I71: 872.9489418
B72: =IF(ISBLANK(dms_E12_Projects_07),"",dms_E12_Projects_07) -> Remote & Digital Metering IT | E72: 0 | F72: 0 | G72: 0 | H72: 0 | I72: 0
B73: =IF(ISBLANK(dms_E12_Projects_08),"",dms_E12_Projects_08) -> 
B74: =IF(ISBLANK(dms_E12_Projects_09),"",dms_E12_Projects_09) -> 
B75: =IF(ISBLANK(dms_E12_Projects_10),"",dms_E12_Projects_10) -> 
B76: =IF(ISBLANK(dms_E12_Projects_11),"",dms_E12_Projects_11) -> 
B77: =IF(ISBLANK(dms_E12_Projects_12),"",dms_E12_Projects_12) -> 
B78: =IF(ISBLANK(dms_E12_Projects_13),"",dms_E12_Projects_13) -> 
B79: =IF(ISBLANK(dms_E12_Projects_14),"",dms_E12_Projects_14) -> 
B80: =IF(ISBLANK(dms_E12_Projects_15),"",dms_E12_Projects_15) -> 
B81: Aggregate of other projects with total expenditure of less than $500,000
B82: Total | C82: =SUM(C66:C81) -> 498644.2991 | D82: =SUM(D66:D81) -> 574634.7631 | E82: =SUM(E66:E81) -> 2519728.669 | F82: =SUM(F66:F81) -> 904674.3583 | G82: =SUM(G66:G81) -> 693492.771 | H82: =SUM(H66:H81) -> 503939.3757 | I82: =SUM(I66:I81) -> 3023819.033
B84: D. OTHER DIRECT EXPENDITURE
B85: =IF(ISBLANK(dms_E12_Projects_01),"",dms_E12_Projects_01) -> Applications Renewal | C85: 0 | D85: 0 | E85: 0 | F85: 0 | G85: 0 | H85: 0 | I85: 0
B86: =IF(ISBLANK(dms_E12_Projects_02),"",dms_E12_Projects_02) -> Infrastructure Renewal | C86: 0 | D86: 0 | E86: 0 | F86: 0 | G86: 0 | H86: 0 | I86: 0
B87: =IF(ISBLANK(dms_E12_Projects_03),"",dms_E12_Projects_03) -> GIS Upgrade | C87: 0 | D87: 0
B88: =IF(ISBLANK(dms_E12_Projects_04),"",dms_E12_Projects_04) -> NCC in-housing | C88: 0 | D88: 0
B89: =IF(ISBLANK(dms_E12_Projects_05),"",dms_E12_Projects_05) -> Digital Customer Experience | C89: 357394.1548 | D89: 336862.8 | E89: 668375.8213 | F89: 846189.2652 | G89: 786365.1818 | H89: 0 | I89: 0
B90: =IF(ISBLANK(dms_E12_Projects_06),"",dms_E12_Projects_06) -> AGIG One IT Strategy | C90: 773578.4301 | D90: 1326207.6 | E90: 7295887.156 | F90: 16170605.53 | G90: 5403211.997 | H90: 183956.4987 | I90: 200778.2566
B91: =IF(ISBLANK(dms_E12_Projects_07),"",dms_E12_Projects_07) -> Remote & Digital Metering IT | E91: 0 | F91: 0 | G91: 0 | H91: 0 | I91: 0
B92: =IF(ISBLANK(dms_E12_Projects_08),"",dms_E12_Projects_08) -> 
B93: =IF(ISBLANK(dms_E12_Projects_09),"",dms_E12_Projects_09) -> 
B94: =IF(ISBLANK(dms_E12_Projects_10),"",dms_E12_Projects_10) -> 
B95: =IF(ISBLANK(dms_E12_Projects_11),"",dms_E12_Projects_11) -> 
B96: =IF(ISBLANK(dms_E12_Projects_12),"",dms_E12_Projects_12) -> 
B97: =IF(ISBLANK(dms_E12_Projects_13),"",dms_E12_Projects_13) -> 
B98: =IF(ISBLANK(dms_E12_Projects_14),"",dms_E12_Projects_14) -> 
B99: =IF(ISBLANK(dms_E12_Projects_15),"",dms_E12_Projects_15) -> 
B100: Aggregate of other projects with total expenditure of less than $500,000
B101: Total | C101: =SUM(C85:C100) -> 1130972.585 | D101: =SUM(D85:D100) -> 1663070.4 | E101: =SUM(E85:E100) -> 7964262.977 | F101: =SUM(F85:F100) -> 17016794.8 | G101: =SUM(G85:G100) -> 6189577.179 | H101: =SUM(H85:H100) -> 183956.4987 | I101: =SUM(I85:I100) -> 200778.2566
B103: E. RELATED PARTY MARGIN EXPENDITURE
B104: =IF(ISBLANK(dms_E12_Projects_01),"",dms_E12_Projects_01) -> Applications Renewal
B105: =IF(ISBLANK(dms_E12_Projects_02),"",dms_E12_Projects_02) -> Infrastructure Renewal
B106: =IF(ISBLANK(dms_E12_Projects_03),"",dms_E12_Projects_03) -> GIS Upgrade
B107: =IF(ISBLANK(dms_E12_Projects_04),"",dms_E12_Projects_04) -> NCC in-housing
B108: =IF(ISBLANK(dms_E12_Projects_05),"",dms_E12_Projects_05) -> Digital Customer Experience
B109: =IF(ISBLANK(dms_E12_Projects_06),"",dms_E12_Projects_06) -> AGIG One IT Strategy
B110: =IF(ISBLANK(dms_E12_Projects_07),"",dms_E12_Projects_07) -> Remote & Digital Metering IT
B111: =IF(ISBLANK(dms_E12_Projects_08),"",dms_E12_Projects_08) -> 
B112: =IF(ISBLANK(dms_E12_Projects_09),"",dms_E12_Projects_09) -> 
B113: =IF(ISBLANK(dms_E12_Projects_10),"",dms_E12_Projects_10) -> 
B114: =IF(ISBLANK(dms_E12_Projects_11),"",dms_E12_Projects_11) -> 
B115: =IF(ISBLANK(dms_E12_Projects_12),"",dms_E12_Projects_12) -> 
B116: =IF(ISBLANK(dms_E12_Projects_13),"",dms_E12_Projects_13) -> 
B117: =IF(ISBLANK(dms_E12_Projects_14),"",dms_E12_Projects_14) -> 
B118: =IF(ISBLANK(dms_E12_Projects_15),"",dms_E12_Projects_15) -> 
B119: Aggregate of other projects with total expenditure of less than $500,000
B120: Total | C120: =SUM(C104:C119) -> 0 | D120: =SUM(D104:D119) -> 0 | E120: =SUM(E104:E119) -> 0 | F120: =SUM(F104:F119) -> 0 | G120: =SUM(G104:G119) -> 0 | H120: =SUM(H104:H119) -> 0 | I120: =SUM(I104:I119) -> 0
B122: F. CAPITAL CONTRIBUTIONS included in the above
B123: =IF(ISBLANK(dms_E12_Projects_01),"",dms_E12_Projects_01) -> Applications Renewal
B124: =IF(ISBLANK(dms_E12_Projects_02),"",dms_E12_Projects_02) -> Infrastructure Renewal
B125: =IF(ISBLANK(dms_E12_Projects_03),"",dms_E12_Projects_03) -> GIS Upgrade
B126: =IF(ISBLANK(dms_E12_Projects_04),"",dms_E12_Projects_04) -> NCC in-housing
B127: =IF(ISBLANK(dms_E12_Projects_05),"",dms_E12_Projects_05) -> Digital Customer Experience
B128: =IF(ISBLANK(dms_E12_Projects_06),"",dms_E12_Projects_06) -> AGIG One IT Strategy
B129: =IF(ISBLANK(dms_E12_Projects_07),"",dms_E12_Projects_07) -> Remote & Digital Metering IT
B130: =IF(ISBLANK(dms_E12_Projects_08),"",dms_E12_Projects_08) -> 
B131: =IF(ISBLANK(dms_E12_Projects_09),"",dms_E12_Projects_09) -> 
B132: =IF(ISBLANK(dms_E12_Projects_10),"",dms_E12_Projects_10) -> 
B133: =IF(ISBLANK(dms_E12_Projects_11),"",dms_E12_Projects_11) -> 
B134: =IF(ISBLANK(dms_E12_Projects_12),"",dms_E12_Projects_12) -> 
B135: =IF(ISBLANK(dms_E12_Projects_13),"",dms_E12_Projects_13) -> 
B136: =IF(ISBLANK(dms_E12_Projects_14),"",dms_E12_Projects_14) -> 
B137: =IF(ISBLANK(dms_E12_Projects_15),"",dms_E12_Projects_15) -> 
B138: Aggregate of other projects with total expenditure of less than $500,000
B139: Total | C139: =SUM(C123:C138) -> 0 | D139: =SUM(D123:D138) -> 0 | E139: =SUM(E123:E138) -> 0 | F139: =SUM(F123:F138) -> 0 | G139: =SUM(G123:G138) -> 0 | H139: =SUM(H123:H138) -> 0 | I139: =SUM(I123:I138) -> 0

Sheet E13. Other capex
B1: =INDEX(dms_Worksheet_List,MATCH(dms_Model,dms_Model_List)) -> REGULATORY REPORTING STATEMENT
B2: =dms_TradingName -> Multinet Gas
B3: =dms_Header_Span -> 2021-22 to 2027-28
B4: E13. OTHER CAPITAL EXPENDITURE
B6: Please list all projects here:
B7: Cathodic Protection Facilities
B8: Network Reinforcement
B9: Supply Regulator Capacity Upgrades
B10: Transmission
B11: Regs & Valves
B12: Gas Heaters
B13: Hydrogen Adaptation
B14: Plant & Equipment
B15: Contributed Projects
B16: Valve Panel and NonCompliant Fittings
B23: E13.1 - CAPEX - BY PROJECT
C24: EXPENDITURE
C25: =CONCATENATE("$0's, real ",dms_DollarReal) -> $0's, real June 2023
C26: =VLOOKUP(CRCP_y4,'AER lookups'!$B$52:$C$101,2,0) -> 2022 | D26: =CONCATENATE("1 Jan-30 Jun "&(C26+1)) -> 1 Jan-30 Jun 2023 | E26: =FRCP_y1 -> 2023-24 | F26: =FRCP_y2 -> 2024-25 | G26: =FRCP_y3 -> 2025-26 | H26: =FRCP_y4 -> 2026-27 | I26: =FRCP_y5 -> 2027-28
B27: A. DIRECT INTERNAL LABOUR EXPENDITURE
B28: =IF(ISBLANK(dms_E13_Projects_01),"",dms_E13_Projects_01) -> Cathodic Protection Facilities
B29: =IF(ISBLANK(dms_E13_Projects_02),"",dms_E13_Projects_02) -> Network Reinforcement
B30: =IF(ISBLANK(dms_E13_Projects_03),"",dms_E13_Projects_03) -> Supply Regulator Capacity Upgrades
B31: =IF(ISBLANK(dms_E13_Projects_04),"",dms_E13_Projects_04) -> Transmission
B32: =IF(ISBLANK(dms_E13_Projects_05),"",dms_E13_Projects_05) -> Regs & Valves
B33: =IF(ISBLANK(dms_E13_Projects_06),"",dms_E13_Projects_06) -> Gas Heaters
B34: =IF(ISBLANK(dms_E13_Projects_07),"",dms_E13_Projects_07) -> Hydrogen Adaptation
B35: =IF(ISBLANK(dms_E13_Projects_08),"",dms_E13_Projects_08) -> Plant & Equipment
B36: =IF(ISBLANK(dms_E13_Projects_09),"",dms_E13_Projects_09) -> Contributed Projects
B37: =IF(ISBLANK(dms_E13_Projects_10),"",dms_E13_Projects_10) -> Valve Panel and NonCompliant Fittings
B38: =IF(ISBLANK(dms_E13_Projects_11),"",dms_E13_Projects_11) -> 
B39: =IF(ISBLANK(dms_E13_Projects_12),"",dms_E13_Projects_12) -> 
B40: =IF(ISBLANK(dms_E13_Projects_13),"",dms_E13_Projects_13) -> 
B41: =IF(ISBLANK(dms_E13_Projects_14),"",dms_E13_Projects_14) -> 
B42: =IF(ISBLANK(dms_E13_Projects_15),"",dms_E13_Projects_15) -> 
B43: Aggregate of other projects with total expenditure of less than $500,000
B44: Total | C44: =SUM(C28:C43) -> 0 | D44: =SUM(D28:D43) -> 0 | E44: 0 | F44: 0 | G44: 0 | H44: 0 | I44: 0
B46: B. DIRECT CONTRACTOR EXPENDITURE
B47: =IF(ISBLANK(dms_E13_Projects_01),"",dms_E13_Projects_01) -> Cathodic Protection Facilities
B48: =IF(ISBLANK(dms_E13_Projects_02),"",dms_E13_Projects_02) -> Network Reinforcement
B49: =IF(ISBLANK(dms_E13_Projects_03),"",dms_E13_Projects_03) -> Supply Regulator Capacity Upgrades
B50: =IF(ISBLANK(dms_E13_Projects_04),"",dms_E13_Projects_04) -> Transmission
B51: =IF(ISBLANK(dms_E13_Projects_05),"",dms_E13_Projects_05) -> Regs & Valves
B52: =IF(ISBLANK(dms_E13_Projects_06),"",dms_E13_Projects_06) -> Gas Heaters
B53: =IF(ISBLANK(dms_E13_Projects_07),"",dms_E13_Projects_07) -> Hydrogen Adaptation
B54: =IF(ISBLANK(dms_E13_Projects_08),"",dms_E13_Projects_08) -> Plant & Equipment
B55: =IF(ISBLANK(dms_E13_Projects_09),"",dms_E13_Projects_09) -> Contributed Projects
B56: =IF(ISBLANK(dms_E13_Projects_10),"",dms_E13_Projects_10) -> Valve Panel and NonCompliant Fittings
B57: =IF(ISBLANK(dms_E13_Projects_11),"",dms_E13_Projects_11) -> 
B58: =IF(ISBLANK(dms_E13_Projects_12),"",dms_E13_Projects_12) -> 
B59: =IF(ISBLANK(dms_E13_Projects_13),"",dms_E13_Projects_13) -> 
B60: =IF(ISBLANK(dms_E13_Projects_14),"",dms_E13_Projects_14) -> 
B61: =IF(ISBLANK(dms_E13_Projects_15),"",dms_E13_Projects_15) -> 
B62: Aggregate of other projects with total expenditure of less than $500,000
B63: Total | C63: =SUM(C47:C62) -> 0 | D63: =SUM(D47:D62) -> 0 | E63: 0 | F63: 0 | G63: 0 | H63: 0 | I63: 0
B65: C. DIRECT MATERIAL EXPENDITURE
B66: =IF(ISBLANK(dms_E13_Projects_01),"",dms_E13_Projects_01) -> Cathodic Protection Facilities
B67: =IF(ISBLANK(dms_E13_Projects_02),"",dms_E13_Projects_02) -> Network Reinforcement
B68: =IF(ISBLANK(dms_E13_Projects_03),"",dms_E13_Projects_03) -> Supply Regulator Capacity Upgrades
B69: =IF(ISBLANK(dms_E13_Projects_04),"",dms_E13_Projects_04) -> Transmission
B70: =IF(ISBLANK(dms_E13_Projects_05),"",dms_E13_Projects_05) -> Regs & Valves
B71: =IF(ISBLANK(dms_E13_Projects_06),"",dms_E13_Projects_06) -> Gas Heaters
B72: =IF(ISBLANK(dms_E13_Projects_07),"",dms_E13_Projects_07) -> Hydrogen Adaptation
B73: =IF(ISBLANK(dms_E13_Projects_08),"",dms_E13_Projects_08) -> Plant & Equipment
B74: =IF(ISBLANK(dms_E13_Projects_09),"",dms_E13_Projects_09) -> Contributed Projects
B75: =IF(ISBLANK(dms_E13_Projects_10),"",dms_E13_Projects_10) -> Valve Panel and NonCompliant Fittings
B76: =IF(ISBLANK(dms_E13_Projects_11),"",dms_E13_Projects_11) -> 
B77: =IF(ISBLANK(dms_E13_Projects_12),"",dms_E13_Projects_12) -> 
B78: =IF(ISBLANK(dms_E13_Projects_13),"",dms_E13_Projects_13) -> 
B79: =IF(ISBLANK(dms_E13_Projects_14),"",dms_E13_Projects_14) -> 
B80: =IF(ISBLANK(dms_E13_Projects_15),"",dms_E13_Projects_15) -> 
B81: Aggregate of other projects with total expenditure of less than $500,000
B82: Total | C82: =SUM(C66:C81) -> 0 | D82: =SUM(D66:D81) -> 0 | E82: 0 | F82: 0 | G82: 0 | H82: 0 | I82: 0
B84: D. OTHER DIRECT EXPENDITURE
B85: =IF(ISBLANK(dms_E13_Projects_01),"",dms_E13_Projects_01) -> Cathodic Protection Facilities
B86: =IF(ISBLANK(dms_E13_Projects_02),"",dms_E13_Projects_02) -> Network Reinforcement
B87: =IF(ISBLANK(dms_E13_Projects_03),"",dms_E13_Projects_03) -> Supply Regulator Capacity Upgrades
B88: =IF(ISBLANK(dms_E13_Projects_04),"",dms_E13_Projects_04) -> Transmission
B89: =IF(ISBLANK(dms_E13_Projects_05),"",dms_E13_Projects_05) -> Regs & Valves
B90: =IF(ISBLANK(dms_E13_Projects_06),"",dms_E13_Projects_06) -> Gas Heaters
B91: =IF(ISBLANK(dms_E13_Projects_07),"",dms_E13_Projects_07) -> Hydrogen Adaptation
B92: =IF(ISBLANK(dms_E13_Projects_08),"",dms_E13_Projects_08) -> Plant & Equipment
B93: =IF(ISBLANK(dms_E13_Projects_09),"",dms_E13_Projects_09) -> Contributed Projects
B94: =IF(ISBLANK(dms_E13_Projects_10),"",dms_E13_Projects_10) -> Valve Panel and NonCompliant Fittings
B95: =IF(ISBLANK(dms_E13_Projects_11),"",dms_E13_Projects_11) -> 
B96: =IF(ISBLANK(dms_E13_Projects_12),"",dms_E13_Projects_12) -> 
B97: =IF(ISBLANK(dms_E13_Projects_13),"",dms_E13_Projects_13) -> 
B98: =IF(ISBLANK(dms_E13_Projects_14),"",dms_E13_Projects_14) -> 
B99: =IF(ISBLANK(dms_E13_Projects_15),"",dms_E13_Projects_15) -> 
B100: Aggregate of other projects with total expenditure of less than $500,000
B101: Total | C101: =SUM(C85:C100) -> 0 | D101: =SUM(D85:D100) -> 0 | E101: 0 | F101: 0 | G101: 0 | H101: 0 | I101: 0
B103: E. RELATED PARTY MARGIN EXPENDITURE
B104: =IF(ISBLANK(dms_E13_Projects_01),"",dms_E13_Projects_01) -> Cathodic Protection Facilities
B105: =IF(ISBLANK(dms_E13_Projects_02),"",dms_E13_Projects_02) -> Network Reinforcement
B106: =IF(ISBLANK(dms_E13_Projects_03),"",dms_E13_Projects_03) -> Supply Regulator Capacity Upgrades
B107: =IF(ISBLANK(dms_E13_Projects_04),"",dms_E13_Projects_04) -> Transmission
B108: =IF(ISBLANK(dms_E13_Projects_05),"",dms_E13_Projects_05) -> Regs & Valves
B109: =IF(ISBLANK(dms_E13_Projects_06),"",dms_E13_Projects_06) -> Gas Heaters
B110: =IF(ISBLANK(dms_E13_Projects_07),"",dms_E13_Projects_07) -> Hydrogen Adaptation
B111: =IF(ISBLANK(dms_E13_Projects_08),"",dms_E13_Projects_08) -> Plant & Equipment
B112: =IF(ISBLANK(dms_E13_Projects_09),"",dms_E13_Projects_09) -> Contributed Projects
B113: =IF(ISBLANK(dms_E13_Projects_10),"",dms_E13_Projects_10) -> Valve Panel and NonCompliant Fittings
B114: =IF(ISBLANK(dms_E13_Projects_11),"",dms_E13_Projects_11) -> 
B115: =IF(ISBLANK(dms_E13_Projects_12),"",dms_E13_Projects_12) -> 
B116: =IF(ISBLANK(dms_E13_Projects_13),"",dms_E13_Projects_13) -> 
B117: =IF(ISBLANK(dms_E13_Projects_14),"",dms_E13_Projects_14) -> 
B118: =IF(ISBLANK(dms_E13_Projects_15),"",dms_E13_Projects_15) -> 
B119: Aggregate of other projects with total expenditure of less than $500,000
B120: Total | C120: =SUM(C104:C119) -> 0 | D120: =SUM(D104:D119) -> 0 | E120: 0 | F120: 0 | G120: 0 | H120: 0 | I120: 0
B122: F. CAPITAL CONTRIBUTIONS included in the above
B123: =IF(ISBLANK(dms_E13_Projects_01),"",dms_E13_Projects_01) -> Cathodic Protection Facilities
B124: =IF(ISBLANK(dms_E13_Projects_02),"",dms_E13_Projects_02) -> Network Reinforcement
B125: =IF(ISBLANK(dms_E13_Projects_03),"",dms_E13_Projects_03) -> Supply Regulator Capacity Upgrades
B126: =IF(ISBLANK(dms_E13_Projects_04),"",dms_E13_Projects_04) -> Transmission
B127: =IF(ISBLANK(dms_E13_Projects_05),"",dms_E13_Projects_05) -> Regs & Valves
B128: =IF(ISBLANK(dms_E13_Projects_06),"",dms_E13_Projects_06) -> Gas Heaters
B129: =IF(ISBLANK(dms_E13_Projects_07),"",dms_E13_Projects_07) -> Hydrogen Adaptation
B130: =IF(ISBLANK(dms_E13_Projects_08),"",dms_E13_Projects_08) -> Plant & Equipment
B131: =IF(ISBLANK(dms_E13_Projects_09),"",dms_E13_Projects_09) -> Contributed Projects
B132: =IF(ISBLANK(dms_E13_Projects_10),"",dms_E13_Projects_10) -> Valve Panel and NonCompliant Fittings
B133: =IF(ISBLANK(dms_E13_Projects_11),"",dms_E13_Projects_11) -> 
B134: =IF(ISBLANK(dms_E13_Projects_12),"",dms_E13_Projects_12) -> 
B135: =IF(ISBLANK(dms_E13_Projects_13),"",dms_E13_Projects_13) -> 
B136: =IF(ISBLANK(dms_E13_Projects_14),"",dms_E13_Projects_14) -> 
B137: =IF(ISBLANK(dms_E13_Projects_15),"",dms_E13_Projects_15) -> 
B138: Aggregate of other projects with total expenditure of less than $500,000
B139: Total | C139: =SUM(C123:C138) -> 0 | D139: =SUM(D123:D138) -> 0 | E139: 0 | F139: 0 | G139: 0 | H139: 0 | I139: 0

Sheet E17. Step changes
B1: =INDEX(dms_Worksheet_List,MATCH(dms_Model,dms_Model_List)) -> REGULATORY REPORTING STATEMENT
B2: =dms_TradingName -> Multinet Gas
B3: =dms_Header_Span -> 2021-22 to 2027-28
B4: E17. STEP CHANGES
B6: E17.1 - STEP CHANGES FOR REFERENCE SERVICES
B7: E17.1.1 - FORECAST OPEX
D8: EXPENDITURE
D9: =CONCATENATE("$0's, real ",dms_DollarReal) -> $0's, real June 2023
B10: Step change | C10: Description | D10: =VLOOKUP(CRCP_y4,'AER lookups'!$B$52:$C$101,2,0) -> 2022 | E10: =CONCATENATE("1 Jan-30 Jun "&(D10+1)) -> 1 Jan-30 Jun 2023 | F10: =FRCP_y1 -> 2023-24 | G10: =FRCP_y2 -> 2024-25 | H10: =FRCP_y3 -> 2025-26 | I10: =FRCP_y4 -> 2026-27 | J10: =FRCP_y5 -> 2027-28
B11: Capex to opex | F11: ='[1]Calc|Opex forecast'!P76*1000000 -> 3387495.003 | G11: ='[1]Calc|Opex forecast'!Q76*1000000 -> 2814820.145 | H11: ='[1]Calc|Opex forecast'!R76*1000000 -> 2149809.617 | I11: ='[1]Calc|Opex forecast'!S76*1000000 -> 1141876.676 | J11: ='[1]Calc|Opex forecast'!T76*1000000 -> 2137781.539
B12: Cyber security | F12: ='[1]Calc|Opex forecast'!P77*1000000 -> 565065.495 | G12: ='[1]Calc|Opex forecast'!Q77*1000000 -> 565065.495 | H12: ='[1]Calc|Opex forecast'!R77*1000000 -> 673373.3287 | I12: ='[1]Calc|Opex forecast'!S77*1000000 -> 908094.51 | J12: ='[1]Calc|Opex forecast'!T77*1000000 -> 908094.51
B13: Renewable gas comms | F13: ='[1]Calc|Opex forecast'!P78*1000000 -> 600000 | G13: ='[1]Calc|Opex forecast'!Q78*1000000 -> 600000 | H13: ='[1]Calc|Opex forecast'!R78*1000000 -> 600000 | I13: ='[1]Calc|Opex forecast'!S78*1000000 -> 600000 | J13: ='[1]Calc|Opex forecast'!T78*1000000 -> 600000
B21: Total | D21: =SUM(D11:D20) -> 0 | E21: 0 | F21: 4552560.498 | G21: 3979885.64 | H21: 3423182.946 | I21: 2649971.186 | J21: 3645876.049
B23: E17.1.2 - FORECAST CAPEX
D24: EXPENDITURE
D25: =CONCATENATE("$0's, real ", dms_DollarReal) -> $0's, real June 2023
B26: Step change | C26: Description | D26: =VLOOKUP(CRCP_y4,'AER lookups'!$B$52:$C$101,2,0) -> 2022 | E26: =CONCATENATE("1 Jan-30 Jun "&(D26+1)) -> 1 Jan-30 Jun 2023 | F26: =FRCP_y1 -> 2023-24 | G26: =FRCP_y2 -> 2024-25 | H26: =FRCP_y3 -> 2025-26 | I26: =FRCP_y4 -> 2026-27 | J26: =FRCP_y5 -> 2027-28
B37: Total | D37: =SUM(D27:D36) -> 0 | E37: 0 | F37: 0 | G37: 0 | H37: 0 | I37: 0 | J37: 0
B41: E17.2 - CATEGORY SPECIFIC FORECASTS
D42: EXPENDITURE
D43: =CONCATENATE("$0's, real ",dms_DollarReal) -> $0's, real June 2023
B44: Category desription | D44: =VLOOKUP(CRCP_y4,'AER lookups'!$B$52:$C$101,2,0) -> 2022 | E44: =CONCATENATE("1 Jan-30 Jun "&(D44+1)) -> 1 Jan-30 Jun 2023 | F44: =FRCP_y1 -> 2023-24 | G44: =FRCP_y2 -> 2024-25 | H44: =FRCP_y3 -> 2025-26 | I44: =FRCP_y4 -> 2026-27 | J44: =FRCP_y5 -> 2027-28
B45: Priority Services Program | F45: ='[1]Calc|Opex forecast'!P$94*1000000 -> 1172467.536 | G45: ='[1]Calc|Opex forecast'!Q$94*1000000 -> 894108.8137 | H45: ='[1]Calc|Opex forecast'!R$94*1000000 -> 923110.1606 | I45: ='[1]Calc|Opex forecast'!S$94*1000000 -> 894108.8137 | J45: ='[1]Calc|Opex forecast'!T$94*1000000 -> 923110.1606
B70: Total | D70: =SUM(D45:D69) -> 0 | E70: 0 | F70: 1172467.536 | G70: 894108.8137 | H70: 923110.1606 | I70: 894108.8137 | J70: 923110.1606

Sheet E20. Opex
B1: =INDEX(dms_Worksheet_List,MATCH(dms_Model,dms_Model_List)) -> REGULATORY REPORTING STATEMENT
B2: =dms_TradingName -> Multinet Gas
B3: =dms_Header_Span -> 2021-22 to 2027-28
B4: E20. OPERATING EXPENDITURE
B7: IMPORTANT!
B8: =CONCATENATE("Has ",dms_TradingName," used a base-step-trend model to derive its opex forecast? ") -> Has Multinet Gas used a base-step-trend model to derive its opex forecast? | D8: Yes
B9: Yes / No
B10: Please nominate the base year | D10: 2021
E11: 2015-16 | F11: 2016-17 | G11: 2017-18 | H11: 2018-19 | I11: 2019-20
B12: E20.1 - OPEX - BY DRIVER
B13: E20.1.1 - REFERENCE SERVICES
C14: EXPENDITURE
C15: =CONCATENATE("$0's, real ",dms_DollarReal) -> $0's, real June 2023
C16: =VLOOKUP(CRCP_y1,'AER lookups'!$B$52:$C$101,2,0) -> 2019 | D16: =VLOOKUP(CRCP_y2,'AER lookups'!$B$52:$C$101,2,0) -> 2020 | E16: =VLOOKUP(CRCP_y3,'AER lookups'!$B$52:$C$101,2,0) -> 2021 | F16: =VLOOKUP(CRCP_y4,'AER lookups'!$B$52:$C$101,2,0) -> 2022 | G16: =CONCATENATE("1 Jan-30 Jun "&(F16+1)) -> 1 Jan-30 Jun 2023 | H16: =FRCP_y1 -> 2023-24 | I16: =FRCP_y2 -> 2024-25 | J16: =FRCP_y3 -> 2025-26 | K16: =FRCP_y4 -> 2026-27 | L16: =FRCP_y5 -> 2027-28
B17: Base year total opex, excluding category specific | E17: 69329888.57 | F17: 69329888.57 | G17: 34664944.28 | H17: 73796043.17 | I17: 73796043.17 | J17: 73796043.17 | K17: 73796043.17 | L17: 73796043.17
B18: Increment from base year to final year | G18: 4466154.606
B19: Price growth | H19: -77071.69145 | I19: 121437.3558 | J19: 294828.512 | K19: 469174.9947 | L19: 643197.9642
B20: Output growth | H20: 268659.5483 | I20: 641681.6412 | J20: 1103623.106 | K20: 1357855.114 | L20: 1570954.038
B21: Productivity growth | H21: -298075.654 | I21: -582686.5955 | J21: -880008.6809 | K21: -1176073.125 | L21: -1473730.703
B22: Step changes | H22: 4552560.498 | I22: 3979885.64 | J22: 3423182.946 | K22: 2649971.186 | L22: 3645876.049
B23: Category specific | F23: =IF(ISBLANK('E17. Step changes'!D70),"",'E17. Step changes'!D70) -> 0 | G23: =IF(ISBLANK('E17. Step changes'!E70),"",'E17. Step changes'!E70) -> 0 | H23: =IF(ISBLANK('E17. Step changes'!F70),"",'E17. Step changes'!F70) -> 1172467.536 | I23: =IF(ISBLANK('E17. Step changes'!G70),"",'E17. Step changes'!G70) -> 894108.8137 | J23: =IF(ISBLANK('E17. Step changes'!H70),"",'E17. Step changes'!H70) -> 923110.1606 | K23: =IF(ISBLANK('E17. Step changes'!I70),"",'E17. Step changes'!I70) -> 894108.8137 | L23: =IF(ISBLANK('E17. Step changes'!J70),"",'E17. Step changes'!J70) -> 923110.1606
B25: E20.1.2 - NON-REFERENCE SERVICES
C26: EXPENDITURE
C27: =CONCATENATE("$0's, real ",dms_DollarReal) -> $0's, real June 2023
C28: =VLOOKUP(CRCP_y1,'AER lookups'!$B$52:$C$101,2,0) -> 2019 | D28: =VLOOKUP(CRCP_y2,'AER lookups'!$B$52:$C$101,2,0) -> 2020 | E28: =VLOOKUP(CRCP_y3,'AER lookups'!$B$52:$C$101,2,0) -> 2021 | F28: =VLOOKUP(CRCP_y4,'AER lookups'!$B$52:$C$101,2,0) -> 2022 | G28: =CONCATENATE("1 Jan-30 Jun "&(F28+1)) -> 1 Jan-30 Jun 2023 | H28: =FRCP_y1 -> 2023-24 | I28: =FRCP_y2 -> 2024-25 | J28: =FRCP_y3 -> 2025-26 | K28: =FRCP_y4 -> 2026-27 | L28: =FRCP_y5 -> 2027-28
B29: Base year total opex, excluding category specific
B30: Increment from base year to final year
B31: Price growth
B32: Output growth
B33: Productivity growth
B34: Step changes
B35: Category specific
B39: E20.2 - OPEX - BY CATEGORY
B40: E20.2.1 - REFERENCE SERVICES
C41: EXPENDITURE
C42: =CONCATENATE("$0's, real ",dms_DollarReal) -> $0's, real June 2023
F43: =VLOOKUP(CRCP_y4,'AER lookups'!$B$52:$C$101,2,0) -> 2022 | G43: =CONCATENATE("1 Jan-30 Jun "&(F43+1)) -> 1 Jan-30 Jun 2023 | H43: =FRCP_y1 -> 2023-24 | I43: =FRCP_y2 -> 2024-25 | J43: =FRCP_y3 -> 2025-26 | K43: =FRCP_y4 -> 2026-27 | L43: =FRCP_y5 -> 2027-28
B44: repairs and maintenance
B45: marketing and retail incentives
B46: debt raising
B47: equity raising
B48: unaccounted for gas
B49: jurisdictional charges
B50: GSL payments
B51: other opex
B52: TOTAL | F52: =SUM(F44:F51) -> 0 | G52: 0 | H52: 0 | I52: 0 | J52: 0 | K52: 0 | L52: 0
B54: E20.2.2 - NON-REFERENCE SERVICES
C55: EXPENDITURE
C56: =CONCATENATE("$0's, real ",dms_DollarReal) -> $0's, real June 2023
F57: =VLOOKUP(CRCP_y4,'AER lookups'!$B$52:$C$101,2,0) -> 2022 | G57: =CONCATENATE("1 Jan-30 Jun "&(F57+1)) -> 1 Jan-30 Jun 2023 | H57: =FRCP_y1 -> 2023-24 | I57: =FRCP_y2 -> 2024-25 | J57: =FRCP_y3 -> 2025-26 | K57: =FRCP_y4 -> 2026-27 | L57: =FRCP_y5 -> 2027-28
B83: TOTAL | F83: =SUM(F58:F82) -> 0 | G83: =SUM(G58:G82) -> 0 | H83: 0 | I83: 0 | J83: 0 | K83: 0 | L83: 0
B87: E20.3 - OPEX - BY CATEGORY - RELATED PARTY MARGIN EXPENDITURE
B88: 20.3.1 - REFERENCE SERVICES
C89: EXPENDITURE
C90: =CONCATENATE("$0's, real ",dms_DollarReal) -> $0's, real June 2023
F91: =VLOOKUP(CRCP_y4,'AER lookups'!$B$52:$C$101,2,0) -> 2022 | G91: =CONCATENATE("1 Jan-30 Jun "&(F91+1)) -> 1 Jan-30 Jun 2023 | H91: =FRCP_y1 -> 2023-24 | I91: =FRCP_y2 -> 2024-25 | J91: =FRCP_y3 -> 2025-26 | K91: =FRCP_y4 -> 2026-27 | L91: =FRCP_y5 -> 2027-28
B92: repairs and maintenance
B93: marketing and retail incentives
B94: debt raising
B95: equity raising
B96: unaccounted for gas
B97: jurisdictional charges
B98: GSL payments
B99: other opex
B100: TOTAL | F100: =SUM(F92:F99) -> 0 | G100: 0 | H100: 0 | I100: 0 | J100: 0 | K100: 0 | L100: 0
B102: 20.3.2 - NON-REFERENCE SERVICES
C103: EXPENDITURE
C104: =CONCATENATE("$0's, real ",dms_DollarReal) -> $0's, real June 2023
F105: =VLOOKUP(CRCP_y4,'AER lookups'!$B$52:$C$101,2,0) -> 2022 | G105: =CONCATENATE("1 Jan-30 Jun "&(F105+1)) -> 1 Jan-30 Jun 2023 | H105: =FRCP_y1 -> 2023-24 | I105: =FRCP_y2 -> 2024-25 | J105: =FRCP_y3 -> 2025-26 | K105: =FRCP_y4 -> 2026-27 | L105: =FRCP_y5 -> 2027-28
B106: =IF(ISBLANK(B58),"",B58) -> 
B131: TOTAL | F131: =SUM(F106:F130) -> 0 | G131: =SUM(G106:G130) -> 0 | H131: 0 | I131: 0 | J131: 0 | K131: 0 | L131: 0

Sheet E21. ARS
B1: =INDEX(dms_Worksheet_List,MATCH(dms_Model,dms_Model_List)) -> REGULATORY REPORTING STATEMENT
B2: =dms_TradingName -> Multinet Gas
B3: =dms_Header_Span -> 2021-22 to 2027-28
B4: E21. ANCILLARY REFERENCE SERVICES
B6: E21.1 - VOLUMES
C7: VOLUME
C8: 0's
B9: Description | C9: =VLOOKUP(CRCP_y4,'AER lookups'!$B$52:$C$101,2,0) -> 2022 | D9: =CONCATENATE("1 Jan-30 Jun "&(C9+1)) -> 1 Jan-30 Jun 2023 | E9: =FRCP_y1 -> 2023-24 | F9: =FRCP_y2 -> 2024-25 | G9: =FRCP_y3 -> 2025-26 | H9: =FRCP_y4 -> 2026-27 | I9: =FRCP_y5 -> 2027-28
B10: Turn On / Reconnections | C10: 5426.105026 | D10: 2734.088889 | E10: 5444.333333 | F10: 5447.505323 | G10: 5465.622278 | H10: 5482.658963 | I10: 5499.734972
B11: Meter Investigations | C11: 153.8166061 | D11: 77.50463206 | E11: 154.3333333 | F11: 154.4232514 | G11: 154.9368221 | H11: 155.4197698 | I11: 155.9038323
B12: Disconnections | C12: 4756.687183 | D12: 2396.784712 | E12: 4772.666667 | F12: 4775.447328 | G12: 4791.329197 | H12: 4806.264069 | I12: 4821.233413
B13: Special meter reading | C13: 213565.2216 | D13: 107610.5782 | E13: 214282.6667 | F13: 214407.5125 | G13: 215120.5749 | H13: 215791.1192 | I13: 216463.2111
B14: Meter Removals | C14: 4023.48362 | D14: 2027.340386 | E14: 4037 | F14: 4039.352046 | G14: 4052.785857 | H14: 4065.418644 | I14: 4078.080588
B17: Total | C17: =SUM(C10:C16) -> 227925.314 | D17: =SUM(D10:D16) -> 114846.2968 | E17: =SUM(E10:E16) -> 228691 | F17: 228824.2405 | G17: 229585.2491 | H17: 230300.8806 | I17: 231018.1639
B19: E21.2 - omitted
B21: E21.3 - EXPENDITURE
C22: EXPENDITURE
C23: =CONCATENATE("$0's, real ",dms_DollarReal) -> $0's, real June 2023
C24: =VLOOKUP(CRCP_y4,'AER lookups'!$B$52:$C$101,2,0) -> 2022 | D24: =CONCATENATE("1 Jan-30 Jun "&(C24+1)) -> 1 Jan-30 Jun 2023 | E24: =FRCP_y1 -> 2023-24 | F24: =FRCP_y2 -> 2024-25 | G24: =FRCP_y3 -> 2025-26 | H24: =FRCP_y4 -> 2026-27 | I24: =FRCP_y5 -> 2027-28
B25: =IF(ISBLANK(B10),"",B10) -> Turn On / Reconnections | C25: 279065.4919 | D25: 140614.6503 | E25: 280002.9768 | F25: 280835.5118 | G25: 282447.6172 | H25: 284007.0485 | I25: 285564.3817
B26: Meter Investigations | C26: 26787.83819 | D26: 13497.77241 | E26: 26877.82851 | F26: 26958.93829 | G26: 27113.49468 | H26: 27263.09898 | I26: 27413.95701
B27: Disconnections | C27: 290214.61 | D27: 146232.4332 | E27: 291189.549 | F27: 292055.5588 | G27: 293735.2937 | H27: 295363.0406 | I27: 296991.1878
B28: Special meter reading | C28: 1670302.804 | D28: 841626.9707 | E28: 1675913.973 | F28: 1681945.001 | G28: 1691086.072 | H28: 1700398.693 | I28: 1710151.31
B29: Meter Removals | C29: 282388.6283 | D29: 142289.1019 | E29: 283337.2768 | F29: 284190.751 | G29: 285839.1401 | H29: 287439.8232 | I29: 289043.5439
B32: Total | C32: =SUM(C25:C31) -> 2548759.372 | D32: 1284260.928 | E32: 2557321.604 | F32: 2565985.76 | G32: 2580221.618 | H32: 2594471.704 | I32: 2609164.381

Sheet E25. Escalators
B1: =INDEX(dms_Worksheet_List,MATCH(dms_Model,dms_Model_List)) -> REGULATORY REPORTING STATEMENT
B2: =dms_TradingName -> Multinet Gas
B3: =dms_Header_Span -> 2021-22 to 2027-28
B4: E25. ESCALATORS
B6: E25.1 - FORECAST CAPEX AND OPEX PRICE CHANGES
C7: Price changes (% YoY real)
C8: =VLOOKUP(CRCP_y4,'AER lookups'!$B$52:$C$101,2,0) -> 2022 | D8: =CONCATENATE("1 Jan-30 Jun "&(C8+1)) -> 1 Jan-30 Jun 2023 | E8: =FRCP_y1 -> 2023-24 | F8: =FRCP_y2 -> 2024-25 | G8: =FRCP_y3 -> 2025-26 | H8: =FRCP_y4 -> 2026-27 | I8: =FRCP_y5 -> 2027-28
B9: E25.1.1 - OPEX
B10: Forecast output change | E10: -0.001034256779 | F10: 0.002707666842 | G10: 0.002361896532 | H10: 0.002375296458 | I10: 0.002362444191
B11: Forecast price change | E11: 0.00360525316 | F11: 0.005203579489 | G11: 0.006226972778 | H11: 0.003422950825 | I11: 0.002853423392
B12: Forecast productivity change | E12: -0.004 | F12: -0.004 | G12: -0.004 | H12: -0.004 | I12: -0.004
B16: E25.1.2 - CAPEX
B17: Labour EGWWS | D17: 0.004239574905 | E17: 0.006019048725 | F17: 0.008724489636 | G17: 0.01043146875 | H17: 0.00575711879 | I17: 0.004803136491
B18: Labour Construction | D18: -0.001314443199 | E18: 0.001464432266 | F18: 0.00367178307 | G18: 0.005080900941 | H18: 0.005339084391 | I18: 0.003567883909
B19: Materials | D19: 0 | E19: 0 | F19: 0 | G19: 0 | H19: 0 | I19: 0

Sheet N1. Demand
B1: =INDEX(dms_Worksheet_List,MATCH(dms_Model,dms_Model_List)) -> REGULATORY REPORTING STATEMENT
B2: =dms_TradingName -> Multinet Gas
B3: =dms_Header_Span -> 2021-22 to 2027-28
B4: N1. DEMAND
B6: N1.1 - DEMAND - BY CUSTOMER TYPE
C7: VOLUME
C8: GJ
C9: =VLOOKUP(CRCP_y4,'AER lookups'!$B$52:$C$101,2,0) -> 2022 | D9: =CONCATENATE("1 Jan-30 Jun "&(C9+1)) -> 1 Jan-30 Jun 2023 | E9: =FRCP_y1 -> 2023-24 | F9: =FRCP_y2 -> 2024-25 | G9: =FRCP_y3 -> 2025-26 | H9: =FRCP_y4 -> 2026-27 | I9: =FRCP_y5 -> 2027-28
B10: Residential | C10: 37533138.37 | D10: 15101336.73 | E10: 36459716.94 | F10: 35625481.48 | G10: 34844958.41 | H10: 33952357.23 | I10: 33189369.49
B11: Commercial | C11: 5646720.756 | D11: 2540158.589 | E11: 5707813.965 | F11: 5543553.87 | G11: 5540757.509 | H11: 5521064.585 | I11: 5501689.477
B12: Industrial | C12: 10727131.59 | D12: 5891364.829 | E12: 11815154.05 | F12: 11877339.21 | G12: 11940291.67 | H12: 11998175.75 | I12: 12056343.47
B13: Total | C13: =SUM(C10:C12) -> 53906990.72 | D13: 23532860.15 | E13: 53982684.96 | F13: 53046374.57 | G13: 52326007.59 | H13: 51471597.57 | I13: 50747402.43
B17: N1.2 - DEMAND - BY TARIFF
C18: VOLUMES
C19: GJ
B20: Tariff | C20: =VLOOKUP(CRCP_y4,'AER lookups'!$B$52:$C$101,2,0) -> 2022 | D20: =CONCATENATE("1 Jan-30 Jun "&(C20+1)) -> 1 Jan-30 Jun 2023 | E20: =FRCP_y1 -> 2023-24 | F20: =FRCP_y2 -> 2024-25 | G20: =FRCP_y3 -> 2025-26 | H20: =FRCP_y4 -> 2026-27 | I20: =FRCP_y5 -> 2027-28
B21: Residential (Metro) | C21: 37061801.22 | D21: 14913037.31 | E21: 35998495.71 | F21: 35169101.75 | G21: 34377467.23 | H21: 33472270.44 | I21: 32695029.61
B22: Residential (YV) | C22: 275516.7877 | D22: 109433.1549 | E22: 260601.4591 | F22: 251389.2946 | G22: 242894.1112 | H22: 233975.3799 | I22: 224619.9608
B23: Residential (SG) | C23: 195820.3676 | D23: 78866.26246 | E23: 200619.7728 | F23: 204990.4346 | G23: 224597.0654 | H23: 246111.4088 | I23: 269719.9132
B24: Non res (Metro) | C24: 5535558.247 | D24: 2490014.616 | E24: 5591963.668 | F24: 5426116.327 | G24: 5420714.192 | H24: 5398347.417 | I24: 5376228.324
B25: Non res (YV) | C25: 29609.31657 | D25: 13267.47752 | E25: 31686.35139 | F25: 32702.09793 | G25: 33919.65674 | H25: 35182.54749 | I25: 36492.45796
B26: Non res (SG) | C26: 81553.1925 | D26: 36876.49616 | E26: 84163.94648 | F26: 84735.44474 | G26: 86123.66085 | H26: 87534.62003 | I26: 88968.69487
B27: Tariff L | C27: 66663.71897 | D27: 33331.85949 | E27: 68356.38218 | F27: 68356.38218 | G27: 68356.38218 | H27: 68356.38218 | I27: 68356.38218
B28: Tariff D (Metro) | C28: 9867837.903 | D28: 5416115.014 | E28: 10857622.22 | F28: 10908639.18 | G28: 10959889.74 | H28: 11011374.91 | I28: 11063095.72
B29: Tariff D (SG) | C29: 792629.972 | D29: 441917.9553 | E29: 889175.4469 | F29: 900343.6478 | G29: 912045.5486 | H29: 918444.4641 | I29: 924891.3714
B96: Total | C96: =SUM(C21:C95) -> 53906990.72 | D96: 23532860.15 | E96: 53982684.96 | F96: 53046374.57 | G96: 52326007.59 | H96: 51471597.57 | I96: 50747402.43

Sheet N2. Network characteristics
B1: =INDEX(dms_Worksheet_List,MATCH(dms_Model,dms_Model_List)) -> REGULATORY REPORTING STATEMENT
B2: =dms_TradingName -> Multinet Gas
B3: =dms_Header_Span -> 2021-22 to 2027-28
B4: N2. NETWORK CHARACTERISTICS
B6: N2.1 - NETWORK LENGTH - BY PRESSURE AND ASSET TYPE
D7: LENGTH
D8: KM
D9: =VLOOKUP(CRCP_y4,'AER lookups'!$B$52:$C$101,2,0) -> 2022 | E9: =CONCATENATE("1 Jan-30 Jun "&(D9+1)) -> 1 Jan-30 Jun 2023 | F9: =FRCP_y1 -> 2023-24 | G9: =FRCP_y2 -> 2024-25 | H9: =FRCP_y3 -> 2025-26 | I9: =FRCP_y4 -> 2026-27 | J9: =FRCP_y5 -> 2027-28
B10: N2.1.1 - LOW PRESSURE
C11: Cast Iron | D11: 750 | E11: 682 | F11: 604.2631438 | G11: 526.8544722 | H11: 448.3509232 | I11: 369.6295131 | J11: 289.6003791
C12: PVC | D12: 415 | E12: 390 | F12: 345.5463725 | G12: 301.2804167 | H12: 256.3883578 | I12: 211.3717157 | J12: 165.6072549
C13: Polyamide | D13: 0 | E13: 0 | F13: 0 | G13: 0 | H13: 0 | I13: 0 | J13: 0
C14: High density polyethylene (80) | D14: 5 | E14: 2 | F14: 1.77203268 | G14: 1.545027778 | H14: 1.314812092 | I14: 1.083957516 | J14: 0.8492679739
C15: High density polyethylene (100) | D15: 5 | E15: 2 | F15: 1.77203268 | G15: 1.545027778 | H15: 1.314812092 | I15: 1.083957516 | J15: 0.8492679739
C16: High density polyethylene (250) | D16: 0 | E16: 0 | F16: 0 | G16: 0 | H16: 0 | I16: 0 | J16: 0
C17: High density polyethylene (575) | D17: 1 | E17: 1 | F17: 0.8860163399 | G17: 0.7725138889 | H17: 0.6574060458 | I17: 0.5419787582 | J17: 0.4246339869
C18: Medium density polyethylene | D18: 14 | E18: 12 | F18: 10.63219608 | G18: 9.270166667 | H18: 7.888872549 | I18: 6.503745098 | J18: 5.095607843
C19: Other polyethylene | D19: 0 | E19: 0 | F19: 0 | G19: 0 | H19: 0 | I19: 0 | J19: 0
C20: Unprotected steel | D20: 100 | E20: 85 | F20: 75.31138889 | G20: 65.66368056 | H20: 55.87951389 | I20: 46.06819444 | J20: 36.09388889
C21: Protected steel | D21: 55 | E21: 50 | F21: 44.30081699 | G21: 38.62569444 | H21: 32.87030229 | I21: 27.09893791 | J21: 21.23169935
C22: Other | D22: 0 | E22: 0 | F22: 0 | G22: 0 | H22: 0 | I22: 0 | J22: 0
B23: N2.1.2 - MEDIUM PRESSURE
C24: Cast Iron | D24: 5 | E24: 0 | F24: 0 | G24: 0 | H24: 0 | I24: 0 | J24: 0
C25: PVC | D25: 0 | E25: 0 | F25: 0 | G25: 0 | H25: 0 | I25: 0 | J25: 0
C26: Polyamide | D26: 0 | E26: 0 | F26: 0 | G26: 0 | H26: 0 | I26: 0 | J26: 0
C27: High density polyethylene (80) | D27: 7 | E27: 7 | F27: 7 | G27: 7 | H27: 7 | I27: 7 | J27: 7
C28: High density polyethylene (100) | D28: 6 | E28: 8 | F28: 8 | G28: 8 | H28: 8 | I28: 8 | J28: 8
C29: High density polyethylene (250) | D29: 0 | E29: 0 | F29: 0 | G29: 0 | H29: 0 | I29: 0 | J29: 0
C30: High density polyethylene (575) | D30: 225 | E30: 225 | F30: 217.81 | G30: 204.777 | H30: 187.231 | I30: 163.516 | J30: 138.883
C31: Medium density polyethylene | D31: 12 | E31: 12 | F31: 12 | G31: 12 | H31: 12 | I31: 12 | J31: 12
C32: Other polyethylene | D32: 0 | E32: 0 | F32: 0 | G32: 0 | H32: 0 | I32: 0 | J32: 0
C33: Unprotected steel | D33: 50 | E33: 45 | F33: 44.367 | G33: 43.1 | H33: 43.1 | I33: 43.1 | J33: 43.1
C34: Protected steel | D34: 450 | E34: 440 | F34: 431.385 | G34: 411.312 | H34: 411.312 | I34: 411.312 | J34: 411.312
C35: Other | D35: 0 | E35: 0 | F35: 0 | G35: 0 | H35: 0 | I35: 0 | J35: 0
B36: N2.1.3 - HIGH PRESSURE
C37: Cast Iron | D37: 0 | E37: 0 | F37: 0 | G37: 0 | H37: 0 | I37: 0 | J37: 0
C38: PVC | D38: 0 | E38: 0 | F38: 0 | G38: 0 | H38: 0 | I38: 0 | J38: 0
C39: Polyamide | D39: 0 | E39: 0 | F39: 0 | G39: 0 | H39: 0 | I39: 0 | J39: 0
C40: High density polyethylene (80) | D40: 820 | E40: 820 | F40: 820 | G40: 820 | H40: 820 | I40: 820 | J40: 820
C41: High density polyethylene (100) | D41: 1010 | E41: 1200 | F41: 1376.425207 | G41: 1492.369495 | H41: 1586.888225 | I41: 1681.694172 | J41: 1777.808781
C42: High density polyethylene (250) | D42: 0 | E42: 0 | F42: 0 | G42: 0 | H42: 0 | I42: 0 | J42: 0
C43: High density polyethylene (575) | D43: 1950 | E43: 1950 | F43: 1950 | G43: 1950 | H43: 1950 | I43: 1950 | J43: 1950
C44: Medium density polyethylene | D44: 1186 | E44: 1185 | F44: 1185 | G44: 1185 | H44: 1185 | I44: 1185 | J44: 1185
C45: Other polyethylene | D45: 0 | E45: 0 | F45: 0 | G45: 0 | H45: 0 | I45: 0 | J45: 0
C46: Unprotected steel | D46: 70 | E46: 65 | F46: 65 | G46: 65 | H46: 65 | I46: 65 | J46: 65
C47: Protected steel | D47: 2649 | E47: 2649 | F47: 2649.04 | G47: 2649.06 | H47: 2649.06 | I47: 2649.08 | J47: 2649.12
C48: Other | D48: 0 | E48: 0 | F48: 0 | G48: 0 | H48: 0 | I48: 0 | J48: 0
B49: N2.1.4 - TRANSMISSION
C50: Protected steel | D50: 163 | E50: 163 | F50: 0 | G50: 0 | H50: 0 | I50: 0 | J50: 0
C51: Other | F51: 0 | G51: 0 | H51: 0 | I51: 0 | J51: 0
C52: Total | D52: =SUM(D11:D51) -> 9948 | E52: =SUM(E11:E51) -> 9993 | F52: 9850.511207 | G52: 9793.175495 | H52: 9729.256225 | I52: 9659.084172 | J52: 9586.975781
B56: N2.2 - CITY GATES / REGULATORS
D57: VOLUMES
D58: 0's
D59: =VLOOKUP(CRCP_y4,'AER lookups'!$B$52:$C$101,2,0) -> 2022 | E59: =CONCATENATE("1 Jan-30 Jun "&(D59+1)) -> 1 Jan-30 Jun 2023 | F59: =FRCP_y1 -> 2023-24 | G59: =FRCP_y2 -> 2024-25 | H59: =FRCP_y3 -> 2025-26 | I59: =FRCP_y4 -> 2026-27 | J59: =FRCP_y5 -> 2027-28
C60: City Gate | D60: 7 | E60: 7 | F60: 7 | G60: 7 | H60: 7 | I60: 7 | J60: 7
C61: Field Regulator | D61: 107 | E61: 107 | F61: 106 | G61: 105 | H61: 104 | I61: 103 | J61: 102
C62: District Regulator | D62: 73 | E62: 70 | F62: 65 | G62: 60 | H62: 55 | I62: 50 | J62: 45
C63: Total | D63: =SUM(D60:D62) -> 187 | E63: =SUM(E60:E62) -> 184 | F63: =SUM(F60:F62) -> 178 | G63: =SUM(G60:G62) -> 172 | H63: 166 | I63: 160 | J63: 154

Sheet S1.1 Customer numbers
B1: =INDEX(dms_Worksheet_List,MATCH(dms_Model,dms_Model_List)) -> REGULATORY REPORTING STATEMENT
B2: =dms_TradingName -> Multinet Gas
B3: =dms_Header_Span -> 2021-22 to 2027-28
B4: S1. CUSTOMER NUMBERS
B6: S1.1 - CUSTOMER NUMBERS - BY CUSTOMER TYPE
B7: A. RESIDENTIAL
C8: VOLUMES
C9: 0's
C10: =VLOOKUP(CRCP_y4,'AER lookups'!$B$52:$C$101,2,0) -> 2022 | D10: =CONCATENATE("1 Jan-30 Jun "&(C10+1)) -> 1 Jan-30 Jun 2023 | E10: =FRCP_y1 -> 2023-24 | F10: =FRCP_y2 -> 2024-25 | G10: =FRCP_y3 -> 2025-26 | H10: =FRCP_y4 -> 2026-27 | I10: =FRCP_y5 -> 2027-28
B11: Customer numbers - Beginning of year | C11: 699531 | D11: 704955 | E11: 701880.9851 | F11: 700215.7891 | G11: 702697.8779 | H11: 704881.5071 | I11: 707085.3906
B12: Customer numbers - End of year | C12: 704955 | D12: 701880.9851 | E12: 700215.7891 | F12: 702697.8779 | G12: 704881.5071 | H12: 707085.3906 | I12: 709279.147
B13: Total customer connections | C13: 9169.207212 | D13: 6353.585006 | E13: 7752.101899 | F13: 6856.631083 | G13: 6569.82348 | H13: 6601.837662 | I13: 6603.416458
B14: Total customer disconnections | C14: 3745.245901 | D14: 9427.183401 | E14: 9417.297894 | F14: 4374.542351 | G14: 4386.194225 | H14: 4397.954175 | I14: 4409.660087
B17: B. COMMERCIAL
C18: VOLUMES
C19: 0's
C20: =VLOOKUP(CRCP_y4,'AER lookups'!$B$52:$C$101,2,0) -> 2022 | D20: =CONCATENATE("1 Jan-30 Jun "&(C20+1)) -> 1 Jan-30 Jun 2023 | E20: =FRCP_y1 -> 2023-24 | F20: =FRCP_y2 -> 2024-25 | G20: =FRCP_y3 -> 2025-26 | H20: =FRCP_y4 -> 2026-27 | I20: =FRCP_y5 -> 2027-28
B21: Customer numbers - Beginning of year | C21: 15723.01127 | D21: 15689.06954 | E21: 15251.11655 | F21: 14378.05336 | G21: 14347.82698 | H21: 14317.66419 | I21: 14287.56486
B22: Customer numbers - End of year | C22: 15689.06954 | D22: 15251.11655 | E22: 14378.05336 | F22: 14347.82698 | G22: 14317.66419 | H22: 14287.56486 | I22: 14257.52885
B23: Total customer connections | C23: 321.2558184 | D23: 160.6457802 | E23: 302.7860879 | F23: 303.9184188 | G23: 303.2790146 | H23: 302.6409557 | I23: 302.0042391
B24: Total customer disconnections | C24: 355.197542 | D24: 598.597542 | E24: 1175.849279 | F24: 334.1448004 | G24: 333.4418039 | H24: 332.7402864 | I24: 332.0402448
B27: C. INDUSTRIAL
C28: VOLUMES
C29: 0's
C30: =VLOOKUP(CRCP_y4,'AER lookups'!$B$52:$C$101,2,0) -> 2022 | D30: =CONCATENATE("1 Jan-30 Jun "&(C30+1)) -> 1 Jan-30 Jun 2023 | E30: =FRCP_y1 -> 2023-24 | F30: =FRCP_y2 -> 2024-25 | G30: =FRCP_y3 -> 2025-26 | H30: =FRCP_y4 -> 2026-27 | I30: =FRCP_y5 -> 2027-28
B31: Customer numbers - Beginning of year | C31: 272 | D31: 272 | E31: 272 | F31: 272 | G31: 272 | H31: 272 | I31: 272
B32: Customer numbers - End of year | C32: 272 | D32: 272 | E32: 272 | F32: 272 | G32: 272 | H32: 272 | I32: 272
B33: Total customer connections | C33: 0 | D33: 0 | E33: 0 | F33: 0 | G33: 0 | H33: 0 | I33: 0
B34: Total customer disconnections | C34: 0 | D34: 0 | E34: 0 | F34: 0 | G34: 0 | H34: 0 | I34: 0

Sheet S1.2 Customer numbers
B1: =INDEX(dms_Worksheet_List,MATCH(dms_Model,dms_Model_List)) -> REGULATORY REPORTING STATEMENT
B2: =dms_TradingName -> Multinet Gas
B3: =dms_Header_Span -> 2021-22 to 2027-28
B4: S1. CUSTOMER NUMBERS
B6: S1.2 - CUSTOMER NUMBERS - BY TARIFF
B7: S1.2.1 - CUSTOMER NUMBERS - BEGINNING OF YEAR
C8: VOLUMES
C9: 0's
C10: =VLOOKUP(CRCP_y4,'AER lookups'!$B$52:$C$101,2,0) -> 2022 | D10: =CONCATENATE("1 Jan-30 Jun "&(C10+1)) -> 1 Jan-30 Jun 2023 | E10: =FRCP_y1 -> 2023-24 | F10: =FRCP_y2 -> 2024-25 | G10: =FRCP_y3 -> 2025-26 | H10: =FRCP_y4 -> 2026-27 | I10: =FRCP_y5 -> 2027-28
B11: =IF(ISBLANK('N1. Demand'!B21),"",'N1. Demand'!B21) -> Residential (Metro) | C11: 687396.3434 | D11: =C92 -> 692280.4345 | E11: 689045.1243 | F11: 686906.6567 | G11: 688763.0469 | H11: 690282.3805 | I11: 691780.7401
B12: =IF(ISBLANK('N1. Demand'!B22),"",'N1. Demand'!B22) -> Residential (YV) | C12: 5698.513618 | D12: =C93 -> 5806.909776 | E12: 5811.339839 | F12: 5872.317731 | G12: 5986.003988 | H12: 6101.879991 | I12: 6219.987915
B13: =IF(ISBLANK('N1. Demand'!B23),"",'N1. Demand'!B23) -> Residential (SG) | C13: 6435.773463 | D13: =C94 -> 6867.247571 | E13: 7024.52095 | F13: 7436.814703 | G13: 7948.826947 | H13: 8497.246629 | I13: 9084.662557
B14: =IF(ISBLANK('N1. Demand'!B24),"",'N1. Demand'!B24) -> Non res (Metro) | C14: 15516.59942 | D14: =C95 -> 15474.29215 | E14: 15033.75346 | F14: 14155.29539 | G14: 14116.08114 | H14: 14076.549 | I14: 14036.68265
B15: =IF(ISBLANK('N1. Demand'!B25),"",'N1. Demand'!B25) -> Non res (YV) | C15: 75.1494297 | D15: =C96 -> 78.35694448 | E15: 79.57302957 | F15: 82.10943089 | G15: 85.59448734 | H15: 89.22746369 | I15: 93.01463825
B16: =IF(ISBLANK('N1. Demand'!B26),"",'N1. Demand'!B26) -> Non res (SG) | C16: 120.2624207 | D16: =C97 -> 125.4204513 | E16: 126.7900611 | F16: 129.6485442 | G16: 135.151353 | H16: 140.8877232 | I16: 146.8675682
B17: =IF(ISBLANK('N1. Demand'!B27),"",'N1. Demand'!B27) -> Tariff L | C17: 11 | D17: =C98 -> 11 | E17: 11 | F17: 11 | G17: 11 | H17: 11 | I17: 11
B18: =IF(ISBLANK('N1. Demand'!B28),"",'N1. Demand'!B28) -> Tariff D (Metro) | C18: 269 | D18: =C99 -> 269 | E18: 269 | F18: 269 | G18: 269 | H18: 269 | I18: 269
B19: =IF(ISBLANK('N1. Demand'!B29),"",'N1. Demand'!B29) -> Tariff D (SG) | C19: 3 | D19: =C100 -> 3 | E19: 3 | F19: 3 | G19: 3 | H19: 3 | I19: 3
B20: =IF(ISBLANK('N1. Demand'!B30),"",'N1. Demand'!B30) ->  | D20: =C101 -> 0 | E20: 0 | F20: 0 | G20: 0 | H20: 0 | I20: 0
B21: =IF(ISBLANK('N1. Demand'!B31),"",'N1. Demand'!B31) ->  | D21: =C102 -> 0 | E21: 0 | F21: 0 | G21: 0 | H21: 0 | I21: 0
B22: =IF(ISBLANK('N1. Demand'!B32),"",'N1. Demand'!B32) ->  | D22: =C103 -> 0 | E22: 0 | F22: 0 | G22: 0 | H22: 0 | I22: 0
B23: =IF(ISBLANK('N1. Demand'!B33),"",'N1. Demand'!B33) ->  | D23: =C104 -> 0 | E23: 0 | F23: 0 | G23: 0 | H23: 0 | I23: 0
B24: =IF(ISBLANK('N1. Demand'!B34),"",'N1. Demand'!B34) ->  | D24: =C105 -> 0 | E24: 0 | F24: 0 | G24: 0 | H24: 0 | I24: 0
B25: =IF(ISBLANK('N1. Demand'!B35),"",'N1. Demand'!B35) ->  | D25: =C106 -> 0 | E25: 0 | F25: 0 | G25: 0 | H25: 0 | I25: 0
B26: =IF(ISBLANK('N1. Demand'!B36),"",'N1. Demand'!B36) ->  | D26: =C107 -> 0 | E26: 0 | F26: 0 | G26: 0 | H26: 0 | I26: 0
B27: =IF(ISBLANK('N1. Demand'!B37),"",'N1. Demand'!B37) ->  | D27: =C108 -> 0 | E27: 0 | F27: 0 | G27: 0 | H27: 0 | I27: 0
B28: =IF(ISBLANK('N1. Demand'!B38),"",'N1. Demand'!B38) ->  | D28: =C109 -> 0 | E28: 0 | F28: 0 | G28: 0 | H28: 0 | I28: 0
B29: =IF(ISBLANK('N1. Demand'!B39),"",'N1. Demand'!B39) ->  | D29: =C110 -> 0 | E29: 0 | F29: 0 | G29: 0 | H29: 0 | I29: 0
B30: =IF(ISBLANK('N1. Demand'!B40),"",'N1. Demand'!B40) ->  | D30: =C111 -> 0 | E30: 0 | F30: 0 | G30: 0 | H30: 0 | I30: 0
B31: =IF(ISBLANK('N1. Demand'!B41),"",'N1. Demand'!B41) ->  | D31: =C112 -> 0 | E31: 0 | F31: 0 | G31: 0 | H31: 0 | I31: 0
B32: =IF(ISBLANK('N1. Demand'!B42),"",'N1. Demand'!B42) ->  | D32: =C113 -> 0 | E32: 0 | F32: 0 | G32: 0 | H32: 0 | I32: 0
B33: =IF(ISBLANK('N1. Demand'!B43),"",'N1. Demand'!B43) ->  | D33: =C114 -> 0 | E33: 0 | F33: 0 | G33: 0 | H33: 0 | I33: 0
B34: =IF(ISBLANK('N1. Demand'!B44),"",'N1. Demand'!B44) ->  | D34: =C115 -> 0 | E34: 0 | F34: 0 | G34: 0 | H34: 0 | I34: 0
B35: =IF(ISBLANK('N1. Demand'!B45),"",'N1. Demand'!B45) ->  | D35: =C116 -> 0 | E35: 0 | F35: 0 | G35: 0 | H35: 0 | I35: 0
B36: =IF(ISBLANK('N1. Demand'!B46),"",'N1. Demand'!B46) ->  | D36: =C117 -> 0 | E36: 0 | F36: 0 | G36: 0 | H36: 0 | I36: 0
B37: =IF(ISBLANK('N1. Demand'!B47),"",'N1. Demand'!B47) ->  | D37: =C118 -> 0 | E37: 0 | F37: 0 | G37: 0 | H37: 0 | I37: 0
B38: =IF(ISBLANK('N1. Demand'!B48),"",'N1. Demand'!B48) ->  | D38: =C119 -> 0 | E38: 0 | F38: 0 | G38: 0 | H38: 0 | I38: 0
B39: =IF(ISBLANK('N1. Demand'!B49),"",'N1. Demand'!B49) ->  | D39: =C120 -> 0 | E39: 0 | F39: 0 | G39: 0 | H39: 0 | I39: 0
B40: =IF(ISBLANK('N1. Demand'!B50),"",'N1. Demand'!B50) ->  | D40: =C121 -> 0 | E40: 0 | F40: 0 | G40: 0 | H40: 0 | I40: 0
B41: =IF(ISBLANK('N1. Demand'!B51),"",'N1. Demand'!B51) ->  | D41: =C122 -> 0 | E41: 0 | F41: 0 | G41: 0 | H41: 0 | I41: 0
B42: =IF(ISBLANK('N1. Demand'!B52),"",'N1. Demand'!B52) ->  | D42: =C123 -> 0 | E42: 0 | F42: 0 | G42: 0 | H42: 0 | I42: 0
B43: =IF(ISBLANK('N1. Demand'!B53),"",'N1. Demand'!B53) ->  | D43: =C124 -> 0 | E43: 0 | F43: 0 | G43: 0 | H43: 0 | I43: 0
B44: =IF(ISBLANK('N1. Demand'!B54),"",'N1. Demand'!B54) ->  | D44: =C125 -> 0 | E44: 0 | F44: 0 | G44: 0 | H44: 0 | I44: 0
B45: =IF(ISBLANK('N1. Demand'!B55),"",'N1. Demand'!B55) ->  | D45: =C126 -> 0 | E45: 0 | F45: 0 | G45: 0 | H45: 0 | I45: 0
B46: =IF(ISBLANK('N1. Demand'!B56),"",'N1. Demand'!B56) ->  | D46: =C127 -> 0 | E46: 0 | F46: 0 | G46: 0 | H46: 0 | I46: 0
B47: =IF(ISBLANK('N1. Demand'!B57),"",'N1. Demand'!B57) ->  | D47: =C128 -> 0 | E47: 0 | F47: 0 | G47: 0 | H47: 0 | I47: 0
B48: =IF(ISBLANK('N1. Demand'!B58),"",'N1. Demand'!B58) ->  | D48: =C129 -> 0 | E48: 0 | F48: 0 | G48: 0 | H48: 0 | I48: 0
B49: =IF(ISBLANK('N1. Demand'!B59),"",'N1. Demand'!B59) ->  | D49: =C130 -> 0 | E49: 0 | F49: 0 | G49: 0 | H49: 0 | I49: 0
B50: =IF(ISBLANK('N1. Demand'!B60),"",'N1. Demand'!B60) ->  | D50: =C131 -> 0 | E50: =D131 -> 0 | F50: =E131 -> 0 | G50: =F131 -> 0 | H50: =G131 -> 0 | I50: =H131 -> 0
B51: =IF(ISBLANK('N1. Demand'!B61),"",'N1. Demand'!B61) ->  | D51: 0 | E51: 0 | F51: 0 | G51: 0 | H51: 0 | I51: 0
B52: =IF(ISBLANK('N1. Demand'!B62),"",'N1. Demand'!B62) ->  | D52: 0 | E52: 0 | F52: 0 | G52: 0 | H52: 0 | I52: 0
B53: =IF(ISBLANK('N1. Demand'!B63),"",'N1. Demand'!B63) ->  | D53: =C134 -> 0 | E53: 0 | F53: 0 | G53: 0 | H53: 0 | I53: 0
B54: =IF(ISBLANK('N1. Demand'!B64),"",'N1. Demand'!B64) ->  | D54: =C135 -> 0 | E54: 0 | F54: 0 | G54: 0 | H54: 0 | I54: 0
B55: =IF(ISBLANK('N1. Demand'!B65),"",'N1. Demand'!B65) ->  | D55: =C136 -> 0 | E55: 0 | F55: 0 | G55: 0 | H55: 0 | I55: 0
B56: =IF(ISBLANK('N1. Demand'!B66),"",'N1. Demand'!B66) ->  | D56: =C137 -> 0 | E56: 0 | F56: 0 | G56: 0 | H56: 0 | I56: 0
B57: =IF(ISBLANK('N1. Demand'!B67),"",'N1. Demand'!B67) ->  | D57: =C138 -> 0 | E57: 0 | F57: 0 | G57: 0 | H57: 0 | I57: 0
B58: =IF(ISBLANK('N1. Demand'!B68),"",'N1. Demand'!B68) ->  | D58: =C139 -> 0 | E58: =D139 -> 0 | F58: =E139 -> 0 | G58: =F139 -> 0 | H58: =G139 -> 0 | I58: =H139 -> 0
B59: =IF(ISBLANK('N1. Demand'!B69),"",'N1. Demand'!B69) ->  | D59: 0 | E59: 0 | F59: 0 | G59: 0 | H59: 0 | I59: 0
B60: =IF(ISBLANK('N1. Demand'!B70),"",'N1. Demand'!B70) ->  | D60: 0 | E60: 0 | F60: 0 | G60: 0 | H60: 0 | I60: 0
B61: =IF(ISBLANK('N1. Demand'!B71),"",'N1. Demand'!B71) ->  | D61: 0 | E61: 0 | F61: 0 | G61: 0 | H61: 0 | I61: 0
B62: =IF(ISBLANK('N1. Demand'!B72),"",'N1. Demand'!B72) ->  | D62: 0 | E62: 0 | F62: 0 | G62: 0 | H62: 0 | I62: 0
B63: =IF(ISBLANK('N1. Demand'!B73),"",'N1. Demand'!B73) ->  | D63: 0 | E63: 0 | F63: 0 | G63: 0 | H63: 0 | I63: 0
B64: =IF(ISBLANK('N1. Demand'!B74),"",'N1. Demand'!B74) ->  | D64: 0 | E64: 0 | F64: 0 | G64: 0 | H64: 0 | I64: 0
B65: =IF(ISBLANK('N1. Demand'!B75),"",'N1. Demand'!B75) ->  | D65: 0 | E65: 0 | F65: 0 | G65: 0 | H65: 0 | I65: 0
B66: =IF(ISBLANK('N1. Demand'!B76),"",'N1. Demand'!B76) ->  | D66: 0 | E66: 0 | F66: 0 | G66: 0 | H66: 0 | I66: 0
B67: =IF(ISBLANK('N1. Demand'!B77),"",'N1. Demand'!B77) ->  | D67: 0 | E67: 0 | F67: 0 | G67: 0 | H67: 0 | I67: 0
B68: =IF(ISBLANK('N1. Demand'!B78),"",'N1. Demand'!B78) ->  | D68: 0 | E68: 0 | F68: 0 | G68: 0 | H68: 0 | I68: 0
B69: =IF(ISBLANK('N1. Demand'!B79),"",'N1. Demand'!B79) ->  | D69: 0 | E69: 0 | F69: 0 | G69: 0 | H69: 0 | I69: 0
B70: =IF(ISBLANK('N1. Demand'!B80),"",'N1. Demand'!B80) ->  | D70: 0 | E70: 0 | F70: 0 | G70: 0 | H70: 0 | I70: 0
B71: =IF(ISBLANK('N1. Demand'!B81),"",'N1. Demand'!B81) ->  | D71: 0 | E71: 0 | F71: 0 | G71: 0 | H71: 0 | I71: 0
B72: =IF(ISBLANK('N1. Demand'!B82),"",'N1. Demand'!B82) ->  | D72: 0 | E72: 0 | F72: 0 | G72: 0 | H72: 0 | I72: 0
B73: =IF(ISBLANK('N1. Demand'!B83),"",'N1. Demand'!B83) ->  | D73: 0 | E73: 0 | F73: 0 | G73: 0 | H73: 0 | I73: 0
B74: =IF(ISBLANK('N1. Demand'!B84),"",'N1. Demand'!B84) ->  | D74: 0 | E74: 0 | F74: 0 | G74: 0 | H74: 0 | I74: 0
B75: =IF(ISBLANK('N1. Demand'!B85),"",'N1. Demand'!B85) ->  | D75: 0 | E75: 0 | F75: 0 | G75: 0 | H75: 0 | I75: 0
B76: =IF(ISBLANK('N1. Demand'!B86),"",'N1. Demand'!B86) ->  | D76: 0 | E76: 0 | F76: 0 | G76: 0 | H76: 0 | I76: 0
B77: =IF(ISBLANK('N1. Demand'!B87),"",'N1. Demand'!B87) ->  | D77: 0 | E77: 0 | F77: 0 | G77: 0 | H77: 0 | I77: 0
B78: =IF(ISBLANK('N1. Demand'!B88),"",'N1. Demand'!B88) ->  | D78: 0 | E78: 0 | F78: 0 | G78: 0 | H78: 0 | I78: 0
B79: =IF(ISBLANK('N1. Demand'!B89),"",'N1. Demand'!B89) ->  | D79: 0 | E79: 0 | F79: 0 | G79: 0 | H79: 0 | I79: 0
B80: =IF(ISBLANK('N1. Demand'!B90),"",'N1. Demand'!B90) ->  | D80: 0 | E80: 0 | F80: 0 | G80: 0 | H80: 0 | I80: 0
B81: =IF(ISBLANK('N1. Demand'!B91),"",'N1. Demand'!B91) ->  | D81: 0 | E81: 0 | F81: 0 | G81: 0 | H81: 0 | I81: 0
B82: =IF(ISBLANK('N1. Demand'!B92),"",'N1. Demand'!B92) ->  | D82: 0 | E82: 0 | F82: 0 | G82: 0 | H82: 0 | I82: 0
B83: =IF(ISBLANK('N1. Demand'!B93),"",'N1. Demand'!B93) ->  | D83: 0 | E83: 0 | F83: 0 | G83: 0 | H83: 0 | I83: 0
B84: =IF(ISBLANK('N1. Demand'!B94),"",'N1. Demand'!B94) ->  | D84: 0 | E84: 0 | F84: 0 | G84: 0 | H84: 0 | I84: 0
B85: =IF(ISBLANK('N1. Demand'!B95),"",'N1. Demand'!B95) ->  | D85: 0 | E85: 0 | F85: 0 | G85: 0 | H85: 0 | I85: 0
B86: Total | C86: =SUM(C11:C85) -> 715525.6418 | D86: =SUM(D11:D85) -> 720915.6614 | E86: 717404.1017 | F86: 714865.8425 | G86: 717317.7048 | H86: 719471.1713 | I86: 721644.9555
B88: S1.2.2 - CUSTOMER NUMBERS - END OF YEAR
C89: VOLUMES
C90: 0's
C91: =VLOOKUP(CRCP_y4,'AER lookups'!$B$52:$C$101,2,0) -> 2022 | D91: =CONCATENATE("1 Jan-30 Jun "&(C91+1)) -> 1 Jan-30 Jun 2023 | E91: =FRCP_y1 -> 2023-24 | F91: =FRCP_y2 -> 2024-25 | G91: =FRCP_y3 -> 2025-26 | H91: =FRCP_y4 -> 2026-27 | I91: =FRCP_y5 -> 2027-28
B92: =IF(ISBLANK(B11),"",B11) -> Residential (Metro) | C92: 692280.4345 | D92: 689045.1243 | E92: 686906.6567 | F92: 688763.0469 | G92: 690282.3805 | H92: 691780.7401 | I92: 693224.9286
B93: Residential (YV) | C93: 5806.909776 | D93: 5811.339839 | E93: 5872.317731 | F93: 5986.003988 | G93: 6101.879991 | H93: 6219.987915 | I93: 6340.370752
B94: Residential (SG) | C94: 6867.247571 | D94: 7024.52095 | E94: 7436.814703 | F94: 7948.826947 | G94: 8497.246629 | H94: 9084.662557 | I94: 9713.847622
B95: Non res (Metro) | C95: 15474.29215 | D95: 15033.75346 | E95: 14155.29539 | F95: 14116.08114 | G95: 14076.549 | H95: 14036.68265 | I95: 13996.46508
B96: Non res (YV) | C96: 78.35694448 | D96: 79.57302957 | E96: 82.10943089 | F96: 85.59448734 | G96: 89.22746369 | H96: 93.01463825 | I96: 96.96255582
B97: Non res (SG) | C97: 125.4204513 | D97: 126.7900611 | E97: 129.6485442 | F97: 135.151353 | G97: 140.8877232 | H97: 146.8675682 | I97: 153.101222
B98: Tariff L | C98: 11 | D98: 11 | E98: 11 | F98: 11 | G98: 11 | H98: 11 | I98: 11
B99: Tariff D (Metro) | C99: 269 | D99: 269 | E99: 269 | F99: 269 | G99: 269 | H99: 269 | I99: 269
B100: Tariff D (SG) | C100: 3 | D100: 3 | E100: 3 | F100: 3 | G100: 3 | H100: 3 | I100: 3
B124: =IF(ISBLANK(B43),"",B43) -> 
B141: =IF(ISBLANK(B60),"",B60) -> 
B167: Total | C167: =SUM(C92:C166) -> 720915.6614 | D167: =SUM(D92:D166) -> 717404.1017 | E167: =SUM(E92:E166) -> 714865.8425 | F167: =SUM(F92:F166) -> 717317.7048 | G167: =SUM(G92:G166) -> 719471.1713 | H167: =SUM(H92:H166) -> 721644.9555 | I167: =SUM(I92:I166) -> 723808.6758
B169: S1.2.3 - TOTAL CUSTOMER CONNECTIONS
C170: VOLUMES
C171: 0's
C172: =VLOOKUP(CRCP_y4,'AER lookups'!$B$52:$C$101,2,0) -> 2022 | D172: =CONCATENATE("1 Jan-30 Jun "&(C172+1)) -> 1 Jan-30 Jun 2023 | E172: =FRCP_y1 -> 2023-24 | F172: =FRCP_y2 -> 2024-25 | G172: =FRCP_y3 -> 2025-26 | H172: =FRCP_y4 -> 2026-27 | I172: =FRCP_y5 -> 2027-28
B173: =IF(ISBLANK(B11),"",B11) -> Residential (Metro) | C173: 8573.702879 | D173: 6019.909031 | E173: 7107.040178 | F173: 6175.233765 | G173: 5849.655895 | H173: 5840.267218 | I173: 5797.62808
B174: Residential (YV) | C174: 136.9964546 | D174: 83.61521116 | E174: 140.0703353 | F174: 142.3198405 | G174: 144.5985643 | H174: 146.9202908 | I174: 149.2845944
B175: Residential (SG) | C175: 458.5078784 | D175: 250.060764 | E175: 504.9913861 | F175: 539.0774775 | G175: 575.5690208 | H175: 614.6501526 | I175: 656.503784
B176: Non res (Metro) | C176: 309.1713453 | D176: 154.5166214 | E176: 290.5213225 | F176: 291.4320486 | G176: 290.4185234 | H176: 289.3901364 | I176: 288.3461975
B177: Non res (YV) | C177: 4.561062479 | D177: 2.313858934 | E177: 4.653408091 | F177: 4.758378675 | G177: 4.903619669 | H177: 5.055144618 | I177: 5.213219988
B178: Non res (SG) | C178: 7.523410601 | D178: 3.815299837 | E178: 7.6113573 | F178: 7.72799153 | G178: 7.956871507 | H178: 8.195674627 | I178: 8.444821629
B179: Tariff L | C179: 0 | D179: 0 | E179: 0 | F179: 0 | G179: 0 | H179: 0 | I179: 0
B180: Tariff D (Metro) | C180: 0 | D180: 0 | E180: 0 | F180: 0 | G180: 0 | H180: 0 | I180: 0
B181: Tariff D (SG) | C181: 0 | D181: 0 | E181: 0 | F181: 0 | G181: 0 | H181: 0 | I181: 0
B205: =IF(ISBLANK(B43),"",B43) -> 
B222: =IF(ISBLANK(B60),"",B60) -> 
B248: Total | C248: =SUM(C173:C247) -> 9490.463031 | D248: =SUM(D173:D247) -> 6514.230786 | E248: =SUM(E173:E247) -> 8054.887987 | F248: =SUM(F173:F247) -> 7160.549502 | G248: =SUM(G173:G247) -> 6873.102495 | H248: =SUM(H173:H247) -> 6904.478618 | I248: =SUM(I173:I247) -> 6905.420697
B250: S1.2.4 - TOTAL CUSTOMER DISCONNECTIONS
C251: VOLUMES
C252: 0's
C253: =VLOOKUP(CRCP_y4,'AER lookups'!$B$52:$C$101,2,0) -> 2022 | D253: =CONCATENATE("1 Jan-30 Jun "&(C253+1)) -> 1 Jan-30 Jun 2023 | E253: =FRCP_y1 -> 2023-24 | F253: =FRCP_y2 -> 2024-25 | G253: =FRCP_y3 -> 2025-26 | H253: =FRCP_y4 -> 2026-27 | I253: =FRCP_y5 -> 2027-28
B254: =IF(ISBLANK(B11),"",B11) -> Residential (Metro) | C254: 3689.611834 | D254: 9255.238334 | E254: 9245.507818 | F254: 4318.843534 | G254: 4330.322324 | H254: 4341.907585 | I254: 4353.439611
B255: Residential (YV) | C255: 28.6002966 | D255: 79.1702966 | E255: 79.09244307 | F255: 28.6335834 | G255: 28.72256208 | H255: 28.81236608 | I255: 28.90175742
B256: Residential (SG) | C256: 27.03377018 | D256: 92.77477018 | E256: 92.6976332 | F256: 27.06523376 | G256: 27.14933881 | H256: 27.23422397 | I256: 27.31871907
B257: Non res (Metro) | C257: 351.4786143 | D257: 595.0106143 | E257: 1168.979398 | F257: 330.6462954 | G257: 329.9506593 | H257: 329.2564867 | I257: 328.5637746
B258: Non res (YV) | C258: 1.353547694 | D258: 1.095547694 | E258: 2.117006773 | F258: 1.273322224 | G258: 1.270643322 | H258: 1.267970056 | I258: 1.265302415
B259: Non res (SG) | C259: 2.365380068 | D259: 2.491380068 | E259: 4.752874131 | F259: 2.225182771 | G259: 2.22050128 | H259: 2.215829639 | I259: 2.211167826
B260: Tariff L | C260: 0 | D260: 0 | E260: 0 | F260: 0 | G260: 0 | H260: 0 | I260: 0
B261: Tariff D (Metro) | C261: 0 | D261: 0 | E261: 0 | F261: 0 | G261: 0 | H261: 0 | I261: 0
B262: Tariff D (SG) | C262: 0 | D262: 0 | E262: 0 | F262: 0 | G262: 0 | H262: 0 | I262: 0
B286: =IF(ISBLANK(B43),"",B43) -> 
B303: =IF(ISBLANK(B60),"",B60) -> 
B329: Total | C329: =SUM(C254:C328) -> 4100.443443 | D329: =SUM(D254:D328) -> 10025.78094 | E329: =SUM(E254:E328) -> 10593.14717 | F329: =SUM(F254:F328) -> 4708.687151 | G329: =SUM(G254:G328) -> 4719.636029 | H329: =SUM(H254:H328) -> 4730.694461 | I329: =SUM(I254:I328) -> 4741.700332

Sheet S10. Supply Quality
B1: =INDEX(dms_Worksheet_List,MATCH(dms_Model,dms_Model_List)) -> REGULATORY REPORTING STATEMENT
B2: =dms_TradingName -> Multinet Gas
B3: =dms_Header_Span -> 2021-22 to 2027-28
B4: S10. SUPPLY QUALITY
B6: S10.1 - PRESSURE FAULTS
C7: VOLUMES
C8: 0's
C9: =VLOOKUP(CRCP_y4,'AER lookups'!$B$52:$C$101,2,0) -> 2022 | D9: =CONCATENATE("1 Jan-30 Jun "&(C9+1)) -> 1 Jan-30 Jun 2023 | E9: =FRCP_y1 -> 2023-24 | F9: =FRCP_y2 -> 2024-25 | G9: =FRCP_y3 -> 2025-26 | H9: =FRCP_y4 -> 2026-27 | I9: =FRCP_y5 -> 2027-28
B10: Poor Pressure events - mains
B11: Poor Pressure events - services
B12: Poor Pressure event - meters | C12: 4500 | D12: 2250 | E12: 4750 | F12: 4750 | G12: 4750 | H12: 4750 | I12: 4750
B13: Pressure events impacting 5+ customers
B14: Pressure events with >12 hr resolution

Sheet S11. Network reliability
B1: =INDEX(dms_Worksheet_List,MATCH(dms_Model,dms_Model_List)) -> REGULATORY REPORTING STATEMENT
B2: =dms_TradingName -> Multinet Gas
B3: =dms_Header_Span -> 2021-22 to 2027-28
B4: S11. NETWORK RELIABILITY
B6: S11.1 - NETWORK OUTAGES
B7: S11.1.1 - PLANNED
C8: VOLUMES
C9: 0's
C10: =VLOOKUP(CRCP_y4,'AER lookups'!$B$52:$C$101,2,0) -> 2022 | D10: =CONCATENATE("1 Jan-30 Jun "&(C10+1)) -> 1 Jan-30 Jun 2023 | E10: =FRCP_y1 -> 2023-24 | F10: =FRCP_y2 -> 2024-25 | G10: =FRCP_y3 -> 2025-26 | H10: =FRCP_y4 -> 2026-27 | I10: =FRCP_y5 -> 2027-28
B11: Count of outage events | C11: 4000 | D11: 1500 | E11: 7684 | F11: 7684 | G11: 7684 | H11: 7684 | I11: 7684
B12: Outages affecting 5+ customers
B13: Outages with >12 hr supply interruption
B15: S11.1.2 - UNPLANNED
C16: VOLUMES
C17: 0's
C18: =VLOOKUP(CRCP_y4,'AER lookups'!$B$52:$C$101,2,0) -> 2022 | D18: =CONCATENATE("1 Jan-30 Jun "&(C18+1)) -> 1 Jan-30 Jun 2023 | E18: =FRCP_y1 -> 2023-24 | F18: =FRCP_y2 -> 2024-25 | G18: =FRCP_y3 -> 2025-26 | H18: =FRCP_y4 -> 2026-27 | I18: =FRCP_y5 -> 2027-28
B19: Count of outage events | C19: 4500 | D19: 2250 | E19: 4500 | F19: 4500 | G19: 4000 | H19: 4000 | I19: 4000
B20: Outages affecting 5+ customers | C20: 34 | D20: 17 | E20: 35 | F20: 30 | G20: 30 | H20: 30 | I20: 30
B21: Outages with >12 hr supply interruption | C21: 200 | D21: 100 | E21: 200 | F21: 200 | G21: 200 | H21: 200 | I21: 200
B25: S11.3 - UNACCOUNTED FOR GAS - TRANSMISSION AND DISTRIBUTION
C26: VOLUMES
C27: GJ
B28: Place of loss | C28: =VLOOKUP(CRCP_y4,'AER lookups'!$B$52:$C$101,2,0) -> 2022 | D28: =CONCATENATE("1 Jan-30 Jun "&(C28+1)) -> 1 Jan-30 Jun 2023 | E28: =FRCP_y1 -> 2023-24 | F28: =FRCP_y2 -> 2024-25 | G28: =FRCP_y3 -> 2025-26 | H28: =FRCP_y4 -> 2026-27 | I28: =FRCP_y5 -> 2027-28
B29: Transmission and Distribution | C29: 2950.363648 | D29: 1475.181824 | E29: 2950.363648 | F29: 2950.363648 | G29: 2950.363648 | H29: 2950.363648 | I29: 2950.363648
B39: Total | C39: =SUM(C29:C38) -> 2950.363648 | D39: 1475.181824 | E39: 2950.363648 | F39: 2950.363648 | G39: 2950.363648 | H39: 2950.363648 | I39: 2950.363648

Sheet F3. Revenue
B1: =INDEX(dms_Worksheet_List,MATCH(dms_Model,dms_Model_List)) -> REGULATORY REPORTING STATEMENT
B2: =dms_TradingName -> Multinet Gas
B3: =dms_Header_Span -> 2021-22 to 2027-28
B4: F3. REVENUE
B6: F3.1 - REFERENCE SERVICES
B7: F3.1.1 - REVENUE - BY TARIFF
C8: REVENUE
C9: =CONCATENATE("$0's, real ",dms_DollarReal) -> $0's, real June 2023
B10: Tariff | C10: =VLOOKUP(CRCP_y4,'AER lookups'!$B$52:$C$101,2,0) -> 2022 | D10: =CONCATENATE("1 Jan-30 Jun "&(C10+1)) -> 1 Jan-30 Jun 2023 | E10: =FRCP_y1 -> 2023-24 | F10: =FRCP_y2 -> 2024-25 | G10: =FRCP_y3 -> 2025-26 | H10: =FRCP_y4 -> 2026-27 | I10: =FRCP_y5 -> 2027-28
B11: =IF(ISBLANK('N1. Demand'!B21),"",'N1. Demand'!B21) -> Residential (Metro) | C11: 210401911.2 | D11: 84382888.54 | E11: 200990591.9 | F11: 203450278.5 | G11: 206177311.2 | H11: 208336499.4 | I11: 211050206.2
B12: =IF(ISBLANK('N1. Demand'!B22),"",'N1. Demand'!B22) -> Residential (YV) | C12: 2276375.894 | D12: 942662.6054 | E12: 2210422.871 | F12: 2217951 | G12: 2231166.893 | H12: 2240070.994 | I12: 2244195.269
B13: =IF(ISBLANK('N1. Demand'!B23),"",'N1. Demand'!B23) -> Residential (SG) | C13: 2744943.48 | D13: 855824.6447 | E13: 2202843.057 | F13: 2340871.971 | G13: 2628043.064 | H13: 2951147.528 | I13: 3314734.675
B14: =IF(ISBLANK('N1. Demand'!B24),"",'N1. Demand'!B24) -> Non res (Metro) | C14: 9545515.636 | D14: 4553451.229 | E14: 10071869.61 | F14: 10068040.05 | G14: 10361573.46 | H14: 10635625.13 | I14: 10917134.14
B15: =IF(ISBLANK('N1. Demand'!B25),"",'N1. Demand'!B25) -> Non res (YV) | C15: 164192.5108 | D15: 65029.44749 | E15: 156605.6642 | F15: 166600.8362 | G15: 178122.9743 | H15: 190442.2483 | I15: 203613.8258
B16: =IF(ISBLANK('N1. Demand'!B26),"",'N1. Demand'!B26) -> Non res (SG) | C16: 426405.8901 | D16: 187560.2268 | E16: 425541.9646 | F16: 441874.6197 | G16: 463215.8458 | H16: 485598.4811 | I16: 509074.1225
B17: =IF(ISBLANK('N1. Demand'!B27),"",'N1. Demand'!B27) -> Tariff L | C17: 16916.61569 | D17: 8338.997425 | E17: 17447.49277 | F17: 17978.36984 | G17: 18525.39993 | H17: 19089.07451 | I17: 19669.90004
B18: =IF(ISBLANK('N1. Demand'!B28),"",'N1. Demand'!B28) -> Tariff D (Metro) | C18: 1804810.26 | D18: 935420.3668 | E18: 1837398.458 | F18: 1869169.131 | G18: 1901489.154 | H18: 1934368.027 | I18: 1967815.412
B19: =IF(ISBLANK('N1. Demand'!B29),"",'N1. Demand'!B29) -> Tariff D (SG) | C19: 82265.57589 | D19: 41921.59961 | E19: 82855.18309 | F19: 84866.76449 | G19: 86990.43158 | H19: 88579.00203 | I19: 90197.61352
B20: =IF(ISBLANK('N1. Demand'!B30),"",'N1. Demand'!B30) -> 
B21: =IF(ISBLANK('N1. Demand'!B31),"",'N1. Demand'!B31) -> 
B22: =IF(ISBLANK('N1. Demand'!B32),"",'N1. Demand'!B32) -> 
B23: =IF(ISBLANK('N1. Demand'!B33),"",'N1. Demand'!B33) -> 
B24: =IF(ISBLANK('N1. Demand'!B34),"",'N1. Demand'!B34) -> 
B25: =IF(ISBLANK('N1. Demand'!B35),"",'N1. Demand'!B35) -> 
B26: =IF(ISBLANK('N1. Demand'!B36),"",'N1. Demand'!B36) -> 
B27: =IF(ISBLANK('N1. Demand'!B37),"",'N1. Demand'!B37) -> 
B28: =IF(ISBLANK('N1. Demand'!B38),"",'N1. Demand'!B38) -> 
B29: =IF(ISBLANK('N1. Demand'!B39),"",'N1. Demand'!B39) -> 
B30: =IF(ISBLANK('N1. Demand'!B40),"",'N1. Demand'!B40) -> 
B31: =IF(ISBLANK('N1. Demand'!B41),"",'N1. Demand'!B41) -> 
B32: =IF(ISBLANK('N1. Demand'!B42),"",'N1. Demand'!B42) -> 
B33: =IF(ISBLANK('N1. Demand'!B43),"",'N1. Demand'!B43) -> 
B34: =IF(ISBLANK('N1. Demand'!B44),"",'N1. Demand'!B44) -> 
B35: =IF(ISBLANK('N1. Demand'!B45),"",'N1. Demand'!B45) -> 
B36: =IF(ISBLANK('N1. Demand'!B46),"",'N1. Demand'!B46) -> 
B37: =IF(ISBLANK('N1. Demand'!B47),"",'N1. Demand'!B47) -> 
B38: =IF(ISBLANK('N1. Demand'!B48),"",'N1. Demand'!B48) -> 
B39: =IF(ISBLANK('N1. Demand'!B49),"",'N1. Demand'!B49) -> 
B40: =IF(ISBLANK('N1. Demand'!B50),"",'N1. Demand'!B50) -> 
B41: =IF(ISBLANK('N1. Demand'!B51),"",'N1. Demand'!B51) -> 
B42: =IF(ISBLANK('N1. Demand'!B52),"",'N1. Demand'!B52) -> 
B43: =IF(ISBLANK('N1. Demand'!B53),"",'N1. Demand'!B53) -> 
B44: =IF(ISBLANK('N1. Demand'!B54),"",'N1. Demand'!B54) -> 
B45: =IF(ISBLANK('N1. Demand'!B55),"",'N1. Demand'!B55) -> 
B46: =IF(ISBLANK('N1. Demand'!B56),"",'N1. Demand'!B56) -> 
B47: =IF(ISBLANK('N1. Demand'!B57),"",'N1. Demand'!B57) -> 
B48: =IF(ISBLANK('N1. Demand'!B58),"",'N1. Demand'!B58) -> 
B49: =IF(ISBLANK('N1. Demand'!B59),"",'N1. Demand'!B59) -> 
B50: =IF(ISBLANK('N1. Demand'!B60),"",'N1. Demand'!B60) -> 
B51: =IF(ISBLANK('N1. Demand'!B61),"",'N1. Demand'!B61) -> 
B52: =IF(ISBLANK('N1. Demand'!B62),"",'N1. Demand'!B62) -> 
B53: =IF(ISBLANK('N1. Demand'!B63),"",'N1. Demand'!B63) -> 
B54: =IF(ISBLANK('N1. Demand'!B64),"",'N1. Demand'!B64) -> 
B55: =IF(ISBLANK('N1. Demand'!B65),"",'N1. Demand'!B65) -> 
B56: =IF(ISBLANK('N1. Demand'!B66),"",'N1. Demand'!B66) -> 
B57: =IF(ISBLANK('N1. Demand'!B67),"",'N1. Demand'!B67) -> 
B58: =IF(ISBLANK('N1. Demand'!B68),"",'N1. Demand'!B68) -> 
B59: =IF(ISBLANK('N1. Demand'!B69),"",'N1. Demand'!B69) -> 
B60: =IF(ISBLANK('N1. Demand'!B70),"",'N1. Demand'!B70) -> 
B61: =IF(ISBLANK('N1. Demand'!B71),"",'N1. Demand'!B71) -> 
B62: =IF(ISBLANK('N1. Demand'!B72),"",'N1. Demand'!B72) -> 
B63: =IF(ISBLANK('N1. Demand'!B73),"",'N1. Demand'!B73) -> 
B64: =IF(ISBLANK('N1. Demand'!B74),"",'N1. Demand'!B74) -> 
B65: =IF(ISBLANK('N1. Demand'!B75),"",'N1. Demand'!B75) -> 
B66: =IF(ISBLANK('N1. Demand'!B76),"",'N1. Demand'!B76) -> 
B67: =IF(ISBLANK('N1. Demand'!B77),"",'N1. Demand'!B77) -> 
B68: =IF(ISBLANK('N1. Demand'!B78),"",'N1. Demand'!B78) -> 
B69: =IF(ISBLANK('N1. Demand'!B79),"",'N1. Demand'!B79) -> 
B70: =IF(ISBLANK('N1. Demand'!B80),"",'N1. Demand'!B80) -> 
B71: =IF(ISBLANK('N1. Demand'!B81),"",'N1. Demand'!B81) -> 
B72: =IF(ISBLANK('N1. Demand'!B82),"",'N1. Demand'!B82) -> 
B73: =IF(ISBLANK('N1. Demand'!B83),"",'N1. Demand'!B83) -> 
B74: =IF(ISBLANK('N1. Demand'!B84),"",'N1. Demand'!B84) -> 
B75: =IF(ISBLANK('N1. Demand'!B85),"",'N1. Demand'!B85) -> 
B76: =IF(ISBLANK('N1. Demand'!B86),"",'N1. Demand'!B86) -> 
B77: =IF(ISBLANK('N1. Demand'!B87),"",'N1. Demand'!B87) -> 
B78: =IF(ISBLANK('N1. Demand'!B88),"",'N1. Demand'!B88) -> 
B79: =IF(ISBLANK('N1. Demand'!B89),"",'N1. Demand'!B89) -> 
B80: =IF(ISBLANK('N1. Demand'!B90),"",'N1. Demand'!B90) -> 
B81: =IF(ISBLANK('N1. Demand'!B91),"",'N1. Demand'!B91) -> 
B82: =IF(ISBLANK('N1. Demand'!B92),"",'N1. Demand'!B92) -> 
B83: =IF(ISBLANK('N1. Demand'!B93),"",'N1. Demand'!B93) -> 
B84: =IF(ISBLANK('N1. Demand'!B94),"",'N1. Demand'!B94) -> 
B85: =IF(ISBLANK('N1. Demand'!B95),"",'N1. Demand'!B95) -> 
B86: Total | C86: =SUM(C11:C85) -> 227463337 | D86: 91973097.65 | E86: 217995576.2 | F86: 220657631.3 | G86: 224046438.5 | H86: 226881419.9 | I86: 230316641.2
B88: F3.1.2 - STAND ALONE COST PER UNIT - BY TARIFF CLASS
C89: STAND ALONE COST PER UNIT
C90: =CONCATENATE("$0's, real ",dms_DollarReal) -> $0's, real June 2023
B91: Tariff Class | C91: =VLOOKUP(CRCP_y4,'AER lookups'!$B$52:$C$101,2,0) -> 2022 | D91: =CONCATENATE("1 Jan-30 Jun "&(C91+1)) -> 1 Jan-30 Jun 2023 | E91: =FRCP_y1 -> 2023-24 | F91: =FRCP_y2 -> 2024-25 | G91: =FRCP_y3 -> 2025-26 | H91: =FRCP_y4 -> 2026-27 | I91: =FRCP_y5 -> 2027-28
B92: Residential (Metro) | C92: 215485686.9 | D92: 86421765.85 | E92: 205846969.3 | F92: 199218796.1 | G92: 206973313 | H92: 217350352.5 | I92: 225654466.6
B93: Residential (YV) | C93: 2959765.446 | D93: 1225658.826 | E93: 2874012.702 | F93: 2781470.877 | G93: 2889738.588 | H93: 3034621.671 | I93: 3150562.795
B94: Residential (SG) | C94: 3602291.583 | D94: 1123130.562 | E94: 2890873.004 | F94: 2797788.286 | G94: 2906691.146 | H94: 3052424.18 | I94: 3169045.47
B95: Non res (Metro) | C95: 11103455.78 | D95: 5296627.895 | E95: 11715716.9 | F95: 11338476.46 | G95: 11779822.4 | H95: 12370428.41 | I95: 12843054.51
B96: Non res (YV) | C96: 1332296.837 | D96: 527664.3054 | E96: 1270735.37 | F96: 1229818.303 | G96: 1277688.519 | H96: 1341748.103 | I96: 1393011.094
B97: Non res (SG) | C97: 1349402.439 | D97: 593552.3718 | E97: 1346668.463 | F97: 1303306.388 | G97: 1354037.1 | H97: 1421924.579 | I97: 1476250.803
B98: Tariff L | C98: 1265993.019 | D98: 624067.6453 | E98: 1305722.399 | F98: 1263678.767 | G98: 1312866.989 | H98: 1378690.319 | I98: 1431364.729
B99: Tariff D (Metro) | C99: 2398850.546 | D99: 1243307.237 | E99: 2442164.914 | F99: 2363528.38 | G99: 2455527.836 | H99: 2578640.855 | I99: 2677160.721
B100: Tariff D (SG) | C100: 1212393.091 | D100: 617821.6973 | E100: 1221082.457 | F100: 1181764.19 | G100: 1227763.918 | H100: 1289320.427 | I100: 1338580.36
B113: F3.1.3 - AVOIDABLE COST PER UNIT - BY TARIFF CLASS
C114: AVOIDABLE COST PER UNIT
C115: =CONCATENATE("$0's, real ",dms_DollarReal) -> $0's, real June 2023
B116: Tariff Class | C116: =VLOOKUP(CRCP_y4,'AER lookups'!$B$52:$C$101,2,0) -> 2022 | D116: =CONCATENATE("1 Jan-30 Jun "&(C116+1)) -> 1 Jan-30 Jun 2023 | E116: =FRCP_y1 -> 2023-24 | F116: =FRCP_y2 -> 2024-25 | G116: =FRCP_y3 -> 2025-26 | H116: =FRCP_y4 -> 2026-27 | I116: =FRCP_y5 -> 2027-28
B117: =IF(ISBLANK(B92),"",B92) -> Residential (Metro) | C117: 5454537.846 | D117: 2187573.566 | E117: 5210555.284 | F117: 5042777.914 | G117: 5239066.153 | H117: 5501737.682 | I117: 5711937.741
B118: =IF(ISBLANK(B93),"",B93) -> Residential (YV) | C118: 43345.75503 | D118: 17949.7694 | E118: 42089.90638 | F118: 40734.63167 | G118: 42320.21193 | H118: 44442.02419 | I118: 46139.98157
B119: Residential (SG) | C119: 58081.08736 | D119: 18108.6519 | E119: 46610.62094 | F119: 45109.7814 | G119: 46865.66272 | H119: 49215.37065 | I119: 51095.69909
B120: Non res (Metro) | C120: 277638.3819 | D120: 132440.4966 | E120: 292947.7764 | F120: 283514.9991 | G120: 294550.7141 | H120: 309318.6297 | I120: 321136.4949
B121: Non res (YV) | C121: 1453.160224 | D121: 575.5329889 | E121: 1386.014021 | F121: 1341.385037 | G121: 1393.597947 | H121: 1463.468892 | I121: 1519.382362
B122: Non res (SG) | C122: 2367.440384 | D122: 1041.349723 | E122: 2362.643799 | F122: 2286.567808 | G122: 2375.571602 | H122: 2494.675848 | I122: 2589.987737
B123: Tariff L | C123: 0 | D123: 0 | E123: 0 | F123: 0 | G123: 0 | H123: 0 | I123: 0
B124: Tariff D (Metro) | C124: 0 | D124: 0 | E124: 0 | F124: 0 | G124: 0 | H124: 0 | I124: 0
B125: Tariff D (SG) | C125: 0 | D125: 0 | E125: 0 | F125: 0 | G125: 0 | H125: 0 | I125: 0
B139: F3.2 - ANCILLARY REFERENCE SERVICES
C140: REVENUE
C141: =CONCATENATE("$0's, real ",dms_DollarReal) -> $0's, real June 2023
B142: Service Name | C142: =VLOOKUP(CRCP_y4,'AER lookups'!$B$52:$C$101,2,0) -> 2022 | D142: =CONCATENATE("1 Jan-30 Jun "&(C142+1)) -> 1 Jan-30 Jun 2023 | E142: =FRCP_y1 -> 2023-24 | F142: =FRCP_y2 -> 2024-25 | G142: =FRCP_y3 -> 2025-26 | H142: =FRCP_y4 -> 2026-27 | I142: =FRCP_y5 -> 2027-28
B143: Turn On / Reconnections | C143: 279065.4919 | D143: 140614.6503 | E143: 280002.9768 | F143: 280835.5118 | G143: 282447.6172 | H143: 284007.0485 | I143: 285564.3817
B144: Meter Investigations | C144: 26787.83819 | D144: 13497.77241 | E144: 26877.82851 | F144: 26958.93829 | G144: 27113.49468 | H144: 27263.09898 | I144: 27413.95701
B145: Disconnections | C145: 290214.61 | D145: 146232.4332 | E145: 291189.549 | F145: 292055.5588 | G145: 293735.2937 | H145: 295363.0406 | I145: 296991.1878
B146: Special meter reading | C146: 1670302.804 | D146: 841626.9707 | E146: 1675913.973 | F146: 1681945.001 | G146: 1691086.072 | H146: 1700398.693 | I146: 1710151.31
B147: Meter Removals | C147: 282388.6283 | D147: 142289.1019 | E147: 283337.2768 | F147: 284190.751 | G147: 285839.1401 | H147: 287439.8232 | I147: 289043.5439
B152: Total | C152: =SUM(C143:C151) -> 2548759.372 | D152: 1284260.928 | E152: =SUM(E143:E151) -> 2557321.604 | F152: =SUM(F143:F151) -> 2565985.76 | G152: 2580221.618 | H152: 2594471.704 | I152: 2609164.381
B155: F3.3 - REBATEABLE SERVICES
C156: REVENUE
C157: =CONCATENATE("$0's, real ",dms_DollarReal) -> $0's, real June 2023
B158: Service Name | C158: =VLOOKUP(CRCP_y4,'AER lookups'!$B$52:$C$101,2,0) -> 2022 | D158: =CONCATENATE("1 Jan-30 Jun "&(C158+1)) -> 1 Jan-30 Jun 2023 | E158: =FRCP_y1 -> 2023-24 | F158: =FRCP_y2 -> 2024-25 | G158: =FRCP_y3 -> 2025-26 | H158: =FRCP_y4 -> 2026-27 | I158: =FRCP_y5 -> 2027-28
B165: Total | C165: =SUM(C159:C164) -> 0 | D165: =SUM(D159:D164) -> 0 | E165: 0 | F165: 0 | G165: 0 | H165: 0 | I165: 0
B168: F3.4 - NON-REFERENCE SERVICES
C169: REVENUE
C170: =CONCATENATE("$0's, real ",dms_DollarReal) -> $0's, real June 2023
B171: Service Name | C171: =VLOOKUP(CRCP_y4,'AER lookups'!$B$52:$C$101,2,0) -> 2022 | D171: =CONCATENATE("1 Jan-30 Jun "&(C171+1)) -> 1 Jan-30 Jun 2023 | E171: =FRCP_y1 -> 2023-24 | F171: =FRCP_y2 -> 2024-25 | G171: =FRCP_y3 -> 2025-26 | H171: =FRCP_y4 -> 2026-27 | I171: =FRCP_y5 -> 2027-28
B172: *Capital Recovery (Excess services and other related asset related) | C172: 2448382.305 | D172: 989985.0577 | E172: 2346472.703 | F172: 2375188.413 | G172: 2407025.266 | H172: 2432232.794 | I172: 2463914.073
B173: *Recoverable Works (Damages) | C173: 665439.8664 | D173: 269065.6288 | E173: 637742.1037 | F173: 639914.0887 | G173: 643727.0836 | H173: 646296.0581 | I173: 647485.9769
B178: Total | C178: =SUM(C172:C177) -> 3113822.172 | D178: =SUM(D172:D177) -> 1259050.687 | E178: 2984214.807 | F178: 3015102.502 | G178: 3050752.349 | H178: 3078528.852 | I178: 3111400.05
B181: F3.5 - TOTAL REVENUE
C182: REVENUE
C183: =CONCATENATE("$0's, real ",dms_DollarReal) -> $0's, real June 2023
C184: =VLOOKUP(CRCP_y4,'AER lookups'!$B$52:$C$101,2,0) -> 2022 | D184: =CONCATENATE("1 Jan-30 Jun "&(C184+1)) -> 1 Jan-30 Jun 2023 | E184: =FRCP_y1 -> 2023-24 | F184: =FRCP_y2 -> 2024-25 | G184: =FRCP_y3 -> 2025-26 | H184: =FRCP_y4 -> 2026-27 | I184: =FRCP_y5 -> 2027-28
B185: Total | C185: =SUM(C178,C165,C152,C86) -> 233125918.6 | D185: 94516409.27 | E185: 223537112.6 | F185: 226238719.5 | G185: 229677412.4 | H185: 232554420.4 | I185: 236037205.6

Sheet Additional disclosures
